Workbook

Sheet III Tool Overview
C2: Informing Investment to tackle health Inequalities in Scotland (III) - Tobacco Tax
C3: What is the nature of the intervention? An increase of 10% on the price of tobacco products. The model assumes that the tax affects 80% of all smokers (the total number of smokers, excluding those who can avoid the tax through purchasing untaxed or low-taxed tobacco) and that price elasticity does not vary between social groups.
Y4: Geographies
Y5: Scotland | AC5: Orkney Health Board
G6: Geography | H6: Orkney Health Board | Y6: Ayrshire & Arran Health Board | AC6: Shetland Health Board
G7: Intervention | H7: Tobacco taxation | Y7: Borders Health Board | AC7: Orkney Islands Local Authority
G8: Number of people affected by tobacco tax | H8: =D22 -> 2864.368182 | I8: This changes with the geography chosen. | Y8: Dumfries & Galloway Health Board | AC8: Shetland Islands Local Authority
G9: Number treated at baseline | H9: 0 | Y9: Fife Health Board
G10: Targeting strategy | H10: No variation in price elasticity | I10: We assume this is fixed. | Y10: Forth Valley Health Board
G11: Total direct cost of intervention (£m, 2012 prices) | H11: =(H8*D31)/1000000 -> 0 | Y11: Grampian Health Board
Y12: Greater Glasgow & Clyde Health Board
Y13: Highland Health Board
Y14: Lanarkshire Health Board
C15: Baseline Information: Tobacco Tax | G15: Model Outcomes (whole population) | H15: 2 years | I15: 10 years | J15: 20 years | Y15: Lothian Health Board
C16: Baseline year | D16: =Calculations!C1 -> 2012 | Y16: Orkney Health Board
C17: Age group | D17: 16+ | G17: Years of life gained | H17: =Calculations!S86+Calculations!S107+Calculations!S129+Calculations!S150+Calculations!S172+Calculations!S193+Calculations!S215+Calculations!S236+Calculations!S258+Calculations!S279 -> 5.101902991 | I17: =Calculations!Y86+Calculations!Y107+Calculations!Y129+Calculations!Y150+Calculations!Y172+Calculations!Y193+Calculations!Y215+Calculations!Y236+Calculations!Y258+Calculations!Y279 -> 40.49713661 | J17: =Calculations!AB86+Calculations!AB107+Calculations!AB129+Calculations!AB150+Calculations!AB172+Calculations!AB193+Calculations!AB215+Calculations!AB236+Calculations!AB258+Calculations!AB279 -> 73.10194961 | Y17: Shetland Health Board
C18: Number of smokers in population | D18: =HLOOKUP('III Tool Overview'!$H$6,Baseline_Data_2012!$B$2:$AV$281,Baseline_Data_2012!AW273,FALSE) -> 3580.460227 | G18: Continuous inpatient stays prevented | H18: =Calculations!AE86+Calculations!AE107+Calculations!AE129+Calculations!AE150+Calculations!AE172+Calculations!AE193+Calculations!AE215+Calculations!AE236+Calculations!AE258+Calculations!AE279 -> 2.955582423 | I18: =Calculations!AK86+Calculations!AK107+Calculations!AK129+Calculations!AK150+Calculations!AK172+Calculations!AK193+Calculations!AK215+Calculations!AK236+Calculations!AK258+Calculations!AK279 -> 23.97076463 | J18: =Calculations!AN86+Calculations!AN107+Calculations!AN129+Calculations!AN150+Calculations!AN172+Calculations!AN193+Calculations!AN215+Calculations!AN236+Calculations!AN258+Calculations!AN279 -> 44.04449287 | Y18: Tayside Health Board
C19: Of which, Q1 only: | D19: =HLOOKUP('III Tool Overview'!$H$6,Baseline_Data_2012!$B$2:$AV$281,Baseline_Data_2012!AW274,FALSE) -> 0 | Y19: Western Isles Health Board
C20: Of which, Q1 & Q2: | D20: =HLOOKUP('III Tool Overview'!$H$6,Baseline_Data_2012!$B$2:$AV$281,Baseline_Data_2012!AW275,FALSE) -> 983.6875 | G20: Model Outcomes (Quintiles 1 & 2) | H20: 2 years | I20: 10 years | J20: 20 years | Y20: Aberdeen City Local Authority
G21: Years of life gained | H21: =Calculations!S86+Calculations!S107+Calculations!S129+Calculations!S150 -> 1.699197783 | I21: =Calculations!Y86+Calculations!Y107+Calculations!Y129+Calculations!Y150 -> 12.65177137 | J21: =Calculations!AB86+Calculations!AB107+Calculations!AB129+Calculations!AB150 -> 21.72852859 | Y21: Aberdeenshire Local Authority
C22: Number of smokers affected by tax | D22: =HLOOKUP('III Tool Overview'!$H$6,Baseline_Data_2012!$B$2:$AV$281,Baseline_Data_2012!AW278,FALSE) -> 2864.368182 | G22: Continuous inpatient stays prevented | H22: =Calculations!AE86+Calculations!AE107+Calculations!AE129+Calculations!AE150 -> 0.9473031341 | I22: =Calculations!AK86+Calculations!AK107+Calculations!AK129+Calculations!AK150 -> 7.218816208 | J22: =Calculations!AN86+Calculations!AN107+Calculations!AN129+Calculations!AN150 -> 12.63992907 | Y22: Angus Local Authority
C23: Of which, Q1 only: | D23: =HLOOKUP('III Tool Overview'!$H$6,Baseline_Data_2012!$B$2:$AV$281,Baseline_Data_2012!AW279,FALSE) -> 0 | Y23: Argyll & Bute Local Authority
C24: Of which, Q1 & Q2: | D24: =HLOOKUP('III Tool Overview'!$H$6,Baseline_Data_2012!$B$2:$AV$281,Baseline_Data_2012!AW280,FALSE) -> 786.95 | G24: Model Outcomes (comparative health inequalities) | H24: 2 years | I24: 10 years | J24: 20 years | Y24: Clackmannanshire Local Authority
G25: RII: Years of life lost (without intervention) | H25: =RII!H20 -> -0.9553741374 | I25: =RII!H39 -> -1.061047878 | J25: =RII!H58 -> -1.154775253 | Y25: Dumfries & Galloway Local Authority
C26: Annual continuous inpatient stays (2013) | D26: =HLOOKUP('III Tool Overview'!$H$6,Baseline_Data_2012!$B$2:$AW$287,Baseline_Data_2012!AW284,FALSE) -> 5624 | G26: RII: Years of life lost (with intervention) | H26: =RII!S20 -> -0.9555509959 | I26: =RII!S39 -> -1.061036269 | J26: =RII!S58 -> -1.154661459 | Y26: Dundee City Local Authority
C27: Of which, Q1 only: | D27: =HLOOKUP('III Tool Overview'!$H$6,Baseline_Data_2012!$B$2:$AW$287,Baseline_Data_2012!AW285,FALSE) -> 0 | G27: RII: years of life lost (difference) | H27: =H26-H25 -> -0.0001768585969 | I27: =I26-I25 -> 1.16087904e-05 | J27: 0.0001137943063 | Y27: East Ayrshire Local Authority
C28: Of which, Q1 & Q2: | D28: =HLOOKUP('III Tool Overview'!$H$6,Baseline_Data_2012!$B$2:$AW$287,Baseline_Data_2012!AW286,FALSE) -> 1342 | G28: RII: continuous inpatient stays (without intervention) | H28: =RII!H77 -> -1.306055013 | I28: =RII!H96 -> -1.39512898 | J28: =RII!H115 -> -1.495284863 | Y28: East Dunbartonshire Local Authority
G29: RII: continuous inpatient stays (with intervention) | H29: =RII!S77 -> -1.306273085 | I29: =RII!S96 -> -1.395211968 | J29: =RII!S115 -> -1.495300764 | Y29: East Lothian Local Authority
C30: Direct financial costs of intervention | G30: RII: continuous inpatient stays (difference) | H30: =H29-H28 -> -0.0002180721172 | I30: =I29-I28 -> -8.298760586e-05 | J30: -1.590120963e-05 | Y30: East Renfrewshire Local Authority
C31: Cost per intervention (£, 2012 prices) | D31: 0 | Y31: Edinburgh, City of Local Authority
G32: Direct financial savings | H32: 2 years | I32: 10 years | J32: 20 years | Y32: Eilean Siar Local Authority
G33: Reduced continuous inpatient stays (£'000s) - all | H33: =SUM(H18*2445)/1000 -> 7.226399024 | I33: =SUM(I18*2445)/1000 -> 58.60851952 | J33: 107.6887851 | Y33: Falkirk Local Authority
G34: Reduced continuous inpatient stays (£'000s) - Q 1 & 2 | H34: =(H22*2445)/1000 -> 2.316156163 | I34: =(I22*2445)/1000 -> 17.65000563 | J34: =(J22*2445)/1000 -> 30.90462657 | Y34: Fife Local Authority
Y35: Glasgow City Local Authority
G36: How are costs and financial savings estimated? | Y36: Highland Local Authority
G37: Direct costs associated with introduction of a tobacco tax are assumed to be zero. | Y37: Inverclyde Local Authority
G38: Geue et al. (2012) estimated the cost of a continuous inpatient stay at £2113 in 2006/07 - this has been adjusted to 2012/13 prices. | Y38: Midlothian Local Authority
Y39: Moray Local Authority
Y40: North Ayrshire Local Authority
Y41: North Lanarkshire Local Authority
Y42: Orkney Islands Local Authority
Y43: Perth & Kinross Local Authority
Y44: Renfrewshire Local Authority
Y45: Scottish Borders Local Authority
Y46: Shetland Islands Local Authority
Y47: South Ayrshire Local Authority
Y48: South Lanarkshire Local Authority
Y49: Stirling Local Authority
Y50: West Dunbartonshire Local Authority
Y51: West Lothian Local Authority

Sheet Notes
A1: Worksheet name | B1: What it does
A2: III Tool Overview | B2: • Gives the nature of the intervention (e.g. smoking cessation, changes in income distribution) and relevant baseline information (size of the target population, maximum number who might feasibly gain, hospitalisation data). Where appropriate it also provides cost per intervention and historic statistics on service provision. • Allows users to modify inputs (e.g. the geography being targeted, and where appropriate, the number of interventions and targeting strategy). • Reports on key outcomes: years of life gained and hospitalisations prevented due to the intervention; and changes in the relative index of inequality (for years of life lost and hospitalisations).
A3: Calculations | B3: Based on user inputs, the prevalence and population data in this workbook, and macros that run behind the scenes (incorporating assumptions about mortality, hospitalisations and the impact of interventions), this sheet calculates years of life lost and hospitalisations before and after the intervention, and the difference between the two scenarios.
A4: Targeting | B4: Provides the background information for allocating the total number of interventions by age group, sex and deprivation quintile. For the tobacco tax model the interventions are assumed to affect 80% of smokers in each age group/sex/SIMD quintile.
A5: Baseline_Data_2012 | B5: Provides baseline data on the size of the target population, maximum number who might feasibly gain, hospitalisation data and historic statistics on service provision where available. The size of the target population is calculated for Scotland by applying age/sex/SIMD decile prevalence rates (e.g. for smoking) to the age/sex/SIMD distribution of the total population. Local estimates are derived by weighting national age/sex/SIMD decile prevalence rates by the difference between local and national prevalence rates (separately for men and women). The number who might feasibly gain (as a proportion of the target population) varies between information – see commentary for more details.
A6: Prevalence | B6: Provides national and local prevalence rates of the at risk population by age/sex/SIMD decile, used in the calculations and baseline data. National estimates come from relevant national surveys (see commentary). Local estimates are derived by weighting national age/sex/SIMD decile prevalence rates by the difference between local and national prevalence rates (separately for men and women). Please note: For nine local authority areas the sample size was not considered large enough to produce robust results for hazardous/harmful drinking and obesity. As a second-best solution, and for completeness, we used prevalence rates for ‘aggregate geographies’ for these local authorities. These aggregate areas combined results from the relevant local authority with a second local authority defined as most similar to it according to the ONS 2001 Census classification. The aggregate geographies were as follows: • Argyll & Bute Local Authority: Argyll & Bute & Perth & Kinross • Clackmannanshire Local Authority: Clackmannanshire & Falkirk • East Dunbartonshire Local Authority: East Renfrewshire & East Dunbartonshire • East Lothian Local Authority: East Lothian & Midlothian • East Renfrewshire Local Authority: East Renfrewshire & East Dunbartonshire • Inverclyde Local Authority: West Dunbartonshire & Inverclyde • Midlothian Local Authority: East Lothian & Midlothian • Stirling Local Authority: Stirling & Perth & Kinross • West Dunbartonshire Local Authority: West Dunbartonshire & Inverclyde Users should note that the prevalence estimates shown are indicative only and included to inform modelling at a local level. As such, they should not be considered as representative of the ‘true’ prevalence of obesity and/or hazardous or harmful drinking for individual local authorities within each aggregate geography. Users should note that the prevalence estimates shown are indicative only and included to inform modelling at a local level. As such, they should not be considered as representative of the ‘true’ prevalence of obesity and/or hazardous or harmful drinking for individual local authorities within each aggregate geography.
A7: LookUpData_Pop | B7: Provides aggregate five-year population data by age/sex/SIMD quintile for 2007-2011, used to calculate the before and after impact of interventions. Five years of data was used to improve robustness of results and avoid disclosure issues.
A8: RII | B8: Calculates the Relative Index of Inequality for the III Tool Overview page. For more information on measuring inequalities in health, please see: http://www.scotpho.org.uk/downloads/scotphoreports/scotpho071009_measuringinequalities_rep.pdf

Sheet Calculations
A1: USING Scotland AS EXAMPLE. NEED TO ADD LOOKUP FOR MORTALITY WHEN UPDATE | B1: YEAR START | C1: 2012 | D1: AGE GROUP | E1: 16+ | I1: Cumulative incidence: years 2, 5, 10 and 20 | Q1: Years of life lost: years 2,5,10 and 20 | AC1: Hospitalisations: years 2,5,10 and 20 | AP1: LE Calculation
A2: Population Group | B2: mid-age | C2: Sex | D2: SIMD | E2: Prevalence exposure (smokers) | F2: Population aged 16+ 2007-11 | G2: Number treated at base | H2: Additional number treated under policy | I2: Baseline-2 | J2: Policy-2 | K2: Baseline-5 | L2: Policy-5 | M2: Baseline-10 | N2: Policy-10 | O2: Baseline-20 | P2: Policy-20 | Q2: Baseline-2 | R2: Policy-2 | S2: Diff YLL-2 | T2: Baseline-5 | U2: Policy-5 | V2: Diff YLL-5 | W2: Baseline-10 | X2: Policy-10 | Y2: Diff YLL-10 | Z2: Baseline-20 | AA2: Policy-20 | AB2: Diff YLL-20 | AC2: Baseline-2 | AD2: Policy-2 | AE2: Diff hosp-2 years | AF2: Baseline-5 | AG2: Policy-5 | AH2: Diff hosp - 5 years | AI2: Baseline-10 | AJ2: Policy-10 | AK2: Diff hosp - 10 years | AL2: Baseline-20 | AM2: Policy-20 | AN2: Diff hosp - 20 years | AP2: Ax | AQ2: Width of interval | AR2: LE
A3: All, by SIMD
A4: Total | F4: =SUM(F5:F9) -> 17012.8 | G4: =SUM(G5:G9) -> 0 | H4: =SUM(H5:H9) -> 2864.368182 | I4: =SUM(I5:I9) -> 172.7927461 | J4: =SUM(J5:J9) -> 172.6369058 | K4: =SUM(K5:K9) -> 710.6408062 | L4: =SUM(L5:L9) -> 710.064172 | M4: =SUM(M5:M9) -> 1668.517262 | N4: =SUM(N5:N9) -> 1667.347122 | O4: =SUM(O5:O9) -> 3777.975118 | P4: =SUM(P5:P9) -> 3775.934985 | Q4: =SUM(Q5:Q9) -> 4510.895674 | R4: =SUM(R5:R9) -> 4505.793771 | S4: =SUM(S5:S9) -> 5.101902991 | T4: =SUM(T5:T9) -> 18004.28256 | U4: =SUM(U5:U9) -> 17984.85498 | V4: =SUM(V5:V9) -> 19.42758066 | W4: =SUM(W5:W9) -> 40167.09395 | X4: =SUM(X5:X9) -> 40126.59681 | Y4: =SUM(Y5:Y9) -> 40.49713661 | Z4: =SUM(Z5:Z9) -> 81746.85437 | AA4: =SUM(AA5:AA9) -> 81673.75242 | AB4: =SUM(AB5:AB9) -> 73.10194961 | AC4: =SUM(AC5:AC9) -> 4122.590901 | AD4: =SUM(AD5:AD9) -> 4119.635319 | AE4: =SUM(AE5:AE9) -> 2.955582423 | AF4: =SUM(AF5:AF9) -> 16756.36878 | AG4: =SUM(AG5:AG9) -> 16745.01737 | AH4: 11.3514064 | AI4: =SUM(AI5:AI9) -> 38617.36957 | AJ4: =SUM(AJ5:AJ9) -> 38593.39881 | AK4: =SUM(AK5:AK9) -> 23.97076463 | AL4: =SUM(AL5:AL9) -> 84583.47833 | AM4: =SUM(AM5:AM9) -> 84539.43384 | AN4: =SUM(AN5:AN9) -> 44.04449287
A5: Q 1 | B5: n/a | C5: both | D5: 1 | E5: =HLOOKUP('III Tool Overview'!$H$6,Prevalence!$B$2:$AV$268,Prevalence!AW3,FALSE) -> 0 | F5: =F12+F19 -> 0 | G5: =G12+G19 -> 0 | H5: =H12+H19 -> 0 | I5: =I12+I19 -> 0 | J5: 0 | K5: 0 | L5: 0 | M5: 0 | N5: 0 | O5: 0 | P5: 0 | Q5: 0 | R5: 0 | S5: =S12+S19 -> 0 | T5: 0 | U5: 0 | V5: 0 | W5: 0 | X5: 0 | Y5: 0 | Z5: 0 | AA5: 0 | AB5: 0 | AC5: 0 | AD5: 0 | AE5: 0 | AF5: 0 | AG5: 0 | AH5: =AH12+AH19 -> 0 | AI5: 0 | AJ5: 0 | AK5: 0 | AL5: 0 | AM5: 0 | AN5: 0
A6: Q 2 | B6: n/a | C6: both | D6: 2 | E6: =HLOOKUP('III Tool Overview'!$H$6,Prevalence!$B$2:$AV$268,Prevalence!AW4,FALSE) -> 0 | F6: =F13+F20 -> 3661.2 | G6: =G13+G20 -> 0 | H6: 786.95 | I6: =I13+I20 -> 50.93014669 | J6: 50.87517777 | K6: 205.3116259 | L6: 205.1194047 | M6: 467.1796437 | N6: 466.8150276 | O6: 1001.022266 | P6: 1000.446766 | Q6: 1302.438323 | R6: 1300.739125 | S6: 1.699197783 | T6: 5135.12747 | U6: 5128.834835 | V6: 6.292635117 | W6: 11256.0055 | X6: 11243.35373 | Y6: 12.65177137 | Z6: 22298.02162 | AA6: 22276.29309 | AB6: 21.72852859 | AC6: 1082.421066 | AD6: 1081.473763 | AE6: 0.9473031341 | AF6: 4353.351313 | AG6: 4349.812617 | AH6: =AH13+AH20 -> 3.538695302 | AI6: 9864.887502 | AJ6: 9857.668686 | AK6: 7.218816208 | AL6: 20941.80196 | AM6: 20929.16203 | AN6: 12.63992907
A7: Q 3 | B7: n/a | C7: both | D7: 3 | E7: =HLOOKUP('III Tool Overview'!$H$6,Prevalence!$B$2:$AV$268,Prevalence!AW5,FALSE) -> 0 | F7: =F14+F21 -> 3573.6 | G7: 0 | H7: 507.7418182 | I7: =I14+I21 -> 40.94628159 | J7: 40.91404671 | K7: 167.6994327 | L7: 167.5817069 | M7: 390.8792186 | N7: 390.6472199 | O7: 872.0731338 | P7: 871.6909856 | Q7: 1051.565647 | R7: 1050.549728 | S7: 1.01591925 | T7: 4185.029759 | U7: 4181.205219 | V7: 3.824539735 | W7: 9295.365589 | X7: 9287.537383 | Y7: 7.828205974 | Z7: 18778.07624 | AA7: 18764.34443 | AB7: 13.73180857 | AC7: 917.7436584 | AD7: 917.1814345 | AE7: 0.5622238738 | AF7: 3719.889127 | AG7: 3717.755133 | AH7: =AH14+AH21 -> 2.133993587 | AI7: 8532.692052 | AJ7: 8528.275094 | AK7: 4.416957958 | AL7: 18509.76969 | AM7: 18501.92889 | AN7: 7.84079859
A8: Q 4 | B8: n/a | C8: both | D8: 4 | E8: =HLOOKUP('III Tool Overview'!$H$6,Prevalence!$B$2:$AV$268,Prevalence!AW6,FALSE) -> 0 | F8: =F15+F22 -> 9249 | G8: 0 | H8: 1527.618182 | I8: =I15+I22 -> 77.69881832 | J8: 77.63129338 | K8: 324.0403391 | L8: 323.7782876 | M8: 777.1756142 | N8: 776.6131388 | O8: 1823.479624 | P8: 1822.421757 | Q8: 2072.45214 | R8: 2070.111143 | S8: 2.340996326 | T8: 8341.722855 | U8: 8332.597707 | V8: 9.125147291 | W8: 18833.39866 | X8: 18813.80117 | Y8: 19.5974985 | Z8: 39011.62754 | AA8: 38974.83992 | AB8: 36.78762048 | AC8: 2020.842642 | AD8: 2019.430346 | AE8: 1.412295872 | AF8: 8264.822971 | AG8: 8259.280869 | AH8: =AH15+AH22 -> 5.542101906 | AI8: 19234.66233 | AJ8: 19222.63788 | AK8: 12.02444954 | AL8: 42879.63576 | AM8: 42856.71303 | AN8: 22.92272768
A9: Q 5 | B9: n/a | C9: both | D9: 5 | E9: =HLOOKUP('III Tool Overview'!$H$6,Prevalence!$B$2:$AV$268,Prevalence!AW7,FALSE) -> 0 | F9: =F16+F23 -> 529 | G9: 0 | H9: 42.05818182 | I9: =I16+I23 -> 3.217499515 | J9: 3.216387916 | K9: 13.58940865 | L9: 13.58477285 | M9: 33.28278569 | N9: 33.27173534 | O9: 81.40009334 | P9: 81.37547679 | Q9: 84.43956408 | R9: 84.39377445 | S9: 0.04578963086 | T9: 342.4024747 | U9: 342.2172162 | V9: 0.1852585175 | W9: 782.3241937 | X9: 781.9045329 | Y9: 0.4196607666 | Z9: 1659.128969 | AA9: 1658.274977 | AB9: 0.8539919662 | AC9: 101.5835347 | AD9: 101.5497751 | AE9: 0.0337595432 | AF9: 418.3053691 | AG9: 418.1687535 | AH9: =AH16+AH23 -> 0.1366156023 | AI9: 985.1276938 | AJ9: 984.8171529 | AK9: 0.3105409278 | AL9: 2252.270936 | AM9: 2251.629899 | AN9: 0.6410375362
A10: Males, by SIMD
A11: Males | F11: =SUM(F12:F16) -> 8323.6 | G11: =SUM(G12:G16) -> 0 | H11: =SUM(H12:H16) -> 1963.61 | I11: =SUM(I12:I16) -> 89.48731558 | J11: =SUM(J12:J16) -> 89.37783219 | K11: =SUM(K12:K16) -> 367.6203799 | L11: =SUM(L12:L16) -> 367.2125005 | M11: =SUM(M12:M16) -> 862.0449492 | N11: =SUM(N12:N16) -> 861.2135371 | O11: =SUM(O12:O16) -> 1946.060633 | P11: =SUM(P12:P16) -> 1944.615657 | Q11: =SUM(Q12:Q16) -> 2617.075709 | R11: =SUM(R12:R16) -> 2613.326269 | S11: =SUM(S12:S16) -> 3.749440418 | T11: =SUM(T12:T16) -> 10445.19084 | U11: =SUM(U12:U16) -> 10430.93198 | V11: =SUM(V12:V16) -> 14.25886062 | W11: =SUM(W12:W16) -> 23286.57144 | X11: =SUM(X12:X16) -> 23256.97372 | Y11: =SUM(Y12:Y16) -> 29.59771602 | Z11: =SUM(Z12:Z16) -> 47199.72299 | AA11: =SUM(AA12:AA16) -> 47146.76634 | AB11: =SUM(AB12:AB16) -> 52.95665033 | AC11: =SUM(AC12:AC16) -> 2012.787969 | AD11: =SUM(AD12:AD16) -> 2010.844439 | AE11: =SUM(AE12:AE16) -> 1.943530203 | AF11: =SUM(AF12:AF16) -> 8219.800857 | AG11: =SUM(AG12:AG16) -> 8212.339644 | AH11: =SUM(AH12:AH16) -> 7.461212616 | AI11: =SUM(AI12:AI16) -> 19089.22247 | AJ11: =SUM(AJ12:AJ16) -> 19073.49409 | AK11: =SUM(AK12:AK16) -> 15.72838063 | AL11: =SUM(AL12:AL16) -> 42391.78389 | AM11: =SUM(AM12:AM16) -> 42363.06879 | AN11: =SUM(AN12:AN16) -> 28.7150949 | AR11: =LE(#REF!,AQ25:AQ43,AP25:AP43,19) -> 
A12: Q 1 | B12: n/a | C12: male | D12: 1 | E12: =HLOOKUP('III Tool Overview'!$H$6,Prevalence!$B$2:$AV$268,Prevalence!AW10,FALSE) -> 0 | F12: =F86 -> 0 | G12: =G86 -> 0 | H12: =H86 -> 0 | I12: =I86 -> 0 | J12: =J86 -> 0 | K12: 0 | L12: 0 | M12: 0 | N12: 0 | O12: 0 | P12: 0 | Q12: 0 | R12: 0 | S12: 0 | T12: 0 | U12: 0 | V12: 0 | W12: 0 | X12: 0 | Y12: 0 | Z12: 0 | AA12: 0 | AB12: 0 | AC12: 0 | AD12: 0 | AE12: 0 | AF12: 0 | AG12: 0 | AH12: 0 | AI12: 0 | AJ12: 0 | AK12: 0 | AL12: 0 | AM12: 0 | AN12: 0 | AR12: =LE(#REF!,AQ66:AQ84,AP66:AP84,19) -> 
A13: Q 2 | B13: n/a | C13: male | D13: 2 | E13: =HLOOKUP('III Tool Overview'!$H$6,Prevalence!$B$2:$AV$268,Prevalence!AW11,FALSE) -> 0 | F13: =F129 -> 1777.6 | G13: =G129 -> 0 | H13: =H129 -> 504.05 | I13: =I129 -> 26.18783597 | J13: 26.15133572 | K13: 105.502866 | L13: 105.3745743 | M13: 239.852423 | N13: 239.6093229 | O13: 511.8857717 | P13: 511.5093841 | Q13: 748.8775598 | R13: 747.6959226 | S13: 1.181637142 | T13: 2950.718247 | U13: 2946.358219 | V13: 4.360027573 | W13: 6454.664776 | X13: 6445.974109 | Y13: 8.690667161 | Z13: 12708.68238 | AA13: 12693.96421 | AB13: 14.71817051 | AC13: 525.6432359 | AD13: 525.0617413 | AE13: 0.5814945191 | AF13: 2121.228687 | AG13: 2119.068886 | AH13: 2.159800925 | AI13: 4832.686953 | AJ13: 4828.322051 | AK13: 4.364901323 | AL13: 10355.84262 | AM13: 10348.32951 | AN13: 7.51311623 | AR13: =LE(#REF!,AQ109:AQ127,AP109:AP127,19) -> 
A14: Q 3 | B14: n/a | C14: male | D14: 3 | E14: =HLOOKUP('III Tool Overview'!$H$6,Prevalence!$B$2:$AV$268,Prevalence!AW12,FALSE) -> 0 | F14: =F172 -> 1742.8 | G14: =G172 -> 0 | H14: =H172 -> 336.06 | I14: 20.29317286 | J14: 20.27055045 | K14: 83.16863914 | L14: 83.08615245 | M14: 194.3315502 | N14: 194.170018 | O14: 436.1436571 | P14: 435.8802068 | Q14: 598.4879329 | R14: 597.7502789 | S14: 0.7376540368 | T14: 2387.103843 | U14: 2384.339068 | V14: 2.764775117 | W14: 5317.4926 | X14: 5311.872426 | Y14: 5.62017364 | Z14: 10763.00803 | AA14: 10753.23088 | AB14: 9.777157557 | AC14: 441.8276911 | AD14: 441.4633849 | AE14: 0.3643061338 | AF14: 1801.474173 | AG14: 1800.098107 | AH14: 1.376065756 | AI14: 4172.541613 | AJ14: 4169.714919 | AK14: 2.826694653 | AL14: 9213.447198 | AM14: 9208.492334 | AN14: 4.954864142 | AR14: =LE(#REF!,AQ152:AQ170,AP152:AP170,19) -> 
A15: Q 4 | B15: n/a | C15: male | D15: 4 | E15: =HLOOKUP('III Tool Overview'!$H$6,Prevalence!$B$2:$AV$268,Prevalence!AW13,FALSE) -> 0 | F15: =F215 -> 4548.6 | G15: =G215 -> 0 | H15: =H215 -> 1097.5 | I15: 41.23720474 | J15: 41.18770905 | K15: 171.4922328 | L15: 171.2987102 | M15: 409.6520808 | N15: 409.2336985 | O15: 953.820142 | P15: 953.0329858 | Q15: 1218.670548 | R15: 1216.875618 | S15: 1.794930047 | T15: 4900.723799 | U15: 4893.731099 | V15: 6.992700262 | W15: 11043.98059 | X15: 11029.00928 | Y15: 14.97131295 | Z15: 22743.06249 | AA15: 22715.22249 | AB15: 27.84000215 | AC15: 994.9132304 | AD15: 993.9369356 | AE15: 0.9762947518 | AF15: 4088.488414 | AG15: 4084.649598 | AH15: 3.838816505 | AI15: 9588.781396 | AJ15: 9580.440098 | AK15: 8.341297746 | AL15: 21675.04704 | AM15: 21659.1948 | AN15: 15.85223979 | AR15: =LE(#REF!,AQ195:AQ213,AP195:AP213,19) -> 
A16: Q 5 | B16: n/a | C16: male | D16: 5 | E16: =HLOOKUP('III Tool Overview'!$H$6,Prevalence!$B$2:$AV$268,Prevalence!AW14,FALSE) -> 0 | F16: =F258 -> 254.6 | G16: =G258 -> 0 | H16: =H258 -> 26 | I16: 1.769102015 | J16: 1.768236978 | K16: 7.456641986 | L16: 7.453063601 | M16: 18.20889523 | N16: 18.20049768 | O16: 44.21106192 | P16: 44.19308015 | Q16: 51.03966835 | R16: 51.00444916 | S16: 0.03521919257 | T16: 206.6449541 | U16: 206.5035965 | V16: 0.1413576625 | W16: 470.4334715 | X16: 470.1179092 | Y16: 0.3155622696 | Z16: 984.9700788 | AA16: 984.3487587 | AB16: 0.621320118 | AC16: 50.40381164 | AD16: 50.38237685 | AE16: 0.02143479835 | AF16: 208.6095834 | AG16: 208.523054 | AH16: 0.08652942953 | AI16: 495.2125092 | AJ16: 495.0170222 | AK16: 0.1954869127 | AL16: 1147.447024 | AM16: 1147.052149 | AN16: 0.3948747294 | AR16: =LE(#REF!,AQ195:AQ213,AP195:AP213,19) -> 
A17: Females, by SIMD
A18: Females | F18: =SUM(F19:F23) -> 8689.2 | G18: =SUM(G19:G23) -> 0 | H18: 900.7581818 | I18: 83.30543053 | J18: 83.25907358 | K18: 343.0204263 | L18: 342.8516715 | M18: 806.4723131 | N18: 806.1335846 | O18: 1831.914485 | P18: 1831.319328 | Q18: 1893.819965 | R18: 1892.467502 | S18: 1.352462573 | T18: 7559.091715 | U18: 7553.922995 | V18: 5.168720045 | W18: 16880.52251 | X18: 16869.62309 | Y18: 10.89942059 | Z18: 34547.13138 | AA18: 34526.98608 | AB18: 20.14529928 | AC18: 2109.802933 | AD18: 2108.79088 | AE18: 1.01205222 | AF18: 8536.567922 | AG18: 8532.677728 | AH18: 3.890193781 | AI18: 19528.1471 | AJ18: 19519.90472 | AK18: 8.242383996 | AL18: 42191.69445 | AM18: 42176.36505 | AN18: 15.32939798 | AR18: =LE(#REF!,AQ45:AQ63,AP45:AP63,19) -> 
A19: Q 1 | B19: n/a | C19: female | D19: 1 | E19: =HLOOKUP('III Tool Overview'!$H$6,Prevalence!$B$2:$AV$268,Prevalence!AW17,FALSE) -> 0 | F19: =F107 -> 0 | G19: =G107 -> 0 | H19: =H107 -> 0 | I19: =I107 -> 0 | J19: 0 | K19: 0 | L19: =L107 -> 0 | M19: 0 | N19: 0 | O19: 0 | P19: 0 | Q19: 0 | R19: 0 | S19: 0 | T19: 0 | U19: 0 | V19: 0 | W19: 0 | X19: 0 | Y19: 0 | Z19: 0 | AA19: 0 | AB19: 0 | AC19: 0 | AD19: 0 | AE19: 0 | AF19: 0 | AG19: 0 | AH19: 0 | AI19: 0 | AJ19: 0 | AK19: 0 | AL19: 0 | AM19: 0 | AN19: 0 | AR19: =LE(#REF!,AQ87:AQ105,AP87:AP105,19) -> 
A20: Q 2 | B20: n/a | C20: female | D20: 2 | E20: =HLOOKUP('III Tool Overview'!$H$6,Prevalence!$B$2:$AV$268,Prevalence!AW18,FALSE) -> 0 | F20: =F150 -> 1883.6 | G20: =G150 -> 0 | H20: =H150 -> 282.9 | I20: 24.74231072 | J20: 24.72384205 | K20: 99.8087599 | L20: 99.74483036 | M20: 227.3272207 | N20: 227.2057047 | O20: 489.1364947 | P20: 488.9373817 | Q20: 553.5607633 | R20: 553.0432027 | S20: 0.5175606417 | T20: 2184.409223 | U20: 2182.476615 | V20: 1.932607543 | W20: 4801.340728 | X20: 4797.379623 | Y20: 3.96110421 | Z20: 9589.339234 | AA20: 9582.328876 | AB20: 7.010358083 | AC20: 556.7778303 | AD20: 556.4120217 | AE20: 0.3658086151 | AF20: 2232.122626 | AG20: 2230.743732 | AH20: 1.378894377 | AI20: 5032.200549 | AJ20: 5029.346634 | AK20: 2.853914885 | AL20: 10585.95934 | AM20: 10580.83252 | AN20: 5.126812838 | AR20: =LE(#REF!,AQ130:AQ148,AP130:AP148,19) -> 
A21: Q 3 | B21: n/a | C21: female | D21: 3 | E21: =HLOOKUP('III Tool Overview'!$H$6,Prevalence!$B$2:$AV$268,Prevalence!AW19,FALSE) -> 0 | F21: =F193 -> 1830.8 | G21: =G193 -> 0 | H21: =H193 -> 171.6818182 | I21: 20.65310873 | J21: 20.64349626 | K21: 84.53079353 | L21: 84.49555447 | M21: 196.5476684 | N21: 196.4772019 | O21: 435.9294767 | P21: 435.8107788 | Q21: 453.0777141 | R21: 452.7994489 | S21: 0.2782652132 | T21: 1797.925916 | U21: 1796.866151 | V21: 1.059764618 | W21: 3977.87299 | X21: 3975.664957 | Y21: 2.208032334 | Z21: 8015.068207 | AA21: 8011.113556 | AB21: 3.954651017 | AC21: 475.9159673 | AD21: 475.7180495 | AE21: 0.19791774 | AF21: 1918.414954 | AG21: 1917.657026 | AH21: 0.7579278305 | AI21: 4360.150439 | AJ21: 4358.560176 | AK21: 1.590263305 | AL21: 9296.322489 | AM21: 9293.436555 | AN21: 2.885934448 | AR21: =LE(#REF!,AQ173:AQ191,AP173:AP191,19) -> 
A22: Q 4 | B22: n/a | C22: female | D22: 4 | E22: =HLOOKUP('III Tool Overview'!$H$6,Prevalence!$B$2:$AV$268,Prevalence!AW20,FALSE) -> 0 | F22: =F236 -> 4700.4 | G22: =G236 -> 0 | H22: =H236 -> 430.1181818 | I22: 36.46161358 | J22: 36.44358433 | K22: 152.5481062 | L22: 152.4795774 | M22: 367.5235335 | N22: 367.3794403 | O22: 869.6594824 | P22: 869.3887709 | Q22: 853.7815917 | R22: 853.2355254 | S22: 0.5460662796 | T22: 3440.999056 | U22: 3438.866609 | V22: 2.132447029 | W22: 7789.418074 | X22: 7784.791889 | Y22: 4.626185552 | Z22: 16268.56505 | AA22: 16259.61743 | AB22: 8.947618331 | AC22: 1025.929412 | AD22: 1025.493411 | AE22: 0.4360011198 | AF22: 4176.334556 | AG22: 4174.631271 | AH22: 1.703285401 | AI22: 9645.880929 | AJ22: 9642.197777 | AK22: 3.683151791 | AL22: 21204.58871 | AM22: 21197.51822 | AN22: 7.070487883 | AR22: =LE(#REF!,AQ216:AQ234,AP216:AP234,19) -> 
A23: Q 5 | B23: n/a | C23: female | D23: 5 | E23: =HLOOKUP('III Tool Overview'!$H$6,Prevalence!$B$2:$AV$268,Prevalence!AW21,FALSE) -> 0 | F23: =F279 -> 274.4 | G23: =G279 -> 0 | H23: =H279 -> 16.05818182 | I23: 1.4483975 | J23: 1.448150939 | K23: 6.132766664 | L23: 6.131709249 | M23: 15.07389047 | N23: 15.07123766 | O23: 37.18903142 | P23: 37.18239665 | Q23: 33.39989573 | R23: 33.3893253 | S23: 0.01057043828 | T23: 135.7575206 | U23: 135.7136197 | V23: 0.04390085501 | W23: 311.8907222 | X23: 311.7866237 | Y23: 0.104098497 | Z23: 674.1588906 | AA23: 673.9262188 | AB23: 0.2326718482 | AC23: 51.17972301 | AD23: 51.16739826 | AE23: 0.01232474485 | AF23: 209.6957857 | AG23: 209.6456996 | AH23: 0.05008617281 | AI23: 489.9151846 | AJ23: 489.8001306 | AK23: 0.1150540152 | AL23: 1104.823912 | AM23: 1104.577749 | AN23: 0.2461628067 | AR23: =LE(#REF!,AQ259:AQ277,AP259:AP277,19) -> 
A24: age/sex breakdown: All
A25: Male <1 | B25: 0.5 | C25: male | D25: all | F25: =F66+F109+F152+F195+F238 -> 107.8 | AP25: 0.1 | AQ25: 1
A26: Male 1-4 | B26: 2.5 | C26: male | D26: all | F26: =F67+F110+F153+F196+F239 -> 415.4 | AP26: 0.5 | AQ26: 4
A27: Male 5-9 | B27: 7.5 | C27: male | D27: all | F27: 488.2 | AP27: 0.5 | AQ27: 5
A28: Male 10-14 | B28: 12.5 | C28: male | D28: all | F28: 648 | AP28: 0.5 | AQ28: 5
A29: Male 15-19 | B29: 17.5 | C29: male | D29: all | E29: 0.23 | F29: 633.8 | G29: =G70+G113+G156+G199+G242 -> 0 | H29: 111.26 | I29: 0.3232909913 | J29: 0.3228758968 | K29: 1.41310299 | L29: 1.411302398 | M29: 3.705222848 | N29: 3.700568451 | O29: 10.82004421 | P29: 10.80692883 | Q29: 26.1865703 | R29: 26.15294764 | S29: 0.03362266005 | T29: 112.2398131 | U29: 112.0967849 | V29: 0.1430282278 | W29: 283.8854826 | X29: 283.5287167 | Y29: 0.3567659228 | Z29: 760.8073895 | AA29: 759.8830304 | AB29: 0.9243591206 | AC29: 42.40729363 | AD29: 42.3719511 | AE29: 0.03534253117 | AF29: 179.1701011 | AG29: 179.0220474 | AH29: 0.148053796 | AI29: 442.4538406 | AJ29: 442.0938711 | AK29: 0.3599694506 | AL29: 1132.422154 | AM29: 1131.534733 | AN29: 0.8874213933 | AP29: 0.5 | AQ29: 5
A30: Male 20-24 | B30: 22.5 | C30: male | D30: all | E30: 0.23 | F30: 517.6 | G30: =G71+G114+G157+G200+G243 -> 0 | H30: 128.72 | I30: 0.3567305905 | J30: 0.3560800098 | K30: 1.558697366 | L30: 1.555878363 | M30: 4.083833924 | N30: 4.076563763 | O30: 11.89713476 | P30: 11.87679565 | Q30: 27.46825547 | R30: 27.41816075 | S30: 0.05009472083 | T30: 117.5697411 | U30: 117.3570899 | V30: 0.2126512095 | W30: 296.5658995 | X30: 296.0376721 | Y30: 0.5282273715 | Z30: 789.0858369 | AA30: 787.7330121 | AB30: 1.352824777 | AC30: 40.06638243 | AD30: 40.01900988 | AE30: 0.04737255058 | AF30: 169.2259106 | AG30: 169.027688 | AH30: 0.1982225611 | AI30: 417.6243939 | AJ30: 417.1435769 | AK30: 0.4808169765 | AL30: 1066.798109 | AM30: 1065.621079 | AN30: 1.177030119 | AP30: 0.5 | AQ30: 5
A31: Male 25-29 | B31: 27.5 | C31: male | D31: all | E31: 0.28 | F31: 481 | G31: =G72+G115+G158+G201+G244 -> 0 | H31: 156.16 | I31: 0.5176238318 | J31: 0.5164795729 | K31: 2.259901862 | L31: 2.254953223 | M31: 5.911092658 | N31: 5.898381716 | O31: 17.13094555 | P31: 17.09583215 | Q31: 36.75129206 | R31: 36.67004967 | S31: 0.0812423878 | T31: 156.9023822 | U31: 156.5587662 | V31: 0.3436159264 | W31: 393.8174677 | X31: 392.9700718 | Y31: 0.8473959128 | Z31: 1033.849827 | AA31: 1031.722854 | AB31: 2.126973024 | AC31: 46.22894032 | AD31: 46.16036388 | AE31: 0.06857643981 | AF31: 195.1182318 | AG31: 194.8318538 | AH31: 0.2863780319 | AI31: 480.8356148 | AJ31: 480.1437926 | AK31: 0.6918222027 | AL31: 1223.06915 | AM31: 1221.396159 | AN31: 1.672990436 | AP31: 0.5 | AQ31: 5
A32: Male 30-34 | B32: 32.5 | C32: male | D32: all | E32: 0.28 | F32: 471 | G32: =G73+G116+G159+G202+G245 -> 0 | H32: 146.37 | I32: 0.6804398502 | J32: 0.6790504466 | K32: 2.968495795 | L32: 2.962497666 | M32: 7.752189461 | N32: 7.736840624 | O32: 22.35647638 | P32: 22.31457121 | Q32: 45.58946996 | R32: 45.49637992 | S32: 0.09309003763 | T32: 194.2270772 | U32: 193.8345723 | V32: 0.3925049507 | W32: 485.4982646 | X32: 484.5362649 | Y32: 0.9619997332 | Z32: 1260.295296 | AA32: 1257.92214 | AB32: 2.373156302 | AC32: 52.20775211 | AD32: 52.13525763 | AE32: 0.07249447857 | AF32: 220.207672 | AG32: 219.9054947 | AH32: 0.3021772876 | AI32: 541.9326225 | AJ32: 541.205421 | AK32: 0.7272014495 | AL32: 1372.986883 | AM32: 1371.248387 | AN32: 1.738496317 | AP32: 0.5 | AQ32: 5
A33: Male 35-39 | B33: 37.5 | C33: male | D33: all | E33: 0.32 | F33: 591.2 | G33: =G74+G117+G160+G203+G246 -> 0 | H33: 162.14 | I33: 1.289628715 | J33: 1.287285982 | K33: 5.617815707 | L33: 5.607741865 | M33: 14.6253051 | N33: 14.59974068 | O33: 41.77581047 | P33: 41.70781289 | Q33: 78.66735162 | R33: 78.52444491 | S33: =S74+S117+S160+S203+S246 -> 0.1429067117 | T33: 333.8704999 | U33: 333.2716993 | V33: 0.5988005467 | W33: 828.2991132 | X33: 826.8497122 | Y33: 1.449400975 | Z33: 2106.233533 | AA33: 2102.781928 | AB33: 3.451605525 | AC33: 79.74443259 | AD33: 79.64577961 | AE33: 0.09865298274 | AF33: 335.9151036 | AG33: 335.5056139 | AH33: 0.4094896959 | AI33: 824.4832747 | AJ33: 823.5063083 | AK33: 0.9769663523 | AL33: 2072.458262 | AM33: 2070.182546 | AN33: 2.275716123 | AP33: 0.5 | AQ33: 5
A34: Male 40-44 | B34: 42.5 | C34: male | D34: all | E34: 0.32 | F34: 810.4 | G34: =G75+G118+G161+G204+G247 -> 0 | H34: 208.76 | I34: 2.339875942 | J34: 2.335898452 | K34: 10.17824977 | L34: 10.16120826 | M34: 26.41851962 | N34: 26.37560241 | O34: 74.7737701 | P34: 74.66231118 | Q34: 133.3729287 | R34: 133.1462118 | S34: 0.2267169253 | T34: 564.1989343 | U34: 563.2540829 | V34: 0.9448513928 | W34: 1390.718878 | X34: 1388.45651 | Y34: 2.262368655 | Z34: 3474.043493 | AA34: 3468.818141 | AB34: 5.225351648 | AC34: 124.9826223 | AD34: 124.8373941 | AE34: 0.1452281989 | AF34: 525.8155618 | AG34: 525.2150356 | AH34: 0.6005262041 | AI34: 1287.285725 | AJ34: 1285.864158 | AK34: 1.421566961 | AL34: 3211.68212 | AM34: 3208.44767 | AN34: 3.234449978 | AP34: 0.5 | AQ34: 5
A35: Male 45-49 | B35: 47.5 | C35: male | D35: all | E35: 0.27 | F35: 819.4 | G35: =G76+G119+G162+G205+G248 -> 0 | H35: 236.71 | I35: 3.64566228 | J35: 3.638466682 | K35: 15.80745714 | L35: 15.77691258 | M35: 40.75621599 | N35: 40.68078338 | O35: 113.0516641 | P35: 112.8673698 | Q35: 185.9287763 | R35: 185.5618008 | S35: 0.3669754924 | T35: 781.4325977 | U35: 779.9221164 | V35: 1.510481325 | W35: 1901.597263 | X35: 1898.069794 | Y35: 3.527469127 | Z35: 4585.015211 | AA35: 4577.422005 | AB35: 7.59320567 | AC35: 155.6723715 | AD35: 155.4655785 | AE35: 0.2067930391 | AF35: 653.1086449 | AG35: 652.2618059 | AH35: 0.8468390544 | AI35: 1589.91275 | AJ35: 1587.9478 | AK35: 1.964950761 | AL35: 3902.551892 | AM35: 3898.341334 | AN35: 4.210557335 | AP35: 0.5 | AQ35: 5
A36: Male 50-54 | B36: 52.5 | C36: male | D36: all | E36: 0.27 | F36: 754.4 | G36: =G77+G120+G163+G206+G249 -> 0 | H36: 218.07 | I36: 4.521853408 | J36: 4.513001809 | K36: 19.54434526 | L36: 19.50708491 | M36: 50.06031636 | N36: 49.96990992 | O36: 136.170286 | P36: 135.9612518 | Q36: 212.5271102 | R36: 212.111085 | S36: 0.4160251395 | T36: 888.0366372 | U36: 886.3428311 | V36: 1.693806037 | W36: 2136.259587 | X36: 2132.389499 | Y36: 3.870087224 | Z36: 4990.836285 | AA36: 4982.996433 | AB36: 7.839851732 | AC36: 165.8116839 | AD36: 165.5926838 | AE36: 0.2190001262 | AF36: 693.7235858 | AG36: 692.834596 | AH36: 0.8889897881 | AI36: 1679.378601 | AJ36: 1677.352848 | AK36: 2.025753319 | AL36: 4057.228409 | AM36: 4053.117117 | AN36: 4.11129283 | AP36: 0.5 | AQ36: 5
A37: Male 55-59 | B37: 57.5 | C37: male | D37: all | E37: 0.23 | F37: 740.4 | G37: =G78+G121+G164+G207+G250 -> 0 | H37: 172.98 | I37: 6.837009464 | J37: 6.825816403 | K37: 29.35459148 | L37: 29.30845639 | M37: 74.17009501 | N37: 74.06297372 | O37: 194.0031981 | P37: 193.7866281 | Q37: 280.317388 | R37: 279.8584725 | S37: 0.458915494 | T37: 1157.816648 | U37: 1155.995408 | V37: 1.821239877 | W37: 2722.547485 | X37: 2718.592427 | Y37: 3.955057798 | Z37: 5984.034105 | AA37: 5977.037399 | AB37: 6.996705781 | AC37: 200.6732291 | AD37: 200.455991 | AE37: 0.217238116 | AF37: 834.7636819 | AG37: 833.9004341 | AH37: 0.8632477597 | AI37: 1997.741688 | AJ37: 1995.858671 | AK37: 1.883017317 | AL37: 4675.529741 | AM37: 4672.170075 | AN37: 3.359666155 | AP37: 0.5 | AQ37: 5
A38: Male 60-64 | B38: 62.5 | C38: male | D38: all | E38: 0.23 | F38: 744 | G38: =G79+G122+G165+G208+G251 -> 0 | H38: 163.7 | I38: 9.258737883 | J38: 9.244736065 | K38: 39.49430404 | L38: 39.43759975 | M38: 98.48424736 | N38: 98.35734092 | O38: 248.2992397 | P38: 248.0698695 | Q38: 342.5733017 | R38: 342.0552344 | S38: 0.5180672463 | T38: 1399.984407 | U38: 1397.971908 | V38: 2.012499273 | W38: 3224.288454 | X38: 3220.09804 | Y38: 4.190414435 | Z38: 6712.099115 | AA38: 6705.435172 | AB38: 6.663943353 | AC38: 233.2445621 | AD38: 233.0086852 | AE38: 0.2358769562 | AF38: 964.7461982 | AG38: 963.8257479 | AH38: 0.9204503203 | AI38: 2282.984852 | AJ38: 2281.050573 | AK38: 1.93427939 | AL38: 5184.055653 | AM38: 5180.965422 | AN38: 3.090231079 | AP38: 0.5 | AQ38: 5
A39: Male 65-69 | B39: 67.5 | C39: male | D39: all | E39: 0.19 | F39: 624.2 | G39: =G80+G123+G166+G209+G252 -> 0 | H39: 116.43 | I39: 11.99017685 | J39: 11.97313114 | K39: 50.46509196 | L39: 50.39948155 | M39: 122.5455801 | N39: 122.413625 | O39: 288.0333421 | P39: 287.8620821 | Q39: 371.6954824 | R39: 371.1670654 | S39: 0.5284170087 | T39: 1486.638189 | U39: 1484.700377 | V39: 1.937812325 | W39: 3284.864572 | X39: 3281.258971 | Y39: 3.605601366 | Z39: 6165.248791 | AA39: 6160.836963 | AB39: 4.411828066 | AC39: 241.7398205 | AD39: 241.5186586 | AE39: 0.221161917 | AF39: 988.1759057 | AG39: 987.357841 | AH39: 0.8180647963 | AI39: 2285.580137 | AJ39: 2284.041809 | AK39: 1.538327992 | AL39: 4894.607036 | AM39: 4892.853131 | AN39: 1.75390552 | AP39: 0.5 | AQ39: 5
A40: Male 70-74 | B40: 72.5 | C40: male | D40: all | E40: 0.19 | F40: 469 | G40: 0 | H40: 93.49 | I40: =I81+I124+I167+I210+I253 -> 12.04746139 | J40: 12.02937103 | K40: 50.04540764 | L40: 49.97857801 | M40: 118.4856599 | N40: 118.3622992 | O40: 261.5420675 | P40: 261.4187209 | Q40: 325.2814576 | R40: 324.7930178 | S40: 0.488439805 | T40: 1274.635029 | U40: 1272.926076 | V40: =V81+V124+V167+V210+V253 -> 1.708953166 | W40: 2709.728207 | X40: 2706.818057 | Y40: 2.910150425 | Z40: 4643.997168 | AA40: 4640.967217 | AB40: 3.029950645 | AC40: 209.5753754 | AD40: 209.3709785 | AE40: 0.2043968545 | AF40: 846.918124 | AG40: 846.1935283 | AH40: 0.7245956897 | AI40: 1916.728685 | AJ40: 1915.481223 | AK40: 1.24746229 | AL40: 3895.405403 | AM40: 3894.318539 | AN40: 1.086864511 | AP40: 0.5 | AQ40: 5
A41: Male 75-79 | B41: 77.5 | C41: male | D41: all | E41: 0.07183059219 | F41: 317 | G41: 0 | H41: 22.43 | I41: 12.12202122 | J41: 12.11422525 | K41: 49.32407944 | L41: 49.29890698 | M41: 112.2928167 | N41: 112.2577032 | O41: 225.2931989 | P41: 225.2781142 | Q41: 254.5624456 | R41: 254.3987303 | S41: 0.1637153659 | T41: 961.1681318 | U41: 960.6722506 | V41: =V82+V125+V168+V211+V254 -> 0.4958811931 | W41: 1905.831106 | X41: 1905.177334 | Y41: 0.6537718446 | Z41: 2778.204099 | AA41: 2777.68168 | AB41: 0.5224190387 | AC41: 171.4310184 | AD41: 171.363915 | AE41: 0.0671033567 | AF41: 679.1279871 | AG41: 678.9208658 | AH41: 0.2071213316 | AI41: 1480.580249 | AJ41: 1480.313424 | AK41: 0.2668257017 | AL41: 2751.484228 | AM41: 2751.393722 | AN41: 0.09050547108 | AP41: 0.5 | AQ41: 5
A42: Male 80-84 | B42: 82.5 | C42: male | D42: all | E42: 0.07121567035 | F42: 212.2 | G42: 0 | H42: 14.97 | I42: 10.95188707 | J42: 10.94545261 | K42: 43.4383663 | L42: 43.41934814 | M42: 94.44418322 | N42: 94.4220838 | O42: 171.6871182 | P42: 171.681616 | Q42: 186.1820802 | R42: 186.0726943 | S42: 0.1093858871 | T42: 673.6544565 | U42: 673.3541655 | V42: =V83+V126+V169+V212+V255 -> 0.300291021 | W42: 1236.873657 | X42: 1236.532255 | Y42: 0.3414023961 | Z42: 1541.00113 | AA42: 1540.716974 | AB42: 0.2841560905 | AC42: 133.4953739 | AD42: 133.4459717 | AE42: 0.04940220466 | AF42: 516.8176025 | AG42: 516.6781846 | AH42: 0.1394178938 | AI42: 1081.454852 | AJ42: 1081.306111 | AK42: 0.148740984 | AL42: 1845.157385 | AM42: 1845.13295 | AN42: 0.02443476184 | AP42: 0.5 | AQ42: 5
A43: Male 85-89 | B43: 87.5 | C43: male | D43: all | E43: 0.07129633024 | F43: 105.6 | G43: 0 | H43: 7.76 | I43: 8.507447814 | J43: 8.502304309 | K43: 31.98443532 | L43: 31.97241599 | M43: 63.50257352 | N43: 63.49387654 | O43: 97.40051002 | P43: 97.39993757 | Q43: 93.58192595 | R43: 93.5253474 | S43: 0.05657855803 | T43: 305.5845327 | U43: 305.4636422 | V43: =V84+V127+V170+V213+V256 -> 0.1208904963 | W43: 467.1516947 | X43: 467.0436271 | Y43: 0.108067603 | Z43: 412.3482309 | AA43: 412.2301835 | AB43: 0.1180473402 | AC43: 83.41752262 | AD43: 83.38422222 | AE43: 0.03330040257 | AF43: 307.4820406 | AG43: 307.4074713 | AH43: 0.07456927056 | AI43: 592.3864051 | AJ43: 592.3369316 | AK43: 0.04947358515 | AL43: 870.7628867 | AM43: 870.763043 | AN43: -0.0001563013904 | AP43: 0.5 | AQ43: =2/#REF! -> 
A44: Male 90+ | B44: 95 | C44: female | D44: all | E44: 0.0709322711 | F44: 32.4 | G44: 0 | H44: 3.66 | I44: 4.097468279 | J44: 4.093656535 | K44: 14.16603782 | L44: 14.16013449 | M44: 24.80709742 | N44: 24.80524376 | O44: 31.82582653 | P44: 31.82581499 | Q44: 16.38987312 | R44: 16.37462614 | S44: 0.01524697751 | T44: 37.23176564 | U44: 37.21021199 | V44: 0.02155364786 | W44: 18.64430635 | X44: 18.61477112 | Y44: 0.02953523016 | Z44: -37.37652077 | AA44: -37.41879299 | AB44: 0.04227222214 | AC44: 32.08958806 | AD44: 32.06799802 | AE44: 0.02159004818 | AF44: 109.4845053 | AG44: 109.4514362 | AH44: 0.0330691355 | AI44: 187.8587805 | AJ44: 187.8475746 | AK44: 0.01120590227 | AL44: 235.5845763 | AM44: 235.5828871 | AN44: 0.001689170107
A45: Female <1 | B45: 0.5 | C45: female | D45: all | F45: =F87+F130+F173+F216+F259 -> 100.2 | AP45: 0.1 | AQ45: 1
A46: Female 1-4 | B46: 2.5 | C46: female | D46: all | F46: =F88+F131+F174+F217+F260 -> 402.2 | AP46: 0.5 | AQ46: 4
A47: Female 5-9 | B47: 7.5 | C47: female | D47: all | F47: 491.8 | AP47: 0.5 | AQ47: 5
A48: Female 10-14 | B48: 12.5 | C48: female | D48: all | F48: 581.6 | AP48: 0.5 | AQ48: 5
A49: Female 15-19 | B49: 17.5 | C49: female | D49: all | E49: 0.2 | F49: 628.2 | G49: =G91+G134+G177+G220+G263 -> 0 | H49: 44.80363636 | I49: 0.1321805807 | J49: 0.1320972645 | K49: 0.5868846331 | L49: 0.5865172184 | M49: 1.583076876 | N49: 1.582098331 | O49: 4.933698559 | P49: 4.93074383 | Q49: 10.70662704 | R49: 10.69987843 | S49: 0.006748612208 | T49: 46.60775428 | U49: 46.57857386 | V49: 0.02918041472 | W49: 121.1878235 | X49: 121.1128852 | Y49: 0.07493830851 | Z49: 345.5083482 | AA49: 345.3010217 | AB49: 0.2073264886 | AC49: 60.7990939 | AD49: 60.77647176 | AE49: 0.02262214164 | AF49: 252.9937195 | AG49: 252.9002831 | AH49: 0.09343646791 | AI49: 608.5741822 | AJ49: 608.3523756 | AK49: 0.221806648 | AL49: 1473.578414 | AM49: 1473.057439 | AN49: 0.5209745048 | AP49: 0.5 | AQ49: 5
A50: Female 20-24 | B50: 22.5 | C50: female | D50: all | E50: 0.2 | F50: 450.4 | G50: =G92+G135+G178+G221+G264 -> 0 | H50: 48.03818182 | I50: 0.1329099183 | J50: 0.1327882281 | K50: 0.590022681 | L50: 0.5894863685 | M50: 1.590949175 | N50: 1.589522713 | O50: 4.952022414 | P50: 4.947734621 | Q50: 10.23406371 | R50: 10.22469356 | S50: 0.009370151613 | T50: 44.4969539 | U50: 44.45650446 | V50: 0.04044943941 | W50: 115.4280445 | X50: 115.3245054 | Y50: 0.1035391126 | Z50: 327.0108491 | AA50: 326.727048 | AB50: 0.2838011696 | AC50: 48.3747299 | AD50: 48.34852579 | AE50: 0.02620410332 | AF50: 201.2646249 | AG50: 201.1564615 | AH50: 0.108163351 | AI50: 483.9923917 | AJ50: 483.7359601 | AK50: 0.2564315156 | AL50: 1170.816176 | AM50: 1170.216301 | AN50: 0.5998756096 | AP50: 0.5 | AQ50: 5
A51: Female 25-29 | B51: 27.5 | C51: female | D51: all | E51: 0.26 | F51: 468 | G51: =G93+G136+G179+G222+G265 -> 0 | H51: 64.32545455 | I51: 0.2263979581 | J51: 0.2261345799 | K51: 1.004643918 | L51: 1.00348456 | M51: 2.706598077 | N51: 2.703522614 | O51: 8.400137969 | P51: 8.390975699 | Q51: 16.07425503 | R51: 16.05555517 | S51: 0.01869985391 | T51: 69.73834692 | U51: 69.65786149 | V51: 0.08048542516 | W51: 180.1375169 | X51: 179.9327194 | Y51: 0.2047974555 | Z51: 504.4170802 | AA51: 503.8652465 | AB51: 0.5518336998 | AC51: 58.4139904 | AD51: 58.37288127 | AE51: 0.04110913039 | AF51: 242.9518553 | AG51: 242.7823782 | AH51: 0.1694771762 | AI51: 583.8327547 | AJ51: 583.4319979 | AK51: 0.4007567672 | AL51: 1409.307031 | AM51: 1408.376982 | AN51: 0.9300482979 | AP51: 0.5 | AQ51: 5
A52: Female 30-34 | B52: 32.5 | C52: female | D52: all | E52: 0.26 | F52: 518.6 | G52: =G94+G137+G180+G223+G266 -> 0 | H52: 60.80181818 | I52: 0.3448663414 | J52: 0.3445326779 | K52: 1.529781914 | L52: 1.528314977 | M52: 4.118024208 | N52: 4.114143331 | O52: 12.74589943 | P52: 12.73444274 | Q52: 23.10604488 | R52: 23.08368942 | S52: 0.02235546098 | T52: 100.0726465 | U52: 99.97667455 | V52: 0.09597195615 | W52: 257.6105975 | X52: 257.3676656 | Y52: 0.2429318909 | Z52: 714.5440336 | AA52: 713.8993559 | AB52: 0.6446777015 | AC52: 71.03242032 | AD52: 70.99085567 | AE52: 0.04156464197 | AF52: 295.3399005 | AG52: 295.1687631 | AH52: 0.171137421 | AI52: 709.2572182 | AJ52: 708.8536067 | AK52: 0.4036115136 | AL52: 1708.598031 | AM52: 1707.668993 | AN52: 0.9290381059 | AP52: 0.5 | AQ52: 5
A53: Female 35-39 | B53: 37.5 | C53: female | D53: all | E53: 0.27 | F53: 658 | G53: =G95+G138+G181+G224+G267 -> 0 | H53: 81.42 | I53: 0.7134116843 | J53: 0.7126937095 | K53: 3.161826398 | L53: 3.15867828 | M53: 8.495026658 | N53: 8.486746778 | O53: 26.12549652 | P53: 26.101532 | Q53: 43.51811274 | R53: 43.47431628 | S53: 0.04379646058 | T53: 187.8662038 | U53: 187.6791251 | V53: 0.1870786093 | W53: 480.4898396 | X53: 480.0211069 | Y53: 0.468732685 | Z53: 1308.603521 | AA53: 1307.396602 | AB53: 1.206919017 | AC53: 104.3054361 | AD53: 104.240664 | AE53: 0.06477209721 | AF53: 433.3601955 | AG53: 433.0942313 | AH53: 0.2659642467 | AI53: 1039.103808 | AJ53: 1038.480117 | AK53: 0.6236913913 | AL53: 2491.367642 | AM53: 2489.956999 | AN53: 1.410642645 | AP53: 0.5 | AQ53: 5
A54: Female 40-44 | B54: 42.5 | C54: female | D54: all | E54: 0.27 | F54: 795.6 | G54: =G96+G139+G182+G225+G268 -> 0 | H54: 101.1654545 | I54: 1.178748557 | J54: 1.177526475 | K54: 5.21995289 | L54: 5.214608688 | M54: 13.99987963 | N54: 13.98590583 | O54: 42.8023824 | P54: 42.76272799 | Q54: 67.18866774 | R54: 67.1190091 | S54: 0.0696586464 | T54: 289.2774812 | U54: 288.9812643 | V54: 0.2962168996 | W54: 735.9098499 | X54: 735.1744789 | Y54: 0.7353710527 | Z54: 1973.848157 | AA54: 1972.005972 | AB54: 1.842184871 | AC54: 137.8947168 | AD54: 137.8066422 | AE54: 0.08807463925 | AF54: 572.516689 | AG54: 572.1560297 | AH54: 0.3606592632 | AI54: 1370.795726 | AJ54: 1369.954788 | AK54: 0.8409383151 | AL54: 3272.242877 | AM54: 3270.374025 | AN54: 1.868852467 | AP54: 0.5 | AQ54: 5
A55: Female 45-49 | B55: 47.5 | C55: female | D55: all | E55: 0.26 | F55: 790.8 | G55: =G97+G140+G183+G226+G269 -> 0 | H55: 107.0672727 | I55: 1.930806928 | J55: 1.928647158 | K55: 8.53362736 | L55: 8.524247436 | M55: 22.78980366 | N55: 22.76564476 | O55: 68.70443538 | P55: 68.63927309 | Q55: 98.47115333 | R55: 98.36100506 | S55: 0.1101482702 | T55: 421.7252084 | U55: 421.2615276 | V55: 0.4636808315 | W55: 1061.444347 | X55: 1060.317063 | Y55: 1.127283732 | Z55: 2760.438303 | AA55: 2757.785987 | AB55: 2.65231571 | AC55: 159.7447668 | AD55: 159.6359235 | AE55: 0.1088432843 | AF55: 662.122345 | AG55: 661.6797623 | AH55: 0.4425827109 | AI55: 1579.847538 | AJ55: 1578.830596 | AK55: 1.016942092 | AL55: 3731.893611 | AM55: 3729.733045 | AN55: 2.160566167 | AP55: 0.5 | AQ55: 5
A56: Female 50-54 | B56: 52.5 | C56: female | D56: all | E56: 0.26 | F56: 765.6 | G56: =G98+G141+G184+G227+G270 -> 0 | H56: 91.99636364 | I56: 2.60297516 | J56: 2.600422707 | K56: 11.48174683 | L56: 11.47073156 | M56: 30.53217325 | N56: 30.5041938 | O56: 90.77218706 | P56: 90.70016177 | Q56: 122.3398325 | R56: 122.2198672 | S56: 0.1199653161 | T56: 521.5102537 | U56: 521.0097366 | V56: 0.5005171714 | W56: 1300.225913 | X56: 1299.031331 | Y56: 1.194582809 | Z56: 3289.734193 | AA56: 3287.073582 | AB56: 2.660611789 | AC56: 171.1004391 | AD56: 170.9976159 | AE56: 0.1028232309 | AF56: 707.9957446 | AG56: 707.5803422 | AH56: 0.4154024126 | AI56: 1683.445144 | AJ56: 1682.503465 | AK56: 0.9416790229 | AL56: 3935.532534 | AM56: 3933.612849 | AN56: 1.919684853 | AP56: 0.5 | AQ56: 5
A57: Female 55-59 | B57: 57.5 | C57: female | D57: all | E57: 0.21 | F57: 724.8 | G57: =G99+G142+G185+G228+G271 -> 0 | H57: 77.68909091 | I57: 4.030868043 | J57: 4.027177712 | K57: 17.70408921 | L57: 17.68842145 | M57: 46.64562244 | N57: 46.60722396 | O57: 134.6389928 | P57: 134.5513359 | Q57: 165.2655898 | R57: 165.1142862 | S57: 0.151303588 | T57: 697.9708842 | U57: 697.35276 | V57: 0.6181241807 | W57: 1707.566479 | X57: 1706.154035 | Y57: 1.412444913 | Z57: 4090.049784 | AA57: 4087.280328 | AB57: 2.769456303 | AC57: 187.9348056 | AD57: 187.8311589 | AE57: 0.1036466927 | AF57: 774.7652746 | AG57: 774.3535095 | AH57: 0.4117650968 | AI57: 1828.205077 | AJ57: 1827.303729 | AK57: 0.9013484217 | AL57: 4179.127684 | AM57: 4177.475763 | AN57: 1.651921483 | AP57: 0.5 | AQ57: 5
A58: Female 60-64 | B58: 62.5 | C58: female | D58: all | E58: 0.21 | F58: 724.4 | G58: =G100+G143+G186+G229+G272 -> 0 | H58: 76.74 | I58: 5.636736988 | J58: 5.631680496 | K58: 24.64533821 | L58: 24.62420155 | M58: 64.30898544 | N58: 64.25891614 | O58: 180.1120604 | P58: 180.0100526 | Q58: 208.5592686 | R58: 208.3721784 | S58: 0.187090217 | T58: 873.1336096 | U58: 872.3839996 | V58: 0.7496100368 | W58: 2098.413998 | X58: 2096.768175 | Y58: 1.64582329 | Z58: 4776.556102 | AA58: 4773.67139 | AB58: 2.884712094 | AC58: 208.5826717 | AD58: 208.4694294 | AE58: 0.1132423246 | AF58: 856.5506379 | AG58: 856.1078466 | AH58: 0.4427912927 | AI58: 2005.289141 | AJ58: 2004.351476 | AK58: 0.9376651754 | AL58: 4481.317619 | AM58: 4479.762451 | AN58: 1.555168317 | AP58: 0.5 | AQ58: 5
A59: Female 65-69 | B59: 67.5 | C59: female | D59: all | E59: 0.16 | F59: 655.4 | G59: =G101+G144+G187+G230+G273 -> 0 | H59: 58.64181818 | I59: 8.360217974 | J59: 8.353743209 | K59: 36.20137219 | L59: 36.17532295 | M59: 92.55821812 | N59: 92.50144985 | O59: 243.8230807 | P59: 243.7353484 | Q59: 259.1667572 | R59: 258.9660395 | S59: 0.2007177081 | T59: 1065.616091 | U59: 1064.847707 | V59: 0.7683840448 | W59: 2469.371225 | X59: 2467.833064 | Y59: 1.538160377 | Z59: 5076.125735 | AA59: 5073.997588 | AB59: 2.12814753 | AC59: 219.3967216 | AD59: 219.2945291 | AE59: 0.102192498 | AF59: 893.346499 | AG59: 892.9621427 | AH59: 0.3843562856 | AI59: 2056.070196 | AJ59: 2055.319519 | AK59: 0.7506770481 | AL59: 4382.537724 | AM59: 4381.556896 | AN59: 0.9808283131 | AP59: 0.5 | AQ59: 5
A60: Female 70-74 | B60: 72.5 | C60: female | D60: all | E60: 0.16 | F60: 505.2 | G60: 0 | H60: 49.5 | I60: 8.923448604 | J60: 8.916047674 | K60: 38.26642116 | L60: 38.23769818 | M60: 95.89238819 | N60: 95.83451272 | O60: 238.5268438 | P60: 238.4578302 | Q60: 240.9331123 | R60: 240.7332872 | S60: 0.1998251019 | T60: 973.640151 | U60: 972.906892 | V60: =V102+V145+V188+V231+V274 -> 0.7332590121 | W60: 2179.452996 | X60: 2178.103233 | Y60: 1.349762603 | Z60: 4081.592449 | AA60: 4080.031313 | AB60: 1.561136362 | AC60: 186.7592135 | AD60: 186.6656087 | AE60: 0.09360478338 | AF60: 754.0440364 | AG60: 753.7046559 | AH60: 0.3393805111 | AI60: 1706.710558 | AJ60: 1706.096509 | AK60: 0.6140489479 | AL60: 3481.256269 | AM60: 3480.612951 | AN60: 0.6433182034 | AP60: 0.5 | AQ60: 5
A61: Female 75-79 | B61: 77.5 | C61: female | D61: all | E61: 0.08 | F61: 394.8 | G61: 0 | H61: 14.86363636 | I61: 11.37798309 | J61: 11.37411486 | K61: 47.84785465 | L61: 47.8342534 | M61: 115.2163578 | N61: 115.1942031 | O61: 256.5360448 | P61: 256.5226697 | Q61: 238.9376449 | R61: 238.8564122 | S61: 0.08123272607 | T61: 931.1093164 | U61: 930.8424814 | V61: =V103+V146+V189+V232+V275 -> 0.2668349954 | W61: 1938.838402 | X61: 1938.439148 | Y61: 0.3992536743 | Z61: 3006.344703 | AA61: 3005.991141 | AB61: 0.3535621474 | AC61: 169.6128712 | AD61: 169.578563 | AE61: 0.03430825267 | AF61: 672.4939994 | AG61: 672.3813406 | AH61: 0.1126587873 | AI61: 1469.165881 | AJ61: 1468.999782 | AK61: 0.1660992693 | AL61: 2739.151379 | AM61: 2739.05045 | AN61: 0.1009297247 | AP61: 0.5 | AQ61: 5
A62: Female 80-84 | B62: 82.5 | C62: female | D62: all | E62: 0.08 | F62: 292.2 | G62: 0 | H62: 11.50909091 | I62: 11.63789438 | J62: 11.63367075 | K62: 47.94503802 | L62: 47.93147156 | M62: 110.8863134 | N62: 110.8681169 | O62: 223.1793792 | P62: 223.1734455 | Q62: 197.8442044 | R62: 197.7724027 | S62: 0.07180171627 | T62: 742.0382987 | U62: 741.8252222 | V62: =V104+V147+V190+V233+V276 -> 0.2130764394 | W62: 1433.967948 | X62: 1433.698839 | Y62: 0.2691096104 | Z62: 1857.129374 | AA62: 1856.895838 | AB62: 0.2335351648 | AC62: 138.6740612 | AD62: 138.6435945 | AE62: 0.03046664413 | AF62: 539.7674846 | AG62: 539.6760731 | AH62: 0.09141156633 | AI62: 1139.008262 | AJ62: 1138.896352 | AK62: 0.1119106929 | AL62: 1962.517575 | AM62: 1962.473589 | AN62: 0.043985423 | AP62: 0.5 | AQ62: 5
A63: Female 85-89 | B63: 87.5 | C63: female | D63: all | E63: 0.08 | F63: 194.2 | G63: 0 | H63: 7.14 | I63: 12.45295621 | J63: 12.44909967 | K63: 49.05920202 | L63: 49.04916831 | M63: 104.3874372 | N63: 104.378797 | O63: 175.0367751 | P63: 175.0360275 | Q63: 136.9825183 | R63: 136.9400964 | S63: 0.04242187571 | T63: 466.7770719 | U63: 466.6774114 | V63: =V105+V148+V191+V234+V277 -> 0.09966051046 | W63: 747.2179618 | X63: 747.1214783 | Y63: 0.0964835188 | Z63: 621.5028211 | AA63: 621.3941212 | AB63: 0.1086999224 | AC63: 106.704268 | AD63: 106.6833867 | AE63: 0.02088134333 | AF63: 398.8456927 | AG63: 398.7946619 | AH63: 0.05103086774 | AI63: 782.8753161 | AJ63: 782.8337714 | AK63: 0.0415446284 | AL63: 1170.016604 | AM63: 1170.00742 | AN63: 0.009184603517 | AP63: 0.5 | AQ63: =2/#REF! -> 
A64: Female 90+ | B64: 95 | C64: female | D64: all | E64: 0.08 | F64: 123 | G64: 0 | H64: 5.056363636 | I64: 13.62302813 | J64: 13.61869641 | K64: 49.24262425 | L64: 49.23506496 | M64: 90.76145901 | N64: 90.75858675 | O64: 120.6250488 | P64: 120.6250266 | Q64: 54.4921125 | R64: 54.47478563 | S64: 0.01732686781 | T64: 127.5114437 | U64: 127.4852536 | V64: 0.02619007783 | W64: 53.25957184 | X64: 53.22336628 | Y64: 0.03620555918 | Z64: -186.2740765 | AA64: -186.3304558 | AB64: 0.0563793077 | AC64: 80.47272641 | AD64: 80.45503 | AE64: 0.01769641194 | AF64: 278.209223 | AG64: 278.1792467 | AH64: 0.02997632368 | AI64: 481.9739061 | AJ64: 481.9606736 | AK64: 0.0132325466 | AL64: 602.4332766 | AM64: 602.4288973 | AN64: 0.004379258856
A65: age/sex breakdown: Q1
A66: Male <1 | B66: 0.5 | C66: male | D66: 1 | F66: =HLOOKUP('III Tool Overview'!$H$6,LookUpData_Pop!$B$1:$AV$269,LookUpData_Pop!BB67,FALSE)/5 -> 0 | AP66: 0.1 | AQ66: 1
A67: Male 1-4 | B67: 2.5 | C67: male | D67: 1 | F67: =HLOOKUP('III Tool Overview'!$H$6,LookUpData_Pop!$B$1:$AV$269,LookUpData_Pop!BB68,FALSE)/5 -> 0 | AP67: 0.5 | AQ67: 4
A68: Male 5-9 | B68: 7.5 | C68: male | D68: 1 | F68: =HLOOKUP('III Tool Overview'!$H$6,LookUpData_Pop!$B$1:$AV$269,LookUpData_Pop!BB69,FALSE)/5 -> 0 | AP68: 0.5 | AQ68: 5
A69: Male 10-14 | B69: 12.5 | C69: male | D69: 1 | F69: =HLOOKUP('III Tool Overview'!$H$6,LookUpData_Pop!$B$1:$AV$269,LookUpData_Pop!BB70,FALSE)/5 -> 0 | AP69: 0.5 | AQ69: 5
A70: Male 15-19 | B70: 17.5 | C70: male | D70: 1 | E70: =HLOOKUP('III Tool Overview'!$H$6,Prevalence!$B$2:$AV$268,Prevalence!AW66,FALSE) -> 0.475 | F70: =HLOOKUP('III Tool Overview'!$H$6,LookUpData_Pop!$B$1:$AV$269,LookUpData_Pop!BB71,FALSE)/5 -> 0 | G70: ='III Tool Overview'!$H$9/110 -> 0 | H70: =IF('III Tool Overview'!$H$10="Even distribution",Targeting!C68,IF('III Tool Overview'!$H$10="Targetting to Q1",Targeting!D68,IF('III Tool Overview'!$H$10="Targetting to Q1 & Q2",Targeting!E68,IF('III Tool Overview'!$H$10="No variation in price elasticity",Targeting!G68)))) -> 0 | I70: =IF('III Tool Overview'!$H$6="Orkney Health Board",0,IF('III Tool Overview'!$H$6="Shetland Health Board",0,IF('III Tool Overview'!$H$6="Western Isles Health Board",0,IF('III Tool Overview'!$H$6="Orkney Islands Local Authority",0,IF('III Tool Overview'!$H$6="Shetland Islands Local Authority",0,IF('III Tool Overview'!$H$6="Eilean Siar Local Authority",0,new_ci(2,B70,C70,D70,$C$1,G70,1,F70,E70*F70))))))) -> 0 | J70: =IF('III Tool Overview'!$H$6="Orkney Health Board",0,IF('III Tool Overview'!$H$6="Shetland Health Board",0,IF('III Tool Overview'!$H$6="Western Isles Health Board",0,IF('III Tool Overview'!$H$6="Orkney Islands Local Authority",0,IF('III Tool Overview'!$H$6="Shetland Islands Local Authority",0,IF('III Tool Overview'!$H$6="Eilean Siar Local Authority",0,new_ci(2,B70,C70,D70,$C$1,G70+H70,1,F70,E70*F70))))))) -> 0 | K70: =IF('III Tool Overview'!$H$6="Orkney Health Board",0,IF('III Tool Overview'!$H$6="Shetland Health Board",0,IF('III Tool Overview'!$H$6="Western Isles Health Board",0,IF('III Tool Overview'!$H$6="Orkney Islands Local Authority",0,IF('III Tool Overview'!$H$6="Shetland Islands Local Authority",0,IF('III Tool Overview'!$H$6="Eilean Siar Local Authority",0,new_ci(5,B70,C70,D70,$C$1,G70,1,F70,E70*F70))))))) -> 0 | L70: =IF('III Tool Overview'!$H$6="Orkney Health Board",0,IF('III Tool Overview'!$H$6="Shetland Health Board",0,IF('III Tool Overview'!$H$6="Western Isles Health Board",0,IF('III Tool Overview'!$H$6="Orkney Islands Local Authority",0,IF('III Tool Overview'!$H$6="Shetland Islands Local Authority",0,IF('III Tool Overview'!$H$6="Eilean Siar Local Authority",0,new_ci(5,B70,C70,D70,$C$1,G70+H70,1,F70,E70*F70))))))) -> 0 | M70: =IF('III Tool Overview'!$H$6="Orkney Health Board",0,IF('III Tool Overview'!$H$6="Shetland Health Board",0,IF('III Tool Overview'!$H$6="Western Isles Health Board",0,IF('III Tool Overview'!$H$6="Orkney Islands Local Authority",0,IF('III Tool Overview'!$H$6="Shetland Islands Local Authority",0,IF('III Tool Overview'!$H$6="Eilean Siar Local Authority",0,new_ci(10,B70,C70,D70,$C$1,G70,1,F70,E70*F70))))))) -> 0 | N70: =IF('III Tool Overview'!$H$6="Orkney Health Board",0,IF('III Tool Overview'!$H$6="Shetland Health Board",0,IF('III Tool Overview'!$H$6="Western Isles Health Board",0,IF('III Tool Overview'!$H$6="Orkney Islands Local Authority",0,IF('III Tool Overview'!$H$6="Shetland Islands Local Authority",0,IF('III Tool Overview'!$H$6="Eilean Siar Local Authority",0,new_ci(10,B70,C70,D70,$C$1,G70+H70,1,F70,E70*F70))))))) -> 0 | O70: =IF('III Tool Overview'!$H$6="Orkney Health Board",0,IF('III Tool Overview'!$H$6="Shetland Health Board",0,IF('III Tool Overview'!$H$6="Western Isles Health Board",0,IF('III Tool Overview'!$H$6="Orkney Islands Local Authority",0,IF('III Tool Overview'!$H$6="Shetland Islands Local Authority",0,IF('III Tool Overview'!$H$6="Eilean Siar Local Authority",0,new_ci(20,B70,C70,D70,$C$1,G70,1,F70,E70*F70))))))) -> 0 | P70: =IF('III Tool Overview'!$H$6="Orkney Health Board",0,IF('III Tool Overview'!$H$6="Shetland Health Board",0,IF('III Tool Overview'!$H$6="Western Isles Health Board",0,IF('III Tool Overview'!$H$6="Orkney Islands Local Authority",0,IF('III Tool Overview'!$H$6="Shetland Islands Local Authority",0,IF('III Tool Overview'!$H$6="Eilean Siar Local Authority",0,new_ci(20,B70,C70,D70,$C$1,G70+H70,1,F70,E70*F70))))))) -> 0 | Q70: =IF('III Tool Overview'!$H$6="Orkney Health Board",0,IF('III Tool Overview'!$H$6="Shetland Health Board",0,IF('III Tool Overview'!$H$6="Western Isles Health Board",0,IF('III Tool Overview'!$H$6="Orkney Islands Local Authority",0,IF('III Tool Overview'!$H$6="Shetland Islands Local Authority",0,IF('III Tool Overview'!$H$6="Eilean Siar Local Authority",0,new_yll(2,B70,C70,D70,$C$1,G70,1,F70,E70*F70))))))) -> 0 | R70: =IF('III Tool Overview'!$H$6="Orkney Health Board",0,IF('III Tool Overview'!$H$6="Shetland Health Board",0,IF('III Tool Overview'!$H$6="Western Isles Health Board",0,IF('III Tool Overview'!$H$6="Orkney Islands Local Authority",0,IF('III Tool Overview'!$H$6="Shetland Islands Local Authority",0,IF('III Tool Overview'!$H$6="Eilean Siar Local Authority",0,new_yll(2,B70,C70,D70,$C$1,G70+H70,1,F70,E70*F70))))))) -> 0 | S70: =Q70-R70 -> 0 | T70: =IF('III Tool Overview'!$H$6="Orkney Health Board",0,IF('III Tool Overview'!$H$6="Shetland Health Board",0,IF('III Tool Overview'!$H$6="Western Isles Health Board",0,IF('III Tool Overview'!$H$6="Orkney Islands Local Authority",0,IF('III Tool Overview'!$H$6="Shetland Islands Local Authority",0,IF('III Tool Overview'!$H$6="Eilean Siar Local Authority",0,new_yll(5,B70,C70,D70,$C$1,G70,1,F70,E70*F70))))))) -> 0 | U70: =IF('III Tool Overview'!$H$6="Orkney Health Board",0,IF('III Tool Overview'!$H$6="Shetland Health Board",0,IF('III Tool Overview'!$H$6="Western Isles Health Board",0,IF('III Tool Overview'!$H$6="Orkney Islands Local Authority",0,IF('III Tool Overview'!$H$6="Shetland Islands Local Authority",0,IF('III Tool Overview'!$H$6="Eilean Siar Local Authority",0,new_yll(5,B70,C70,D70,$C$1,G70+H70,1,F70,E70*F70))))))) -> 0 | V70: =T70-U70 -> 0 | W70: =IF('III Tool Overview'!$H$6="Orkney Health Board",0,IF('III Tool Overview'!$H$6="Shetland Health Board",0,IF('III Tool Overview'!$H$6="Western Isles Health Board",0,IF('III Tool Overview'!$H$6="Orkney Islands Local Authority",0,IF('III Tool Overview'!$H$6="Shetland Islands Local Authority",0,IF('III Tool Overview'!$H$6="Eilean Siar Local Authority",0,new_yll(10,B70,C70,D70,$C$1,G70,1,F70,E70*F70))))))) -> 0 | X70: =IF('III Tool Overview'!$H$6="Orkney Health Board",0,IF('III Tool Overview'!$H$6="Shetland Health Board",0,IF('III Tool Overview'!$H$6="Western Isles Health Board",0,IF('III Tool Overview'!$H$6="Orkney Islands Local Authority",0,IF('III Tool Overview'!$H$6="Shetland Islands Local Authority",0,IF('III Tool Overview'!$H$6="Eilean Siar Local Authority",0,new_yll(10,B70,C70,D70,$C$1,G70+H70,1,F70,E70*F70))))))) -> 0 | Y70: =W70-X70 -> 0 | Z70: =IF('III Tool Overview'!$H$6="Orkney Health Board",0,IF('III Tool Overview'!$H$6="Shetland Health Board",0,IF('III Tool Overview'!$H$6="Western Isles Health Board",0,IF('III Tool Overview'!$H$6="Orkney Islands Local Authority",0,IF('III Tool Overview'!$H$6="Shetland Islands Local Authority",0,IF('III Tool Overview'!$H$6="Eilean Siar Local Authority",0,new_yll(20,B70,C70,D70,$C$1,G70,1,F70,E70*F70))))))) -> 0 | AA70: =IF('III Tool Overview'!$H$6="Orkney Health Board",0,IF('III Tool Overview'!$H$6="Shetland Health Board",0,IF('III Tool Overview'!$H$6="Western Isles Health Board",0,IF('III Tool Overview'!$H$6="Orkney Islands Local Authority",0,IF('III Tool Overview'!$H$6="Shetland Islands Local Authority",0,IF('III Tool Overview'!$H$6="Eilean Siar Local Authority",0,new_yll(20,B70,C70,D70,$C$1,G70+H70,1,F70,E70*F70))))))) -> 0 | AB70: =Z70-AA70 -> 0 | AC70: =IF('III Tool Overview'!$H$6="Orkney Health Board",0,IF('III Tool Overview'!$H$6="Shetland Health Board",0,IF('III Tool Overview'!$H$6="Western Isles Health Board",0,IF('III Tool Overview'!$H$6="Orkney Islands Local Authority",0,IF('III Tool Overview'!$H$6="Shetland Islands Local Authority",0,IF('III Tool Overview'!$H$6="Eilean Siar Local Authority",0,hosp_count(2,B70,C70,D70,$C$1,G70,1,F70,E70*F70))))))) -> 0 | AD70: =IF('III Tool Overview'!$H$6="Orkney Health Board",0,IF('III Tool Overview'!$H$6="Shetland Health Board",0,IF('III Tool Overview'!$H$6="Western Isles Health Board",0,IF('III Tool Overview'!$H$6="Orkney Islands Local Authority",0,IF('III Tool Overview'!$H$6="Shetland Islands Local Authority",0,IF('III Tool Overview'!$H$6="Eilean Siar Local Authority",0,hosp_count(2,B70,C70,D70,$C$1,G70+H70,1,F70,E70*F70))))))) -> 0 | AE70: =AC70-AD70 -> 0 | AF70: =IF('III Tool Overview'!$H$6="Orkney Health Board",0,IF('III Tool Overview'!$H$6="Shetland Health Board",0,IF('III Tool Overview'!$H$6="Western Isles Health Board",0,IF('III Tool Overview'!$H$6="Orkney Islands Local Authority",0,IF('III Tool Overview'!$H$6="Shetland Islands Local Authority",0,IF('III Tool Overview'!$H$6="Eilean Siar Local Authority",0,hosp_count(5,B70,C70,D70,$C$1,G70,1,F70,E70*F70))))))) -> 0 | AG70: =IF('III Tool Overview'!$H$6="Orkney Health Board",0,IF('III Tool Overview'!$H$6="Shetland Health Board",0,IF('III Tool Overview'!$H$6="Western Isles Health Board",0,IF('III Tool Overview'!$H$6="Orkney Islands Local Authority",0,IF('III Tool Overview'!$H$6="Shetland Islands Local Authority",0,IF('III Tool Overview'!$H$6="Eilean Siar Local Authority",0,hosp_count(5,B70,C70,D70,$C$1,G70+H70,1,F70,E70*F70))))))) -> 0 | AH70: =AF70-AG70 -> 0 | AI70: =IF('III Tool Overview'!$H$6="Orkney Health Board",0,IF('III Tool Overview'!$H$6="Shetland Health Board",0,IF('III Tool Overview'!$H$6="Western Isles Health Board",0,IF('III Tool Overview'!$H$6="Orkney Islands Local Authority",0,IF('III Tool Overview'!$H$6="Shetland Islands Local Authority",0,IF('III Tool Overview'!$H$6="Eilean Siar Local Authority",0,hosp_count(10,B70,C70,D70,$C$1,G70,1,F70,E70*F70))))))) -> 0 | AJ70: =IF('III Tool Overview'!$H$6="Orkney Health Board",0,IF('III Tool Overview'!$H$6="Shetland Health Board",0,IF('III Tool Overview'!$H$6="Western Isles Health Board",0,IF('III Tool Overview'!$H$6="Orkney Islands Local Authority",0,IF('III Tool Overview'!$H$6="Shetland Islands Local Authority",0,IF('III Tool Overview'!$H$6="Eilean Siar Local Authority",0,hosp_count(10,B70,C70,D70,$C$1,G70+H70,1,F70,E70*F70))))))) -> 0 | AK70: =AI70-AJ70 -> 0 | AL70: =IF('III Tool Overview'!$H$6="Orkney Health Board",0,IF('III Tool Overview'!$H$6="Shetland Health Board",0,IF('III Tool Overview'!$H$6="Western Isles Health Board",0,IF('III Tool Overview'!$H$6="Orkney Islands Local Authority",0,IF('III Tool Overview'!$H$6="Shetland Islands Local Authority",0,IF('III Tool Overview'!$H$6="Eilean Siar Local Authority",0,hosp_count(20,B70,C70,D70,$C$1,G70,1,F70,E70*F70))))))) -> 0 | AM70: =IF('III Tool Overview'!$H$6="Orkney Health Board",0,IF('III Tool Overview'!$H$6="Shetland Health Board",0,IF('III Tool Overview'!$H$6="Western Isles Health Board",0,IF('III Tool Overview'!$H$6="Orkney Islands Local Authority",0,IF('III Tool Overview'!$H$6="Shetland Islands Local Authority",0,IF('III Tool Overview'!$H$6="Eilean Siar Local Authority",0,hosp_count(20,B70,C70,D70,$C$1,G70+H70,1,F70,E70*F70))))))) -> 0 | AN70: =AL70-AM70 -> 0 | AP70: 0.5 | AQ70: 5
A71: Male 20-24 | B71: 22.5 | C71: male | D71: 1 | E71: =HLOOKUP('III Tool Overview'!$H$6,Prevalence!$B$2:$AV$268,Prevalence!AW67,FALSE) -> 0.475 | F71: =HLOOKUP('III Tool Overview'!$H$6,LookUpData_Pop!$B$1:$AV$269,LookUpData_Pop!BB72,FALSE)/5 -> 0 | G71: ='III Tool Overview'!$H$9/110 -> 0 | H71: =IF('III Tool Overview'!$H$10="Even distribution",Targeting!C69,IF('III Tool Overview'!$H$10="Targetting to Q1",Targeting!D69,IF('III Tool Overview'!$H$10="Targetting to Q1 & Q2",Targeting!E69,IF('III Tool Overview'!$H$10="No variation in price elasticity",Targeting!G69)))) -> 0 | I71: =IF('III Tool Overview'!$H$6="Orkney Health Board",0,IF('III Tool Overview'!$H$6="Shetland Health Board",0,IF('III Tool Overview'!$H$6="Western Isles Health Board",0,IF('III Tool Overview'!$H$6="Orkney Islands Local Authority",0,IF('III Tool Overview'!$H$6="Shetland Islands Local Authority",0,IF('III Tool Overview'!$H$6="Eilean Siar Local Authority",0,new_ci(2,B71,C71,D71,$C$1,G71,1,F71,E71*F71))))))) -> 0 | J71: =IF('III Tool Overview'!$H$6="Orkney Health Board",0,IF('III Tool Overview'!$H$6="Shetland Health Board",0,IF('III Tool Overview'!$H$6="Western Isles Health Board",0,IF('III Tool Overview'!$H$6="Orkney Islands Local Authority",0,IF('III Tool Overview'!$H$6="Shetland Islands Local Authority",0,IF('III Tool Overview'!$H$6="Eilean Siar Local Authority",0,new_ci(2,B71,C71,D71,$C$1,G71+H71,1,F71,E71*F71))))))) -> 0 | K71: =IF('III Tool Overview'!$H$6="Orkney Health Board",0,IF('III Tool Overview'!$H$6="Shetland Health Board",0,IF('III Tool Overview'!$H$6="Western Isles Health Board",0,IF('III Tool Overview'!$H$6="Orkney Islands Local Authority",0,IF('III Tool Overview'!$H$6="Shetland Islands Local Authority",0,IF('III Tool Overview'!$H$6="Eilean Siar Local Authority",0,new_ci(5,B71,C71,D71,$C$1,G71,1,F71,E71*F71))))))) -> 0 | L71: =IF('III Tool Overview'!$H$6="Orkney Health Board",0,IF('III Tool Overview'!$H$6="Shetland Health Board",0,IF('III Tool Overview'!$H$6="Western Isles Health Board",0,IF('III Tool Overview'!$H$6="Orkney Islands Local Authority",0,IF('III Tool Overview'!$H$6="Shetland Islands Local Authority",0,IF('III Tool Overview'!$H$6="Eilean Siar Local Authority",0,new_ci(5,B71,C71,D71,$C$1,G71+H71,1,F71,E71*F71))))))) -> 0 | M71: =IF('III Tool Overview'!$H$6="Orkney Health Board",0,IF('III Tool Overview'!$H$6="Shetland Health Board",0,IF('III Tool Overview'!$H$6="Western Isles Health Board",0,IF('III Tool Overview'!$H$6="Orkney Islands Local Authority",0,IF('III Tool Overview'!$H$6="Shetland Islands Local Authority",0,IF('III Tool Overview'!$H$6="Eilean Siar Local Authority",0,new_ci(10,B71,C71,D71,$C$1,G71,1,F71,E71*F71))))))) -> 0 | N71: =IF('III Tool Overview'!$H$6="Orkney Health Board",0,IF('III Tool Overview'!$H$6="Shetland Health Board",0,IF('III Tool Overview'!$H$6="Western Isles Health Board",0,IF('III Tool Overview'!$H$6="Orkney Islands Local Authority",0,IF('III Tool Overview'!$H$6="Shetland Islands Local Authority",0,IF('III Tool Overview'!$H$6="Eilean Siar Local Authority",0,new_ci(10,B71,C71,D71,$C$1,G71+H71,1,F71,E71*F71))))))) -> 0 | O71: =IF('III Tool Overview'!$H$6="Orkney Health Board",0,IF('III Tool Overview'!$H$6="Shetland Health Board",0,IF('III Tool Overview'!$H$6="Western Isles Health Board",0,IF('III Tool Overview'!$H$6="Orkney Islands Local Authority",0,IF('III Tool Overview'!$H$6="Shetland Islands Local Authority",0,IF('III Tool Overview'!$H$6="Eilean Siar Local Authority",0,new_ci(20,B71,C71,D71,$C$1,G71,1,F71,E71*F71))))))) -> 0 | P71: =IF('III Tool Overview'!$H$6="Orkney Health Board",0,IF('III Tool Overview'!$H$6="Shetland Health Board",0,IF('III Tool Overview'!$H$6="Western Isles Health Board",0,IF('III Tool Overview'!$H$6="Orkney Islands Local Authority",0,IF('III Tool Overview'!$H$6="Shetland Islands Local Authority",0,IF('III Tool Overview'!$H$6="Eilean Siar Local Authority",0,new_ci(20,B71,C71,D71,$C$1,G71+H71,1,F71,E71*F71))))))) -> 0 | Q71: =IF('III Tool Overview'!$H$6="Orkney Health Board",0,IF('III Tool Overview'!$H$6="Shetland Health Board",0,IF('III Tool Overview'!$H$6="Western Isles Health Board",0,IF('III Tool Overview'!$H$6="Orkney Islands Local Authority",0,IF('III Tool Overview'!$H$6="Shetland Islands Local Authority",0,IF('III Tool Overview'!$H$6="Eilean Siar Local Authority",0,new_yll(2,B71,C71,D71,$C$1,G71,1,F71,E71*F71))))))) -> 0 | R71: =IF('III Tool Overview'!$H$6="Orkney Health Board",0,IF('III Tool Overview'!$H$6="Shetland Health Board",0,IF('III Tool Overview'!$H$6="Western Isles Health Board",0,IF('III Tool Overview'!$H$6="Orkney Islands Local Authority",0,IF('III Tool Overview'!$H$6="Shetland Islands Local Authority",0,IF('III Tool Overview'!$H$6="Eilean Siar Local Authority",0,new_yll(2,B71,C71,D71,$C$1,G71+H71,1,F71,E71*F71))))))) -> 0 | S71: 0 | T71: =IF('III Tool Overview'!$H$6="Orkney Health Board",0,IF('III Tool Overview'!$H$6="Shetland Health Board",0,IF('III Tool Overview'!$H$6="Western Isles Health Board",0,IF('III Tool Overview'!$H$6="Orkney Islands Local Authority",0,IF('III Tool Overview'!$H$6="Shetland Islands Local Authority",0,IF('III Tool Overview'!$H$6="Eilean Siar Local Authority",0,new_yll(5,B71,C71,D71,$C$1,G71,1,F71,E71*F71))))))) -> 0 | U71: =IF('III Tool Overview'!$H$6="Orkney Health Board",0,IF('III Tool Overview'!$H$6="Shetland Health Board",0,IF('III Tool Overview'!$H$6="Western Isles Health Board",0,IF('III Tool Overview'!$H$6="Orkney Islands Local Authority",0,IF('III Tool Overview'!$H$6="Shetland Islands Local Authority",0,IF('III Tool Overview'!$H$6="Eilean Siar Local Authority",0,new_yll(5,B71,C71,D71,$C$1,G71+H71,1,F71,E71*F71))))))) -> 0 | V71: =T71-U71 -> 0 | W71: =IF('III Tool Overview'!$H$6="Orkney Health Board",0,IF('III Tool Overview'!$H$6="Shetland Health Board",0,IF('III Tool Overview'!$H$6="Western Isles Health Board",0,IF('III Tool Overview'!$H$6="Orkney Islands Local Authority",0,IF('III Tool Overview'!$H$6="Shetland Islands Local Authority",0,IF('III Tool Overview'!$H$6="Eilean Siar Local Authority",0,new_yll(10,B71,C71,D71,$C$1,G71,1,F71,E71*F71))))))) -> 0 | X71: =IF('III Tool Overview'!$H$6="Orkney Health Board",0,IF('III Tool Overview'!$H$6="Shetland Health Board",0,IF('III Tool Overview'!$H$6="Western Isles Health Board",0,IF('III Tool Overview'!$H$6="Orkney Islands Local Authority",0,IF('III Tool Overview'!$H$6="Shetland Islands Local Authority",0,IF('III Tool Overview'!$H$6="Eilean Siar Local Authority",0,new_yll(10,B71,C71,D71,$C$1,G71+H71,1,F71,E71*F71))))))) -> 0 | Y71: =W71-X71 -> 0 | Z71: =IF('III Tool Overview'!$H$6="Orkney Health Board",0,IF('III Tool Overview'!$H$6="Shetland Health Board",0,IF('III Tool Overview'!$H$6="Western Isles Health Board",0,IF('III Tool Overview'!$H$6="Orkney Islands Local Authority",0,IF('III Tool Overview'!$H$6="Shetland Islands Local Authority",0,IF('III Tool Overview'!$H$6="Eilean Siar Local Authority",0,new_yll(20,B71,C71,D71,$C$1,G71,1,F71,E71*F71))))))) -> 0 | AA71: =IF('III Tool Overview'!$H$6="Orkney Health Board",0,IF('III Tool Overview'!$H$6="Shetland Health Board",0,IF('III Tool Overview'!$H$6="Western Isles Health Board",0,IF('III Tool Overview'!$H$6="Orkney Islands Local Authority",0,IF('III Tool Overview'!$H$6="Shetland Islands Local Authority",0,IF('III Tool Overview'!$H$6="Eilean Siar Local Authority",0,new_yll(20,B71,C71,D71,$C$1,G71+H71,1,F71,E71*F71))))))) -> 0 | AB71: =Z71-AA71 -> 0 | AC71: =IF('III Tool Overview'!$H$6="Orkney Health Board",0,IF('III Tool Overview'!$H$6="Shetland Health Board",0,IF('III Tool Overview'!$H$6="Western Isles Health Board",0,IF('III Tool Overview'!$H$6="Orkney Islands Local Authority",0,IF('III Tool Overview'!$H$6="Shetland Islands Local Authority",0,IF('III Tool Overview'!$H$6="Eilean Siar Local Authority",0,hosp_count(2,B71,C71,D71,$C$1,G71,1,F71,E71*F71))))))) -> 0 | AD71: =IF('III Tool Overview'!$H$6="Orkney Health Board",0,IF('III Tool Overview'!$H$6="Shetland Health Board",0,IF('III Tool Overview'!$H$6="Western Isles Health Board",0,IF('III Tool Overview'!$H$6="Orkney Islands Local Authority",0,IF('III Tool Overview'!$H$6="Shetland Islands Local Authority",0,IF('III Tool Overview'!$H$6="Eilean Siar Local Authority",0,hosp_count(2,B71,C71,D71,$C$1,G71+H71,1,F71,E71*F71))))))) -> 0 | AE71: =AC71-AD71 -> 0 | AF71: =IF('III Tool Overview'!$H$6="Orkney Health Board",0,IF('III Tool Overview'!$H$6="Shetland Health Board",0,IF('III Tool Overview'!$H$6="Western Isles Health Board",0,IF('III Tool Overview'!$H$6="Orkney Islands Local Authority",0,IF('III Tool Overview'!$H$6="Shetland Islands Local Authority",0,IF('III Tool Overview'!$H$6="Eilean Siar Local Authority",0,hosp_count(5,B71,C71,D71,$C$1,G71,1,F71,E71*F71))))))) -> 0 | AG71: =IF('III Tool Overview'!$H$6="Orkney Health Board",0,IF('III Tool Overview'!$H$6="Shetland Health Board",0,IF('III Tool Overview'!$H$6="Western Isles Health Board",0,IF('III Tool Overview'!$H$6="Orkney Islands Local Authority",0,IF('III Tool Overview'!$H$6="Shetland Islands Local Authority",0,IF('III Tool Overview'!$H$6="Eilean Siar Local Authority",0,hosp_count(5,B71,C71,D71,$C$1,G71+H71,1,F71,E71*F71))))))) -> 0 | AH71: =AF71-AG71 -> 0 | AI71: =IF('III Tool Overview'!$H$6="Orkney Health Board",0,IF('III Tool Overview'!$H$6="Shetland Health Board",0,IF('III Tool Overview'!$H$6="Western Isles Health Board",0,IF('III Tool Overview'!$H$6="Orkney Islands Local Authority",0,IF('III Tool Overview'!$H$6="Shetland Islands Local Authority",0,IF('III Tool Overview'!$H$6="Eilean Siar Local Authority",0,hosp_count(10,B71,C71,D71,$C$1,G71,1,F71,E71*F71))))))) -> 0 | AJ71: =IF('III Tool Overview'!$H$6="Orkney Health Board",0,IF('III Tool Overview'!$H$6="Shetland Health Board",0,IF('III Tool Overview'!$H$6="Western Isles Health Board",0,IF('III Tool Overview'!$H$6="Orkney Islands Local Authority",0,IF('III Tool Overview'!$H$6="Shetland Islands Local Authority",0,IF('III Tool Overview'!$H$6="Eilean Siar Local Authority",0,hosp_count(10,B71,C71,D71,$C$1,G71+H71,1,F71,E71*F71))))))) -> 0 | AK71: =AI71-AJ71 -> 0 | AL71: =IF('III Tool Overview'!$H$6="Orkney Health Board",0,IF('III Tool Overview'!$H$6="Shetland Health Board",0,IF('III Tool Overview'!$H$6="Western Isles Health Board",0,IF('III Tool Overview'!$H$6="Orkney Islands Local Authority",0,IF('III Tool Overview'!$H$6="Shetland Islands Local Authority",0,IF('III Tool Overview'!$H$6="Eilean Siar Local Authority",0,hosp_count(20,B71,C71,D71,$C$1,G71,1,F71,E71*F71))))))) -> 0 | AM71: =IF('III Tool Overview'!$H$6="Orkney Health Board",0,IF('III Tool Overview'!$H$6="Shetland Health Board",0,IF('III Tool Overview'!$H$6="Western Isles Health Board",0,IF('III Tool Overview'!$H$6="Orkney Islands Local Authority",0,IF('III Tool Overview'!$H$6="Shetland Islands Local Authority",0,IF('III Tool Overview'!$H$6="Eilean Siar Local Authority",0,hosp_count(20,B71,C71,D71,$C$1,G71+H71,1,F71,E71*F71))))))) -> 0 | AN71: =AL71-AM71 -> 0 | AP71: 0.5 | AQ71: 5
A72: Male 25-29 | B72: 27.5 | C72: male | D72: 1 | E72: =HLOOKUP('III Tool Overview'!$H$6,Prevalence!$B$2:$AV$268,Prevalence!AW68,FALSE) -> 0.45 | F72: =HLOOKUP('III Tool Overview'!$H$6,LookUpData_Pop!$B$1:$AV$269,LookUpData_Pop!BB73,FALSE)/5 -> 0 | G72: ='III Tool Overview'!$H$9/110 -> 0 | H72: =IF('III Tool Overview'!$H$10="Even distribution",Targeting!C70,IF('III Tool Overview'!$H$10="Targetting to Q1",Targeting!D70,IF('III Tool Overview'!$H$10="Targetting to Q1 & Q2",Targeting!E70,IF('III Tool Overview'!$H$10="No variation in price elasticity",Targeting!G70)))) -> 0 | I72: =IF('III Tool Overview'!$H$6="Orkney Health Board",0,IF('III Tool Overview'!$H$6="Shetland Health Board",0,IF('III Tool Overview'!$H$6="Western Isles Health Board",0,IF('III Tool Overview'!$H$6="Orkney Islands Local Authority",0,IF('III Tool Overview'!$H$6="Shetland Islands Local Authority",0,IF('III Tool Overview'!$H$6="Eilean Siar Local Authority",0,new_ci(2,B72,C72,D72,$C$1,G72,1,F72,E72*F72))))))) -> 0 | J72: =IF('III Tool Overview'!$H$6="Orkney Health Board",0,IF('III Tool Overview'!$H$6="Shetland Health Board",0,IF('III Tool Overview'!$H$6="Western Isles Health Board",0,IF('III Tool Overview'!$H$6="Orkney Islands Local Authority",0,IF('III Tool Overview'!$H$6="Shetland Islands Local Authority",0,IF('III Tool Overview'!$H$6="Eilean Siar Local Authority",0,new_ci(2,B72,C72,D72,$C$1,G72+H72,1,F72,E72*F72))))))) -> 0 | K72: =IF('III Tool Overview'!$H$6="Orkney Health Board",0,IF('III Tool Overview'!$H$6="Shetland Health Board",0,IF('III Tool Overview'!$H$6="Western Isles Health Board",0,IF('III Tool Overview'!$H$6="Orkney Islands Local Authority",0,IF('III Tool Overview'!$H$6="Shetland Islands Local Authority",0,IF('III Tool Overview'!$H$6="Eilean Siar Local Authority",0,new_ci(5,B72,C72,D72,$C$1,G72,1,F72,E72*F72))))))) -> 0 | L72: =IF('III Tool Overview'!$H$6="Orkney Health Board",0,IF('III Tool Overview'!$H$6="Shetland Health Board",0,IF('III Tool Overview'!$H$6="Western Isles Health Board",0,IF('III Tool Overview'!$H$6="Orkney Islands Local Authority",0,IF('III Tool Overview'!$H$6="Shetland Islands Local Authority",0,IF('III Tool Overview'!$H$6="Eilean Siar Local Authority",0,new_ci(5,B72,C72,D72,$C$1,G72+H72,1,F72,E72*F72))))))) -> 0 | M72: =IF('III Tool Overview'!$H$6="Orkney Health Board",0,IF('III Tool Overview'!$H$6="Shetland Health Board",0,IF('III Tool Overview'!$H$6="Western Isles Health Board",0,IF('III Tool Overview'!$H$6="Orkney Islands Local Authority",0,IF('III Tool Overview'!$H$6="Shetland Islands Local Authority",0,IF('III Tool Overview'!$H$6="Eilean Siar Local Authority",0,new_ci(10,B72,C72,D72,$C$1,G72,1,F72,E72*F72))))))) -> 0 | N72: =IF('III Tool Overview'!$H$6="Orkney Health Board",0,IF('III Tool Overview'!$H$6="Shetland Health Board",0,IF('III Tool Overview'!$H$6="Western Isles Health Board",0,IF('III Tool Overview'!$H$6="Orkney Islands Local Authority",0,IF('III Tool Overview'!$H$6="Shetland Islands Local Authority",0,IF('III Tool Overview'!$H$6="Eilean Siar Local Authority",0,new_ci(10,B72,C72,D72,$C$1,G72+H72,1,F72,E72*F72))))))) -> 0 | O72: =IF('III Tool Overview'!$H$6="Orkney Health Board",0,IF('III Tool Overview'!$H$6="Shetland Health Board",0,IF('III Tool Overview'!$H$6="Western Isles Health Board",0,IF('III Tool Overview'!$H$6="Orkney Islands Local Authority",0,IF('III Tool Overview'!$H$6="Shetland Islands Local Authority",0,IF('III Tool Overview'!$H$6="Eilean Siar Local Authority",0,new_ci(20,B72,C72,D72,$C$1,G72,1,F72,E72*F72))))))) -> 0 | P72: =IF('III Tool Overview'!$H$6="Orkney Health Board",0,IF('III Tool Overview'!$H$6="Shetland Health Board",0,IF('III Tool Overview'!$H$6="Western Isles Health Board",0,IF('III Tool Overview'!$H$6="Orkney Islands Local Authority",0,IF('III Tool Overview'!$H$6="Shetland Islands Local Authority",0,IF('III Tool Overview'!$H$6="Eilean Siar Local Authority",0,new_ci(20,B72,C72,D72,$C$1,G72+H72,1,F72,E72*F72))))))) -> 0 | Q72: =IF('III Tool Overview'!$H$6="Orkney Health Board",0,IF('III Tool Overview'!$H$6="Shetland Health Board",0,IF('III Tool Overview'!$H$6="Western Isles Health Board",0,IF('III Tool Overview'!$H$6="Orkney Islands Local Authority",0,IF('III Tool Overview'!$H$6="Shetland Islands Local Authority",0,IF('III Tool Overview'!$H$6="Eilean Siar Local Authority",0,new_yll(2,B72,C72,D72,$C$1,G72,1,F72,E72*F72))))))) -> 0 | R72: =IF('III Tool Overview'!$H$6="Orkney Health Board",0,IF('III Tool Overview'!$H$6="Shetland Health Board",0,IF('III Tool Overview'!$H$6="Western Isles Health Board",0,IF('III Tool Overview'!$H$6="Orkney Islands Local Authority",0,IF('III Tool Overview'!$H$6="Shetland Islands Local Authority",0,IF('III Tool Overview'!$H$6="Eilean Siar Local Authority",0,new_yll(2,B72,C72,D72,$C$1,G72+H72,1,F72,E72*F72))))))) -> 0 | S72: 0 | T72: =IF('III Tool Overview'!$H$6="Orkney Health Board",0,IF('III Tool Overview'!$H$6="Shetland Health Board",0,IF('III Tool Overview'!$H$6="Western Isles Health Board",0,IF('III Tool Overview'!$H$6="Orkney Islands Local Authority",0,IF('III Tool Overview'!$H$6="Shetland Islands Local Authority",0,IF('III Tool Overview'!$H$6="Eilean Siar Local Authority",0,new_yll(5,B72,C72,D72,$C$1,G72,1,F72,E72*F72))))))) -> 0 | U72: =IF('III Tool Overview'!$H$6="Orkney Health Board",0,IF('III Tool Overview'!$H$6="Shetland Health Board",0,IF('III Tool Overview'!$H$6="Western Isles Health Board",0,IF('III Tool Overview'!$H$6="Orkney Islands Local Authority",0,IF('III Tool Overview'!$H$6="Shetland Islands Local Authority",0,IF('III Tool Overview'!$H$6="Eilean Siar Local Authority",0,new_yll(5,B72,C72,D72,$C$1,G72+H72,1,F72,E72*F72))))))) -> 0 | V72: 0 | W72: =IF('III Tool Overview'!$H$6="Orkney Health Board",0,IF('III Tool Overview'!$H$6="Shetland Health Board",0,IF('III Tool Overview'!$H$6="Western Isles Health Board",0,IF('III Tool Overview'!$H$6="Orkney Islands Local Authority",0,IF('III Tool Overview'!$H$6="Shetland Islands Local Authority",0,IF('III Tool Overview'!$H$6="Eilean Siar Local Authority",0,new_yll(10,B72,C72,D72,$C$1,G72,1,F72,E72*F72))))))) -> 0 | X72: =IF('III Tool Overview'!$H$6="Orkney Health Board",0,IF('III Tool Overview'!$H$6="Shetland Health Board",0,IF('III Tool Overview'!$H$6="Western Isles Health Board",0,IF('III Tool Overview'!$H$6="Orkney Islands Local Authority",0,IF('III Tool Overview'!$H$6="Shetland Islands Local Authority",0,IF('III Tool Overview'!$H$6="Eilean Siar Local Authority",0,new_yll(10,B72,C72,D72,$C$1,G72+H72,1,F72,E72*F72))))))) -> 0 | Y72: 0 | Z72: =IF('III Tool Overview'!$H$6="Orkney Health Board",0,IF('III Tool Overview'!$H$6="Shetland Health Board",0,IF('III Tool Overview'!$H$6="Western Isles Health Board",0,IF('III Tool Overview'!$H$6="Orkney Islands Local Authority",0,IF('III Tool Overview'!$H$6="Shetland Islands Local Authority",0,IF('III Tool Overview'!$H$6="Eilean Siar Local Authority",0,new_yll(20,B72,C72,D72,$C$1,G72,1,F72,E72*F72))))))) -> 0 | AA72: =IF('III Tool Overview'!$H$6="Orkney Health Board",0,IF('III Tool Overview'!$H$6="Shetland Health Board",0,IF('III Tool Overview'!$H$6="Western Isles Health Board",0,IF('III Tool Overview'!$H$6="Orkney Islands Local Authority",0,IF('III Tool Overview'!$H$6="Shetland Islands Local Authority",0,IF('III Tool Overview'!$H$6="Eilean Siar Local Authority",0,new_yll(20,B72,C72,D72,$C$1,G72+H72,1,F72,E72*F72))))))) -> 0 | AB72: 0 | AC72: =IF('III Tool Overview'!$H$6="Orkney Health Board",0,IF('III Tool Overview'!$H$6="Shetland Health Board",0,IF('III Tool Overview'!$H$6="Western Isles Health Board",0,IF('III Tool Overview'!$H$6="Orkney Islands Local Authority",0,IF('III Tool Overview'!$H$6="Shetland Islands Local Authority",0,IF('III Tool Overview'!$H$6="Eilean Siar Local Authority",0,hosp_count(2,B72,C72,D72,$C$1,G72,1,F72,E72*F72))))))) -> 0 | AD72: =IF('III Tool Overview'!$H$6="Orkney Health Board",0,IF('III Tool Overview'!$H$6="Shetland Health Board",0,IF('III Tool Overview'!$H$6="Western Isles Health Board",0,IF('III Tool Overview'!$H$6="Orkney Islands Local Authority",0,IF('III Tool Overview'!$H$6="Shetland Islands Local Authority",0,IF('III Tool Overview'!$H$6="Eilean Siar Local Authority",0,hosp_count(2,B72,C72,D72,$C$1,G72+H72,1,F72,E72*F72))))))) -> 0 | AE72: 0 | AF72: =IF('III Tool Overview'!$H$6="Orkney Health Board",0,IF('III Tool Overview'!$H$6="Shetland Health Board",0,IF('III Tool Overview'!$H$6="Western Isles Health Board",0,IF('III Tool Overview'!$H$6="Orkney Islands Local Authority",0,IF('III Tool Overview'!$H$6="Shetland Islands Local Authority",0,IF('III Tool Overview'!$H$6="Eilean Siar Local Authority",0,hosp_count(5,B72,C72,D72,$C$1,G72,1,F72,E72*F72))))))) -> 0 | AG72: =IF('III Tool Overview'!$H$6="Orkney Health Board",0,IF('III Tool Overview'!$H$6="Shetland Health Board",0,IF('III Tool Overview'!$H$6="Western Isles Health Board",0,IF('III Tool Overview'!$H$6="Orkney Islands Local Authority",0,IF('III Tool Overview'!$H$6="Shetland Islands Local Authority",0,IF('III Tool Overview'!$H$6="Eilean Siar Local Authority",0,hosp_count(5,B72,C72,D72,$C$1,G72+H72,1,F72,E72*F72))))))) -> 0 | AH72: 0 | AI72: =IF('III Tool Overview'!$H$6="Orkney Health Board",0,IF('III Tool Overview'!$H$6="Shetland Health Board",0,IF('III Tool Overview'!$H$6="Western Isles Health Board",0,IF('III Tool Overview'!$H$6="Orkney Islands Local Authority",0,IF('III Tool Overview'!$H$6="Shetland Islands Local Authority",0,IF('III Tool Overview'!$H$6="Eilean Siar Local Authority",0,hosp_count(10,B72,C72,D72,$C$1,G72,1,F72,E72*F72))))))) -> 0 | AJ72: =IF('III Tool Overview'!$H$6="Orkney Health Board",0,IF('III Tool Overview'!$H$6="Shetland Health Board",0,IF('III Tool Overview'!$H$6="Western Isles Health Board",0,IF('III Tool Overview'!$H$6="Orkney Islands Local Authority",0,IF('III Tool Overview'!$H$6="Shetland Islands Local Authority",0,IF('III Tool Overview'!$H$6="Eilean Siar Local Authority",0,hosp_count(10,B72,C72,D72,$C$1,G72+H72,1,F72,E72*F72))))))) -> 0 | AK72: 0 | AL72: =IF('III Tool Overview'!$H$6="Orkney Health Board",0,IF('III Tool Overview'!$H$6="Shetland Health Board",0,IF('III Tool Overview'!$H$6="Western Isles Health Board",0,IF('III Tool Overview'!$H$6="Orkney Islands Local Authority",0,IF('III Tool Overview'!$H$6="Shetland Islands Local Authority",0,IF('III Tool Overview'!$H$6="Eilean Siar Local Authority",0,hosp_count(20,B72,C72,D72,$C$1,G72,1,F72,E72*F72))))))) -> 0 | AM72: =IF('III Tool Overview'!$H$6="Orkney Health Board",0,IF('III Tool Overview'!$H$6="Shetland Health Board",0,IF('III Tool Overview'!$H$6="Western Isles Health Board",0,IF('III Tool Overview'!$H$6="Orkney Islands Local Authority",0,IF('III Tool Overview'!$H$6="Shetland Islands Local Authority",0,IF('III Tool Overview'!$H$6="Eilean Siar Local Authority",0,hosp_count(20,B72,C72,D72,$C$1,G72+H72,1,F72,E72*F72))))))) -> 0 | AN72: 0 | AP72: 0.5 | AQ72: 5
A73: Male 30-34 | B73: 32.5 | C73: male | D73: 1 | E73: =HLOOKUP('III Tool Overview'!$H$6,Prevalence!$B$2:$AV$268,Prevalence!AW69,FALSE) -> 0.45 | F73: =HLOOKUP('III Tool Overview'!$H$6,LookUpData_Pop!$B$1:$AV$269,LookUpData_Pop!BB74,FALSE)/5 -> 0 | G73: ='III Tool Overview'!$H$9/110 -> 0 | H73: =IF('III Tool Overview'!$H$10="Even distribution",Targeting!C71,IF('III Tool Overview'!$H$10="Targetting to Q1",Targeting!D71,IF('III Tool Overview'!$H$10="Targetting to Q1 & Q2",Targeting!E71,IF('III Tool Overview'!$H$10="No variation in price elasticity",Targeting!G71)))) -> 0 | I73: =IF('III Tool Overview'!$H$6="Orkney Health Board",0,IF('III Tool Overview'!$H$6="Shetland Health Board",0,IF('III Tool Overview'!$H$6="Western Isles Health Board",0,IF('III Tool Overview'!$H$6="Orkney Islands Local Authority",0,IF('III Tool Overview'!$H$6="Shetland Islands Local Authority",0,IF('III Tool Overview'!$H$6="Eilean Siar Local Authority",0,new_ci(2,B73,C73,D73,$C$1,G73,1,F73,E73*F73))))))) -> 0 | J73: =IF('III Tool Overview'!$H$6="Orkney Health Board",0,IF('III Tool Overview'!$H$6="Shetland Health Board",0,IF('III Tool Overview'!$H$6="Western Isles Health Board",0,IF('III Tool Overview'!$H$6="Orkney Islands Local Authority",0,IF('III Tool Overview'!$H$6="Shetland Islands Local Authority",0,IF('III Tool Overview'!$H$6="Eilean Siar Local Authority",0,new_ci(2,B73,C73,D73,$C$1,G73+H73,1,F73,E73*F73))))))) -> 0 | K73: =IF('III Tool Overview'!$H$6="Orkney Health Board",0,IF('III Tool Overview'!$H$6="Shetland Health Board",0,IF('III Tool Overview'!$H$6="Western Isles Health Board",0,IF('III Tool Overview'!$H$6="Orkney Islands Local Authority",0,IF('III Tool Overview'!$H$6="Shetland Islands Local Authority",0,IF('III Tool Overview'!$H$6="Eilean Siar Local Authority",0,new_ci(5,B73,C73,D73,$C$1,G73,1,F73,E73*F73))))))) -> 0 | L73: =IF('III Tool Overview'!$H$6="Orkney Health Board",0,IF('III Tool Overview'!$H$6="Shetland Health Board",0,IF('III Tool Overview'!$H$6="Western Isles Health Board",0,IF('III Tool Overview'!$H$6="Orkney Islands Local Authority",0,IF('III Tool Overview'!$H$6="Shetland Islands Local Authority",0,IF('III Tool Overview'!$H$6="Eilean Siar Local Authority",0,new_ci(5,B73,C73,D73,$C$1,G73+H73,1,F73,E73*F73))))))) -> 0 | M73: =IF('III Tool Overview'!$H$6="Orkney Health Board",0,IF('III Tool Overview'!$H$6="Shetland Health Board",0,IF('III Tool Overview'!$H$6="Western Isles Health Board",0,IF('III Tool Overview'!$H$6="Orkney Islands Local Authority",0,IF('III Tool Overview'!$H$6="Shetland Islands Local Authority",0,IF('III Tool Overview'!$H$6="Eilean Siar Local Authority",0,new_ci(10,B73,C73,D73,$C$1,G73,1,F73,E73*F73))))))) -> 0 | N73: =IF('III Tool Overview'!$H$6="Orkney Health Board",0,IF('III Tool Overview'!$H$6="Shetland Health Board",0,IF('III Tool Overview'!$H$6="Western Isles Health Board",0,IF('III Tool Overview'!$H$6="Orkney Islands Local Authority",0,IF('III Tool Overview'!$H$6="Shetland Islands Local Authority",0,IF('III Tool Overview'!$H$6="Eilean Siar Local Authority",0,new_ci(10,B73,C73,D73,$C$1,G73+H73,1,F73,E73*F73))))))) -> 0 | O73: =IF('III Tool Overview'!$H$6="Orkney Health Board",0,IF('III Tool Overview'!$H$6="Shetland Health Board",0,IF('III Tool Overview'!$H$6="Western Isles Health Board",0,IF('III Tool Overview'!$H$6="Orkney Islands Local Authority",0,IF('III Tool Overview'!$H$6="Shetland Islands Local Authority",0,IF('III Tool Overview'!$H$6="Eilean Siar Local Authority",0,new_ci(20,B73,C73,D73,$C$1,G73,1,F73,E73*F73))))))) -> 0 | P73: =IF('III Tool Overview'!$H$6="Orkney Health Board",0,IF('III Tool Overview'!$H$6="Shetland Health Board",0,IF('III Tool Overview'!$H$6="Western Isles Health Board",0,IF('III Tool Overview'!$H$6="Orkney Islands Local Authority",0,IF('III Tool Overview'!$H$6="Shetland Islands Local Authority",0,IF('III Tool Overview'!$H$6="Eilean Siar Local Authority",0,new_ci(20,B73,C73,D73,$C$1,G73+H73,1,F73,E73*F73))))))) -> 0 | Q73: =IF('III Tool Overview'!$H$6="Orkney Health Board",0,IF('III Tool Overview'!$H$6="Shetland Health Board",0,IF('III Tool Overview'!$H$6="Western Isles Health Board",0,IF('III Tool Overview'!$H$6="Orkney Islands Local Authority",0,IF('III Tool Overview'!$H$6="Shetland Islands Local Authority",0,IF('III Tool Overview'!$H$6="Eilean Siar Local Authority",0,new_yll(2,B73,C73,D73,$C$1,G73,1,F73,E73*F73))))))) -> 0 | R73: =IF('III Tool Overview'!$H$6="Orkney Health Board",0,IF('III Tool Overview'!$H$6="Shetland Health Board",0,IF('III Tool Overview'!$H$6="Western Isles Health Board",0,IF('III Tool Overview'!$H$6="Orkney Islands Local Authority",0,IF('III Tool Overview'!$H$6="Shetland Islands Local Authority",0,IF('III Tool Overview'!$H$6="Eilean Siar Local Authority",0,new_yll(2,B73,C73,D73,$C$1,G73+H73,1,F73,E73*F73))))))) -> 0 | S73: 0 | T73: =IF('III Tool Overview'!$H$6="Orkney Health Board",0,IF('III Tool Overview'!$H$6="Shetland Health Board",0,IF('III Tool Overview'!$H$6="Western Isles Health Board",0,IF('III Tool Overview'!$H$6="Orkney Islands Local Authority",0,IF('III Tool Overview'!$H$6="Shetland Islands Local Authority",0,IF('III Tool Overview'!$H$6="Eilean Siar Local Authority",0,new_yll(5,B73,C73,D73,$C$1,G73,1,F73,E73*F73))))))) -> 0 | U73: =IF('III Tool Overview'!$H$6="Orkney Health Board",0,IF('III Tool Overview'!$H$6="Shetland Health Board",0,IF('III Tool Overview'!$H$6="Western Isles Health Board",0,IF('III Tool Overview'!$H$6="Orkney Islands Local Authority",0,IF('III Tool Overview'!$H$6="Shetland Islands Local Authority",0,IF('III Tool Overview'!$H$6="Eilean Siar Local Authority",0,new_yll(5,B73,C73,D73,$C$1,G73+H73,1,F73,E73*F73))))))) -> 0 | V73: 0 | W73: =IF('III Tool Overview'!$H$6="Orkney Health Board",0,IF('III Tool Overview'!$H$6="Shetland Health Board",0,IF('III Tool Overview'!$H$6="Western Isles Health Board",0,IF('III Tool Overview'!$H$6="Orkney Islands Local Authority",0,IF('III Tool Overview'!$H$6="Shetland Islands Local Authority",0,IF('III Tool Overview'!$H$6="Eilean Siar Local Authority",0,new_yll(10,B73,C73,D73,$C$1,G73,1,F73,E73*F73))))))) -> 0 | X73: =IF('III Tool Overview'!$H$6="Orkney Health Board",0,IF('III Tool Overview'!$H$6="Shetland Health Board",0,IF('III Tool Overview'!$H$6="Western Isles Health Board",0,IF('III Tool Overview'!$H$6="Orkney Islands Local Authority",0,IF('III Tool Overview'!$H$6="Shetland Islands Local Authority",0,IF('III Tool Overview'!$H$6="Eilean Siar Local Authority",0,new_yll(10,B73,C73,D73,$C$1,G73+H73,1,F73,E73*F73))))))) -> 0 | Y73: 0 | Z73: =IF('III Tool Overview'!$H$6="Orkney Health Board",0,IF('III Tool Overview'!$H$6="Shetland Health Board",0,IF('III Tool Overview'!$H$6="Western Isles Health Board",0,IF('III Tool Overview'!$H$6="Orkney Islands Local Authority",0,IF('III Tool Overview'!$H$6="Shetland Islands Local Authority",0,IF('III Tool Overview'!$H$6="Eilean Siar Local Authority",0,new_yll(20,B73,C73,D73,$C$1,G73,1,F73,E73*F73))))))) -> 0 | AA73: =IF('III Tool Overview'!$H$6="Orkney Health Board",0,IF('III Tool Overview'!$H$6="Shetland Health Board",0,IF('III Tool Overview'!$H$6="Western Isles Health Board",0,IF('III Tool Overview'!$H$6="Orkney Islands Local Authority",0,IF('III Tool Overview'!$H$6="Shetland Islands Local Authority",0,IF('III Tool Overview'!$H$6="Eilean Siar Local Authority",0,new_yll(20,B73,C73,D73,$C$1,G73+H73,1,F73,E73*F73))))))) -> 0 | AB73: 0 | AC73: =IF('III Tool Overview'!$H$6="Orkney Health Board",0,IF('III Tool Overview'!$H$6="Shetland Health Board",0,IF('III Tool Overview'!$H$6="Western Isles Health Board",0,IF('III Tool Overview'!$H$6="Orkney Islands Local Authority",0,IF('III Tool Overview'!$H$6="Shetland Islands Local Authority",0,IF('III Tool Overview'!$H$6="Eilean Siar Local Authority",0,hosp_count(2,B73,C73,D73,$C$1,G73,1,F73,E73*F73))))))) -> 0 | AD73: =IF('III Tool Overview'!$H$6="Orkney Health Board",0,IF('III Tool Overview'!$H$6="Shetland Health Board",0,IF('III Tool Overview'!$H$6="Western Isles Health Board",0,IF('III Tool Overview'!$H$6="Orkney Islands Local Authority",0,IF('III Tool Overview'!$H$6="Shetland Islands Local Authority",0,IF('III Tool Overview'!$H$6="Eilean Siar Local Authority",0,hosp_count(2,B73,C73,D73,$C$1,G73+H73,1,F73,E73*F73))))))) -> 0 | AE73: 0 | AF73: =IF('III Tool Overview'!$H$6="Orkney Health Board",0,IF('III Tool Overview'!$H$6="Shetland Health Board",0,IF('III Tool Overview'!$H$6="Western Isles Health Board",0,IF('III Tool Overview'!$H$6="Orkney Islands Local Authority",0,IF('III Tool Overview'!$H$6="Shetland Islands Local Authority",0,IF('III Tool Overview'!$H$6="Eilean Siar Local Authority",0,hosp_count(5,B73,C73,D73,$C$1,G73,1,F73,E73*F73))))))) -> 0 | AG73: =IF('III Tool Overview'!$H$6="Orkney Health Board",0,IF('III Tool Overview'!$H$6="Shetland Health Board",0,IF('III Tool Overview'!$H$6="Western Isles Health Board",0,IF('III Tool Overview'!$H$6="Orkney Islands Local Authority",0,IF('III Tool Overview'!$H$6="Shetland Islands Local Authority",0,IF('III Tool Overview'!$H$6="Eilean Siar Local Authority",0,hosp_count(5,B73,C73,D73,$C$1,G73+H73,1,F73,E73*F73))))))) -> 0 | AH73: 0 | AI73: =IF('III Tool Overview'!$H$6="Orkney Health Board",0,IF('III Tool Overview'!$H$6="Shetland Health Board",0,IF('III Tool Overview'!$H$6="Western Isles Health Board",0,IF('III Tool Overview'!$H$6="Orkney Islands Local Authority",0,IF('III Tool Overview'!$H$6="Shetland Islands Local Authority",0,IF('III Tool Overview'!$H$6="Eilean Siar Local Authority",0,hosp_count(10,B73,C73,D73,$C$1,G73,1,F73,E73*F73))))))) -> 0 | AJ73: =IF('III Tool Overview'!$H$6="Orkney Health Board",0,IF('III Tool Overview'!$H$6="Shetland Health Board",0,IF('III Tool Overview'!$H$6="Western Isles Health Board",0,IF('III Tool Overview'!$H$6="Orkney Islands Local Authority",0,IF('III Tool Overview'!$H$6="Shetland Islands Local Authority",0,IF('III Tool Overview'!$H$6="Eilean Siar Local Authority",0,hosp_count(10,B73,C73,D73,$C$1,G73+H73,1,F73,E73*F73))))))) -> 0 | AK73: 0 | AL73: =IF('III Tool Overview'!$H$6="Orkney Health Board",0,IF('III Tool Overview'!$H$6="Shetland Health Board",0,IF('III Tool Overview'!$H$6="Western Isles Health Board",0,IF('III Tool Overview'!$H$6="Orkney Islands Local Authority",0,IF('III Tool Overview'!$H$6="Shetland Islands Local Authority",0,IF('III Tool Overview'!$H$6="Eilean Siar Local Authority",0,hosp_count(20,B73,C73,D73,$C$1,G73,1,F73,E73*F73))))))) -> 0 | AM73: =IF('III Tool Overview'!$H$6="Orkney Health Board",0,IF('III Tool Overview'!$H$6="Shetland Health Board",0,IF('III Tool Overview'!$H$6="Western Isles Health Board",0,IF('III Tool Overview'!$H$6="Orkney Islands Local Authority",0,IF('III Tool Overview'!$H$6="Shetland Islands Local Authority",0,IF('III Tool Overview'!$H$6="Eilean Siar Local Authority",0,hosp_count(20,B73,C73,D73,$C$1,G73+H73,1,F73,E73*F73))))))) -> 0 | AN73: 0 | AP73: 0.5 | AQ73: 5
A74: Male 35-39 | B74: 37.5 | C74: male | D74: 1 | E74: =HLOOKUP('III Tool Overview'!$H$6,Prevalence!$B$2:$AV$268,Prevalence!AW70,FALSE) -> 0.65 | F74: =HLOOKUP('III Tool Overview'!$H$6,LookUpData_Pop!$B$1:$AV$269,LookUpData_Pop!BB75,FALSE)/5 -> 0 | G74: ='III Tool Overview'!$H$9/110 -> 0 | H74: =IF('III Tool Overview'!$H$10="Even distribution",Targeting!C72,IF('III Tool Overview'!$H$10="Targetting to Q1",Targeting!D72,IF('III Tool Overview'!$H$10="Targetting to Q1 & Q2",Targeting!E72,IF('III Tool Overview'!$H$10="No variation in price elasticity",Targeting!G72)))) -> 0 | I74: =IF('III Tool Overview'!$H$6="Orkney Health Board",0,IF('III Tool Overview'!$H$6="Shetland Health Board",0,IF('III Tool Overview'!$H$6="Western Isles Health Board",0,IF('III Tool Overview'!$H$6="Orkney Islands Local Authority",0,IF('III Tool Overview'!$H$6="Shetland Islands Local Authority",0,IF('III Tool Overview'!$H$6="Eilean Siar Local Authority",0,new_ci(2,B74,C74,D74,$C$1,G74,1,F74,E74*F74))))))) -> 0 | J74: =IF('III Tool Overview'!$H$6="Orkney Health Board",0,IF('III Tool Overview'!$H$6="Shetland Health Board",0,IF('III Tool Overview'!$H$6="Western Isles Health Board",0,IF('III Tool Overview'!$H$6="Orkney Islands Local Authority",0,IF('III Tool Overview'!$H$6="Shetland Islands Local Authority",0,IF('III Tool Overview'!$H$6="Eilean Siar Local Authority",0,new_ci(2,B74,C74,D74,$C$1,G74+H74,1,F74,E74*F74))))))) -> 0 | K74: =IF('III Tool Overview'!$H$6="Orkney Health Board",0,IF('III Tool Overview'!$H$6="Shetland Health Board",0,IF('III Tool Overview'!$H$6="Western Isles Health Board",0,IF('III Tool Overview'!$H$6="Orkney Islands Local Authority",0,IF('III Tool Overview'!$H$6="Shetland Islands Local Authority",0,IF('III Tool Overview'!$H$6="Eilean Siar Local Authority",0,new_ci(5,B74,C74,D74,$C$1,G74,1,F74,E74*F74))))))) -> 0 | L74: =IF('III Tool Overview'!$H$6="Orkney Health Board",0,IF('III Tool Overview'!$H$6="Shetland Health Board",0,IF('III Tool Overview'!$H$6="Western Isles Health Board",0,IF('III Tool Overview'!$H$6="Orkney Islands Local Authority",0,IF('III Tool Overview'!$H$6="Shetland Islands Local Authority",0,IF('III Tool Overview'!$H$6="Eilean Siar Local Authority",0,new_ci(5,B74,C74,D74,$C$1,G74+H74,1,F74,E74*F74))))))) -> 0 | M74: =IF('III Tool Overview'!$H$6="Orkney Health Board",0,IF('III Tool Overview'!$H$6="Shetland Health Board",0,IF('III Tool Overview'!$H$6="Western Isles Health Board",0,IF('III Tool Overview'!$H$6="Orkney Islands Local Authority",0,IF('III Tool Overview'!$H$6="Shetland Islands Local Authority",0,IF('III Tool Overview'!$H$6="Eilean Siar Local Authority",0,new_ci(10,B74,C74,D74,$C$1,G74,1,F74,E74*F74))))))) -> 0 | N74: =IF('III Tool Overview'!$H$6="Orkney Health Board",0,IF('III Tool Overview'!$H$6="Shetland Health Board",0,IF('III Tool Overview'!$H$6="Western Isles Health Board",0,IF('III Tool Overview'!$H$6="Orkney Islands Local Authority",0,IF('III Tool Overview'!$H$6="Shetland Islands Local Authority",0,IF('III Tool Overview'!$H$6="Eilean Siar Local Authority",0,new_ci(10,B74,C74,D74,$C$1,G74+H74,1,F74,E74*F74))))))) -> 0 | O74: =IF('III Tool Overview'!$H$6="Orkney Health Board",0,IF('III Tool Overview'!$H$6="Shetland Health Board",0,IF('III Tool Overview'!$H$6="Western Isles Health Board",0,IF('III Tool Overview'!$H$6="Orkney Islands Local Authority",0,IF('III Tool Overview'!$H$6="Shetland Islands Local Authority",0,IF('III Tool Overview'!$H$6="Eilean Siar Local Authority",0,new_ci(20,B74,C74,D74,$C$1,G74,1,F74,E74*F74))))))) -> 0 | P74: =IF('III Tool Overview'!$H$6="Orkney Health Board",0,IF('III Tool Overview'!$H$6="Shetland Health Board",0,IF('III Tool Overview'!$H$6="Western Isles Health Board",0,IF('III Tool Overview'!$H$6="Orkney Islands Local Authority",0,IF('III Tool Overview'!$H$6="Shetland Islands Local Authority",0,IF('III Tool Overview'!$H$6="Eilean Siar Local Authority",0,new_ci(20,B74,C74,D74,$C$1,G74+H74,1,F74,E74*F74))))))) -> 0 | Q74: =IF('III Tool Overview'!$H$6="Orkney Health Board",0,IF('III Tool Overview'!$H$6="Shetland Health Board",0,IF('III Tool Overview'!$H$6="Western Isles Health Board",0,IF('III Tool Overview'!$H$6="Orkney Islands Local Authority",0,IF('III Tool Overview'!$H$6="Shetland Islands Local Authority",0,IF('III Tool Overview'!$H$6="Eilean Siar Local Authority",0,new_yll(2,B74,C74,D74,$C$1,G74,1,F74,E74*F74))))))) -> 0 | R74: =IF('III Tool Overview'!$H$6="Orkney Health Board",0,IF('III Tool Overview'!$H$6="Shetland Health Board",0,IF('III Tool Overview'!$H$6="Western Isles Health Board",0,IF('III Tool Overview'!$H$6="Orkney Islands Local Authority",0,IF('III Tool Overview'!$H$6="Shetland Islands Local Authority",0,IF('III Tool Overview'!$H$6="Eilean Siar Local Authority",0,new_yll(2,B74,C74,D74,$C$1,G74+H74,1,F74,E74*F74))))))) -> 0 | S74: 0 | T74: =IF('III Tool Overview'!$H$6="Orkney Health Board",0,IF('III Tool Overview'!$H$6="Shetland Health Board",0,IF('III Tool Overview'!$H$6="Western Isles Health Board",0,IF('III Tool Overview'!$H$6="Orkney Islands Local Authority",0,IF('III Tool Overview'!$H$6="Shetland Islands Local Authority",0,IF('III Tool Overview'!$H$6="Eilean Siar Local Authority",0,new_yll(5,B74,C74,D74,$C$1,G74,1,F74,E74*F74))))))) -> 0 | U74: =IF('III Tool Overview'!$H$6="Orkney Health Board",0,IF('III Tool Overview'!$H$6="Shetland Health Board",0,IF('III Tool Overview'!$H$6="Western Isles Health Board",0,IF('III Tool Overview'!$H$6="Orkney Islands Local Authority",0,IF('III Tool Overview'!$H$6="Shetland Islands Local Authority",0,IF('III Tool Overview'!$H$6="Eilean Siar Local Authority",0,new_yll(5,B74,C74,D74,$C$1,G74+H74,1,F74,E74*F74))))))) -> 0 | V74: 0 | W74: =IF('III Tool Overview'!$H$6="Orkney Health Board",0,IF('III Tool Overview'!$H$6="Shetland Health Board",0,IF('III Tool Overview'!$H$6="Western Isles Health Board",0,IF('III Tool Overview'!$H$6="Orkney Islands Local Authority",0,IF('III Tool Overview'!$H$6="Shetland Islands Local Authority",0,IF('III Tool Overview'!$H$6="Eilean Siar Local Authority",0,new_yll(10,B74,C74,D74,$C$1,G74,1,F74,E74*F74))))))) -> 0 | X74: =IF('III Tool Overview'!$H$6="Orkney Health Board",0,IF('III Tool Overview'!$H$6="Shetland Health Board",0,IF('III Tool Overview'!$H$6="Western Isles Health Board",0,IF('III Tool Overview'!$H$6="Orkney Islands Local Authority",0,IF('III Tool Overview'!$H$6="Shetland Islands Local Authority",0,IF('III Tool Overview'!$H$6="Eilean Siar Local Authority",0,new_yll(10,B74,C74,D74,$C$1,G74+H74,1,F74,E74*F74))))))) -> 0 | Y74: 0 | Z74: =IF('III Tool Overview'!$H$6="Orkney Health Board",0,IF('III Tool Overview'!$H$6="Shetland Health Board",0,IF('III Tool Overview'!$H$6="Western Isles Health Board",0,IF('III Tool Overview'!$H$6="Orkney Islands Local Authority",0,IF('III Tool Overview'!$H$6="Shetland Islands Local Authority",0,IF('III Tool Overview'!$H$6="Eilean Siar Local Authority",0,new_yll(20,B74,C74,D74,$C$1,G74,1,F74,E74*F74))))))) -> 0 | AA74: =IF('III Tool Overview'!$H$6="Orkney Health Board",0,IF('III Tool Overview'!$H$6="Shetland Health Board",0,IF('III Tool Overview'!$H$6="Western Isles Health Board",0,IF('III Tool Overview'!$H$6="Orkney Islands Local Authority",0,IF('III Tool Overview'!$H$6="Shetland Islands Local Authority",0,IF('III Tool Overview'!$H$6="Eilean Siar Local Authority",0,new_yll(20,B74,C74,D74,$C$1,G74+H74,1,F74,E74*F74))))))) -> 0 | AB74: 0 | AC74: =IF('III Tool Overview'!$H$6="Orkney Health Board",0,IF('III Tool Overview'!$H$6="Shetland Health Board",0,IF('III Tool Overview'!$H$6="Western Isles Health Board",0,IF('III Tool Overview'!$H$6="Orkney Islands Local Authority",0,IF('III Tool Overview'!$H$6="Shetland Islands Local Authority",0,IF('III Tool Overview'!$H$6="Eilean Siar Local Authority",0,hosp_count(2,B74,C74,D74,$C$1,G74,1,F74,E74*F74))))))) -> 0 | AD74: =IF('III Tool Overview'!$H$6="Orkney Health Board",0,IF('III Tool Overview'!$H$6="Shetland Health Board",0,IF('III Tool Overview'!$H$6="Western Isles Health Board",0,IF('III Tool Overview'!$H$6="Orkney Islands Local Authority",0,IF('III Tool Overview'!$H$6="Shetland Islands Local Authority",0,IF('III Tool Overview'!$H$6="Eilean Siar Local Authority",0,hosp_count(2,B74,C74,D74,$C$1,G74+H74,1,F74,E74*F74))))))) -> 0 | AE74: 0 | AF74: =IF('III Tool Overview'!$H$6="Orkney Health Board",0,IF('III Tool Overview'!$H$6="Shetland Health Board",0,IF('III Tool Overview'!$H$6="Western Isles Health Board",0,IF('III Tool Overview'!$H$6="Orkney Islands Local Authority",0,IF('III Tool Overview'!$H$6="Shetland Islands Local Authority",0,IF('III Tool Overview'!$H$6="Eilean Siar Local Authority",0,hosp_count(5,B74,C74,D74,$C$1,G74,1,F74,E74*F74))))))) -> 0 | AG74: =IF('III Tool Overview'!$H$6="Orkney Health Board",0,IF('III Tool Overview'!$H$6="Shetland Health Board",0,IF('III Tool Overview'!$H$6="Western Isles Health Board",0,IF('III Tool Overview'!$H$6="Orkney Islands Local Authority",0,IF('III Tool Overview'!$H$6="Shetland Islands Local Authority",0,IF('III Tool Overview'!$H$6="Eilean Siar Local Authority",0,hosp_count(5,B74,C74,D74,$C$1,G74+H74,1,F74,E74*F74))))))) -> 0 | AH74: 0 | AI74: =IF('III Tool Overview'!$H$6="Orkney Health Board",0,IF('III Tool Overview'!$H$6="Shetland Health Board",0,IF('III Tool Overview'!$H$6="Western Isles Health Board",0,IF('III Tool Overview'!$H$6="Orkney Islands Local Authority",0,IF('III Tool Overview'!$H$6="Shetland Islands Local Authority",0,IF('III Tool Overview'!$H$6="Eilean Siar Local Authority",0,hosp_count(10,B74,C74,D74,$C$1,G74,1,F74,E74*F74))))))) -> 0 | AJ74: =IF('III Tool Overview'!$H$6="Orkney Health Board",0,IF('III Tool Overview'!$H$6="Shetland Health Board",0,IF('III Tool Overview'!$H$6="Western Isles Health Board",0,IF('III Tool Overview'!$H$6="Orkney Islands Local Authority",0,IF('III Tool Overview'!$H$6="Shetland Islands Local Authority",0,IF('III Tool Overview'!$H$6="Eilean Siar Local Authority",0,hosp_count(10,B74,C74,D74,$C$1,G74+H74,1,F74,E74*F74))))))) -> 0 | AK74: 0 | AL74: =IF('III Tool Overview'!$H$6="Orkney Health Board",0,IF('III Tool Overview'!$H$6="Shetland Health Board",0,IF('III Tool Overview'!$H$6="Western Isles Health Board",0,IF('III Tool Overview'!$H$6="Orkney Islands Local Authority",0,IF('III Tool Overview'!$H$6="Shetland Islands Local Authority",0,IF('III Tool Overview'!$H$6="Eilean Siar Local Authority",0,hosp_count(20,B74,C74,D74,$C$1,G74,1,F74,E74*F74))))))) -> 0 | AM74: =IF('III Tool Overview'!$H$6="Orkney Health Board",0,IF('III Tool Overview'!$H$6="Shetland Health Board",0,IF('III Tool Overview'!$H$6="Western Isles Health Board",0,IF('III Tool Overview'!$H$6="Orkney Islands Local Authority",0,IF('III Tool Overview'!$H$6="Shetland Islands Local Authority",0,IF('III Tool Overview'!$H$6="Eilean Siar Local Authority",0,hosp_count(20,B74,C74,D74,$C$1,G74+H74,1,F74,E74*F74))))))) -> 0 | AN74: 0 | AP74: 0.5 | AQ74: 5
A75: Male 40-44 | B75: 42.5 | C75: male | D75: 1 | E75: =HLOOKUP('III Tool Overview'!$H$6,Prevalence!$B$2:$AV$268,Prevalence!AW71,FALSE) -> 0.65 | F75: =HLOOKUP('III Tool Overview'!$H$6,LookUpData_Pop!$B$1:$AV$269,LookUpData_Pop!BB76,FALSE)/5 -> 0 | G75: ='III Tool Overview'!$H$9/110 -> 0 | H75: =IF('III Tool Overview'!$H$10="Even distribution",Targeting!C73,IF('III Tool Overview'!$H$10="Targetting to Q1",Targeting!D73,IF('III Tool Overview'!$H$10="Targetting to Q1 & Q2",Targeting!E73,IF('III Tool Overview'!$H$10="No variation in price elasticity",Targeting!G73)))) -> 0 | I75: =IF('III Tool Overview'!$H$6="Orkney Health Board",0,IF('III Tool Overview'!$H$6="Shetland Health Board",0,IF('III Tool Overview'!$H$6="Western Isles Health Board",0,IF('III Tool Overview'!$H$6="Orkney Islands Local Authority",0,IF('III Tool Overview'!$H$6="Shetland Islands Local Authority",0,IF('III Tool Overview'!$H$6="Eilean Siar Local Authority",0,new_ci(2,B75,C75,D75,$C$1,G75,1,F75,E75*F75))))))) -> 0 | J75: =IF('III Tool Overview'!$H$6="Orkney Health Board",0,IF('III Tool Overview'!$H$6="Shetland Health Board",0,IF('III Tool Overview'!$H$6="Western Isles Health Board",0,IF('III Tool Overview'!$H$6="Orkney Islands Local Authority",0,IF('III Tool Overview'!$H$6="Shetland Islands Local Authority",0,IF('III Tool Overview'!$H$6="Eilean Siar Local Authority",0,new_ci(2,B75,C75,D75,$C$1,G75+H75,1,F75,E75*F75))))))) -> 0 | K75: =IF('III Tool Overview'!$H$6="Orkney Health Board",0,IF('III Tool Overview'!$H$6="Shetland Health Board",0,IF('III Tool Overview'!$H$6="Western Isles Health Board",0,IF('III Tool Overview'!$H$6="Orkney Islands Local Authority",0,IF('III Tool Overview'!$H$6="Shetland Islands Local Authority",0,IF('III Tool Overview'!$H$6="Eilean Siar Local Authority",0,new_ci(5,B75,C75,D75,$C$1,G75,1,F75,E75*F75))))))) -> 0 | L75: =IF('III Tool Overview'!$H$6="Orkney Health Board",0,IF('III Tool Overview'!$H$6="Shetland Health Board",0,IF('III Tool Overview'!$H$6="Western Isles Health Board",0,IF('III Tool Overview'!$H$6="Orkney Islands Local Authority",0,IF('III Tool Overview'!$H$6="Shetland Islands Local Authority",0,IF('III Tool Overview'!$H$6="Eilean Siar Local Authority",0,new_ci(5,B75,C75,D75,$C$1,G75+H75,1,F75,E75*F75))))))) -> 0 | M75: =IF('III Tool Overview'!$H$6="Orkney Health Board",0,IF('III Tool Overview'!$H$6="Shetland Health Board",0,IF('III Tool Overview'!$H$6="Western Isles Health Board",0,IF('III Tool Overview'!$H$6="Orkney Islands Local Authority",0,IF('III Tool Overview'!$H$6="Shetland Islands Local Authority",0,IF('III Tool Overview'!$H$6="Eilean Siar Local Authority",0,new_ci(10,B75,C75,D75,$C$1,G75,1,F75,E75*F75))))))) -> 0 | N75: =IF('III Tool Overview'!$H$6="Orkney Health Board",0,IF('III Tool Overview'!$H$6="Shetland Health Board",0,IF('III Tool Overview'!$H$6="Western Isles Health Board",0,IF('III Tool Overview'!$H$6="Orkney Islands Local Authority",0,IF('III Tool Overview'!$H$6="Shetland Islands Local Authority",0,IF('III Tool Overview'!$H$6="Eilean Siar Local Authority",0,new_ci(10,B75,C75,D75,$C$1,G75+H75,1,F75,E75*F75))))))) -> 0 | O75: =IF('III Tool Overview'!$H$6="Orkney Health Board",0,IF('III Tool Overview'!$H$6="Shetland Health Board",0,IF('III Tool Overview'!$H$6="Western Isles Health Board",0,IF('III Tool Overview'!$H$6="Orkney Islands Local Authority",0,IF('III Tool Overview'!$H$6="Shetland Islands Local Authority",0,IF('III Tool Overview'!$H$6="Eilean Siar Local Authority",0,new_ci(20,B75,C75,D75,$C$1,G75,1,F75,E75*F75))))))) -> 0 | P75: =IF('III Tool Overview'!$H$6="Orkney Health Board",0,IF('III Tool Overview'!$H$6="Shetland Health Board",0,IF('III Tool Overview'!$H$6="Western Isles Health Board",0,IF('III Tool Overview'!$H$6="Orkney Islands Local Authority",0,IF('III Tool Overview'!$H$6="Shetland Islands Local Authority",0,IF('III Tool Overview'!$H$6="Eilean Siar Local Authority",0,new_ci(20,B75,C75,D75,$C$1,G75+H75,1,F75,E75*F75))))))) -> 0 | Q75: =IF('III Tool Overview'!$H$6="Orkney Health Board",0,IF('III Tool Overview'!$H$6="Shetland Health Board",0,IF('III Tool Overview'!$H$6="Western Isles Health Board",0,IF('III Tool Overview'!$H$6="Orkney Islands Local Authority",0,IF('III Tool Overview'!$H$6="Shetland Islands Local Authority",0,IF('III Tool Overview'!$H$6="Eilean Siar Local Authority",0,new_yll(2,B75,C75,D75,$C$1,G75,1,F75,E75*F75))))))) -> 0 | R75: =IF('III Tool Overview'!$H$6="Orkney Health Board",0,IF('III Tool Overview'!$H$6="Shetland Health Board",0,IF('III Tool Overview'!$H$6="Western Isles Health Board",0,IF('III Tool Overview'!$H$6="Orkney Islands Local Authority",0,IF('III Tool Overview'!$H$6="Shetland Islands Local Authority",0,IF('III Tool Overview'!$H$6="Eilean Siar Local Authority",0,new_yll(2,B75,C75,D75,$C$1,G75+H75,1,F75,E75*F75))))))) -> 0 | S75: 0 | T75: =IF('III Tool Overview'!$H$6="Orkney Health Board",0,IF('III Tool Overview'!$H$6="Shetland Health Board",0,IF('III Tool Overview'!$H$6="Western Isles Health Board",0,IF('III Tool Overview'!$H$6="Orkney Islands Local Authority",0,IF('III Tool Overview'!$H$6="Shetland Islands Local Authority",0,IF('III Tool Overview'!$H$6="Eilean Siar Local Authority",0,new_yll(5,B75,C75,D75,$C$1,G75,1,F75,E75*F75))))))) -> 0 | U75: =IF('III Tool Overview'!$H$6="Orkney Health Board",0,IF('III Tool Overview'!$H$6="Shetland Health Board",0,IF('III Tool Overview'!$H$6="Western Isles Health Board",0,IF('III Tool Overview'!$H$6="Orkney Islands Local Authority",0,IF('III Tool Overview'!$H$6="Shetland Islands Local Authority",0,IF('III Tool Overview'!$H$6="Eilean Siar Local Authority",0,new_yll(5,B75,C75,D75,$C$1,G75+H75,1,F75,E75*F75))))))) -> 0 | V75: 0 | W75: =IF('III Tool Overview'!$H$6="Orkney Health Board",0,IF('III Tool Overview'!$H$6="Shetland Health Board",0,IF('III Tool Overview'!$H$6="Western Isles Health Board",0,IF('III Tool Overview'!$H$6="Orkney Islands Local Authority",0,IF('III Tool Overview'!$H$6="Shetland Islands Local Authority",0,IF('III Tool Overview'!$H$6="Eilean Siar Local Authority",0,new_yll(10,B75,C75,D75,$C$1,G75,1,F75,E75*F75))))))) -> 0 | X75: =IF('III Tool Overview'!$H$6="Orkney Health Board",0,IF('III Tool Overview'!$H$6="Shetland Health Board",0,IF('III Tool Overview'!$H$6="Western Isles Health Board",0,IF('III Tool Overview'!$H$6="Orkney Islands Local Authority",0,IF('III Tool Overview'!$H$6="Shetland Islands Local Authority",0,IF('III Tool Overview'!$H$6="Eilean Siar Local Authority",0,new_yll(10,B75,C75,D75,$C$1,G75+H75,1,F75,E75*F75))))))) -> 0 | Y75: 0 | Z75: =IF('III Tool Overview'!$H$6="Orkney Health Board",0,IF('III Tool Overview'!$H$6="Shetland Health Board",0,IF('III Tool Overview'!$H$6="Western Isles Health Board",0,IF('III Tool Overview'!$H$6="Orkney Islands Local Authority",0,IF('III Tool Overview'!$H$6="Shetland Islands Local Authority",0,IF('III Tool Overview'!$H$6="Eilean Siar Local Authority",0,new_yll(20,B75,C75,D75,$C$1,G75,1,F75,E75*F75))))))) -> 0 | AA75: =IF('III Tool Overview'!$H$6="Orkney Health Board",0,IF('III Tool Overview'!$H$6="Shetland Health Board",0,IF('III Tool Overview'!$H$6="Western Isles Health Board",0,IF('III Tool Overview'!$H$6="Orkney Islands Local Authority",0,IF('III Tool Overview'!$H$6="Shetland Islands Local Authority",0,IF('III Tool Overview'!$H$6="Eilean Siar Local Authority",0,new_yll(20,B75,C75,D75,$C$1,G75+H75,1,F75,E75*F75))))))) -> 0 | AB75: 0 | AC75: =IF('III Tool Overview'!$H$6="Orkney Health Board",0,IF('III Tool Overview'!$H$6="Shetland Health Board",0,IF('III Tool Overview'!$H$6="Western Isles Health Board",0,IF('III Tool Overview'!$H$6="Orkney Islands Local Authority",0,IF('III Tool Overview'!$H$6="Shetland Islands Local Authority",0,IF('III Tool Overview'!$H$6="Eilean Siar Local Authority",0,hosp_count(2,B75,C75,D75,$C$1,G75,1,F75,E75*F75))))))) -> 0 | AD75: =IF('III Tool Overview'!$H$6="Orkney Health Board",0,IF('III Tool Overview'!$H$6="Shetland Health Board",0,IF('III Tool Overview'!$H$6="Western Isles Health Board",0,IF('III Tool Overview'!$H$6="Orkney Islands Local Authority",0,IF('III Tool Overview'!$H$6="Shetland Islands Local Authority",0,IF('III Tool Overview'!$H$6="Eilean Siar Local Authority",0,hosp_count(2,B75,C75,D75,$C$1,G75+H75,1,F75,E75*F75))))))) -> 0 | AE75: 0 | AF75: =IF('III Tool Overview'!$H$6="Orkney Health Board",0,IF('III Tool Overview'!$H$6="Shetland Health Board",0,IF('III Tool Overview'!$H$6="Western Isles Health Board",0,IF('III Tool Overview'!$H$6="Orkney Islands Local Authority",0,IF('III Tool Overview'!$H$6="Shetland Islands Local Authority",0,IF('III Tool Overview'!$H$6="Eilean Siar Local Authority",0,hosp_count(5,B75,C75,D75,$C$1,G75,1,F75,E75*F75))))))) -> 0 | AG75: =IF('III Tool Overview'!$H$6="Orkney Health Board",0,IF('III Tool Overview'!$H$6="Shetland Health Board",0,IF('III Tool Overview'!$H$6="Western Isles Health Board",0,IF('III Tool Overview'!$H$6="Orkney Islands Local Authority",0,IF('III Tool Overview'!$H$6="Shetland Islands Local Authority",0,IF('III Tool Overview'!$H$6="Eilean Siar Local Authority",0,hosp_count(5,B75,C75,D75,$C$1,G75+H75,1,F75,E75*F75))))))) -> 0 | AH75: 0 | AI75: =IF('III Tool Overview'!$H$6="Orkney Health Board",0,IF('III Tool Overview'!$H$6="Shetland Health Board",0,IF('III Tool Overview'!$H$6="Western Isles Health Board",0,IF('III Tool Overview'!$H$6="Orkney Islands Local Authority",0,IF('III Tool Overview'!$H$6="Shetland Islands Local Authority",0,IF('III Tool Overview'!$H$6="Eilean Siar Local Authority",0,hosp_count(10,B75,C75,D75,$C$1,G75,1,F75,E75*F75))))))) -> 0 | AJ75: =IF('III Tool Overview'!$H$6="Orkney Health Board",0,IF('III Tool Overview'!$H$6="Shetland Health Board",0,IF('III Tool Overview'!$H$6="Western Isles Health Board",0,IF('III Tool Overview'!$H$6="Orkney Islands Local Authority",0,IF('III Tool Overview'!$H$6="Shetland Islands Local Authority",0,IF('III Tool Overview'!$H$6="Eilean Siar Local Authority",0,hosp_count(10,B75,C75,D75,$C$1,G75+H75,1,F75,E75*F75))))))) -> 0 | AK75: 0 | AL75: =IF('III Tool Overview'!$H$6="Orkney Health Board",0,IF('III Tool Overview'!$H$6="Shetland Health Board",0,IF('III Tool Overview'!$H$6="Western Isles Health Board",0,IF('III Tool Overview'!$H$6="Orkney Islands Local Authority",0,IF('III Tool Overview'!$H$6="Shetland Islands Local Authority",0,IF('III Tool Overview'!$H$6="Eilean Siar Local Authority",0,hosp_count(20,B75,C75,D75,$C$1,G75,1,F75,E75*F75))))))) -> 0 | AM75: =IF('III Tool Overview'!$H$6="Orkney Health Board",0,IF('III Tool Overview'!$H$6="Shetland Health Board",0,IF('III Tool Overview'!$H$6="Western Isles Health Board",0,IF('III Tool Overview'!$H$6="Orkney Islands Local Authority",0,IF('III Tool Overview'!$H$6="Shetland Islands Local Authority",0,IF('III Tool Overview'!$H$6="Eilean Siar Local Authority",0,hosp_count(20,B75,C75,D75,$C$1,G75+H75,1,F75,E75*F75))))))) -> 0 | AN75: 0 | AP75: 0.5 | AQ75: 5
A76: Male 45-49 | B76: 47.5 | C76: male | D76: 1 | E76: =HLOOKUP('III Tool Overview'!$H$6,Prevalence!$B$2:$AV$268,Prevalence!AW72,FALSE) -> 0.5625 | F76: =HLOOKUP('III Tool Overview'!$H$6,LookUpData_Pop!$B$1:$AV$269,LookUpData_Pop!BB77,FALSE)/5 -> 0 | G76: ='III Tool Overview'!$H$9/110 -> 0 | H76: =IF('III Tool Overview'!$H$10="Even distribution",Targeting!C74,IF('III Tool Overview'!$H$10="Targetting to Q1",Targeting!D74,IF('III Tool Overview'!$H$10="Targetting to Q1 & Q2",Targeting!E74,IF('III Tool Overview'!$H$10="No variation in price elasticity",Targeting!G74)))) -> 0 | I76: =IF('III Tool Overview'!$H$6="Orkney Health Board",0,IF('III Tool Overview'!$H$6="Shetland Health Board",0,IF('III Tool Overview'!$H$6="Western Isles Health Board",0,IF('III Tool Overview'!$H$6="Orkney Islands Local Authority",0,IF('III Tool Overview'!$H$6="Shetland Islands Local Authority",0,IF('III Tool Overview'!$H$6="Eilean Siar Local Authority",0,new_ci(2,B76,C76,D76,$C$1,G76,1,F76,E76*F76))))))) -> 0 | J76: =IF('III Tool Overview'!$H$6="Orkney Health Board",0,IF('III Tool Overview'!$H$6="Shetland Health Board",0,IF('III Tool Overview'!$H$6="Western Isles Health Board",0,IF('III Tool Overview'!$H$6="Orkney Islands Local Authority",0,IF('III Tool Overview'!$H$6="Shetland Islands Local Authority",0,IF('III Tool Overview'!$H$6="Eilean Siar Local Authority",0,new_ci(2,B76,C76,D76,$C$1,G76+H76,1,F76,E76*F76))))))) -> 0 | K76: =IF('III Tool Overview'!$H$6="Orkney Health Board",0,IF('III Tool Overview'!$H$6="Shetland Health Board",0,IF('III Tool Overview'!$H$6="Western Isles Health Board",0,IF('III Tool Overview'!$H$6="Orkney Islands Local Authority",0,IF('III Tool Overview'!$H$6="Shetland Islands Local Authority",0,IF('III Tool Overview'!$H$6="Eilean Siar Local Authority",0,new_ci(5,B76,C76,D76,$C$1,G76,1,F76,E76*F76))))))) -> 0 | L76: =IF('III Tool Overview'!$H$6="Orkney Health Board",0,IF('III Tool Overview'!$H$6="Shetland Health Board",0,IF('III Tool Overview'!$H$6="Western Isles Health Board",0,IF('III Tool Overview'!$H$6="Orkney Islands Local Authority",0,IF('III Tool Overview'!$H$6="Shetland Islands Local Authority",0,IF('III Tool Overview'!$H$6="Eilean Siar Local Authority",0,new_ci(5,B76,C76,D76,$C$1,G76+H76,1,F76,E76*F76))))))) -> 0 | M76: =IF('III Tool Overview'!$H$6="Orkney Health Board",0,IF('III Tool Overview'!$H$6="Shetland Health Board",0,IF('III Tool Overview'!$H$6="Western Isles Health Board",0,IF('III Tool Overview'!$H$6="Orkney Islands Local Authority",0,IF('III Tool Overview'!$H$6="Shetland Islands Local Authority",0,IF('III Tool Overview'!$H$6="Eilean Siar Local Authority",0,new_ci(10,B76,C76,D76,$C$1,G76,1,F76,E76*F76))))))) -> 0 | N76: =IF('III Tool Overview'!$H$6="Orkney Health Board",0,IF('III Tool Overview'!$H$6="Shetland Health Board",0,IF('III Tool Overview'!$H$6="Western Isles Health Board",0,IF('III Tool Overview'!$H$6="Orkney Islands Local Authority",0,IF('III Tool Overview'!$H$6="Shetland Islands Local Authority",0,IF('III Tool Overview'!$H$6="Eilean Siar Local Authority",0,new_ci(10,B76,C76,D76,$C$1,G76+H76,1,F76,E76*F76))))))) -> 0 | O76: =IF('III Tool Overview'!$H$6="Orkney Health Board",0,IF('III Tool Overview'!$H$6="Shetland Health Board",0,IF('III Tool Overview'!$H$6="Western Isles Health Board",0,IF('III Tool Overview'!$H$6="Orkney Islands Local Authority",0,IF('III Tool Overview'!$H$6="Shetland Islands Local Authority",0,IF('III Tool Overview'!$H$6="Eilean Siar Local Authority",0,new_ci(20,B76,C76,D76,$C$1,G76,1,F76,E76*F76))))))) -> 0 | P76: =IF('III Tool Overview'!$H$6="Orkney Health Board",0,IF('III Tool Overview'!$H$6="Shetland Health Board",0,IF('III Tool Overview'!$H$6="Western Isles Health Board",0,IF('III Tool Overview'!$H$6="Orkney Islands Local Authority",0,IF('III Tool Overview'!$H$6="Shetland Islands Local Authority",0,IF('III Tool Overview'!$H$6="Eilean Siar Local Authority",0,new_ci(20,B76,C76,D76,$C$1,G76+H76,1,F76,E76*F76))))))) -> 0 | Q76: =IF('III Tool Overview'!$H$6="Orkney Health Board",0,IF('III Tool Overview'!$H$6="Shetland Health Board",0,IF('III Tool Overview'!$H$6="Western Isles Health Board",0,IF('III Tool Overview'!$H$6="Orkney Islands Local Authority",0,IF('III Tool Overview'!$H$6="Shetland Islands Local Authority",0,IF('III Tool Overview'!$H$6="Eilean Siar Local Authority",0,new_yll(2,B76,C76,D76,$C$1,G76,1,F76,E76*F76))))))) -> 0 | R76: =IF('III Tool Overview'!$H$6="Orkney Health Board",0,IF('III Tool Overview'!$H$6="Shetland Health Board",0,IF('III Tool Overview'!$H$6="Western Isles Health Board",0,IF('III Tool Overview'!$H$6="Orkney Islands Local Authority",0,IF('III Tool Overview'!$H$6="Shetland Islands Local Authority",0,IF('III Tool Overview'!$H$6="Eilean Siar Local Authority",0,new_yll(2,B76,C76,D76,$C$1,G76+H76,1,F76,E76*F76))))))) -> 0 | S76: 0 | T76: =IF('III Tool Overview'!$H$6="Orkney Health Board",0,IF('III Tool Overview'!$H$6="Shetland Health Board",0,IF('III Tool Overview'!$H$6="Western Isles Health Board",0,IF('III Tool Overview'!$H$6="Orkney Islands Local Authority",0,IF('III Tool Overview'!$H$6="Shetland Islands Local Authority",0,IF('III Tool Overview'!$H$6="Eilean Siar Local Authority",0,new_yll(5,B76,C76,D76,$C$1,G76,1,F76,E76*F76))))))) -> 0 | U76: =IF('III Tool Overview'!$H$6="Orkney Health Board",0,IF('III Tool Overview'!$H$6="Shetland Health Board",0,IF('III Tool Overview'!$H$6="Western Isles Health Board",0,IF('III Tool Overview'!$H$6="Orkney Islands Local Authority",0,IF('III Tool Overview'!$H$6="Shetland Islands Local Authority",0,IF('III Tool Overview'!$H$6="Eilean Siar Local Authority",0,new_yll(5,B76,C76,D76,$C$1,G76+H76,1,F76,E76*F76))))))) -> 0 | V76: 0 | W76: =IF('III Tool Overview'!$H$6="Orkney Health Board",0,IF('III Tool Overview'!$H$6="Shetland Health Board",0,IF('III Tool Overview'!$H$6="Western Isles Health Board",0,IF('III Tool Overview'!$H$6="Orkney Islands Local Authority",0,IF('III Tool Overview'!$H$6="Shetland Islands Local Authority",0,IF('III Tool Overview'!$H$6="Eilean Siar Local Authority",0,new_yll(10,B76,C76,D76,$C$1,G76,1,F76,E76*F76))))))) -> 0 | X76: =IF('III Tool Overview'!$H$6="Orkney Health Board",0,IF('III Tool Overview'!$H$6="Shetland Health Board",0,IF('III Tool Overview'!$H$6="Western Isles Health Board",0,IF('III Tool Overview'!$H$6="Orkney Islands Local Authority",0,IF('III Tool Overview'!$H$6="Shetland Islands Local Authority",0,IF('III Tool Overview'!$H$6="Eilean Siar Local Authority",0,new_yll(10,B76,C76,D76,$C$1,G76+H76,1,F76,E76*F76))))))) -> 0 | Y76: 0 | Z76: =IF('III Tool Overview'!$H$6="Orkney Health Board",0,IF('III Tool Overview'!$H$6="Shetland Health Board",0,IF('III Tool Overview'!$H$6="Western Isles Health Board",0,IF('III Tool Overview'!$H$6="Orkney Islands Local Authority",0,IF('III Tool Overview'!$H$6="Shetland Islands Local Authority",0,IF('III Tool Overview'!$H$6="Eilean Siar Local Authority",0,new_yll(20,B76,C76,D76,$C$1,G76,1,F76,E76*F76))))))) -> 0 | AA76: =IF('III Tool Overview'!$H$6="Orkney Health Board",0,IF('III Tool Overview'!$H$6="Shetland Health Board",0,IF('III Tool Overview'!$H$6="Western Isles Health Board",0,IF('III Tool Overview'!$H$6="Orkney Islands Local Authority",0,IF('III Tool Overview'!$H$6="Shetland Islands Local Authority",0,IF('III Tool Overview'!$H$6="Eilean Siar Local Authority",0,new_yll(20,B76,C76,D76,$C$1,G76+H76,1,F76,E76*F76))))))) -> 0 | AB76: 0 | AC76: =IF('III Tool Overview'!$H$6="Orkney Health Board",0,IF('III Tool Overview'!$H$6="Shetland Health Board",0,IF('III Tool Overview'!$H$6="Western Isles Health Board",0,IF('III Tool Overview'!$H$6="Orkney Islands Local Authority",0,IF('III Tool Overview'!$H$6="Shetland Islands Local Authority",0,IF('III Tool Overview'!$H$6="Eilean Siar Local Authority",0,hosp_count(2,B76,C76,D76,$C$1,G76,1,F76,E76*F76))))))) -> 0 | AD76: =IF('III Tool Overview'!$H$6="Orkney Health Board",0,IF('III Tool Overview'!$H$6="Shetland Health Board",0,IF('III Tool Overview'!$H$6="Western Isles Health Board",0,IF('III Tool Overview'!$H$6="Orkney Islands Local Authority",0,IF('III Tool Overview'!$H$6="Shetland Islands Local Authority",0,IF('III Tool Overview'!$H$6="Eilean Siar Local Authority",0,hosp_count(2,B76,C76,D76,$C$1,G76+H76,1,F76,E76*F76))))))) -> 0 | AE76: 0 | AF76: =IF('III Tool Overview'!$H$6="Orkney Health Board",0,IF('III Tool Overview'!$H$6="Shetland Health Board",0,IF('III Tool Overview'!$H$6="Western Isles Health Board",0,IF('III Tool Overview'!$H$6="Orkney Islands Local Authority",0,IF('III Tool Overview'!$H$6="Shetland Islands Local Authority",0,IF('III Tool Overview'!$H$6="Eilean Siar Local Authority",0,hosp_count(5,B76,C76,D76,$C$1,G76,1,F76,E76*F76))))))) -> 0 | AG76: =IF('III Tool Overview'!$H$6="Orkney Health Board",0,IF('III Tool Overview'!$H$6="Shetland Health Board",0,IF('III Tool Overview'!$H$6="Western Isles Health Board",0,IF('III Tool Overview'!$H$6="Orkney Islands Local Authority",0,IF('III Tool Overview'!$H$6="Shetland Islands Local Authority",0,IF('III Tool Overview'!$H$6="Eilean Siar Local Authority",0,hosp_count(5,B76,C76,D76,$C$1,G76+H76,1,F76,E76*F76))))))) -> 0 | AH76: 0 | AI76: =IF('III Tool Overview'!$H$6="Orkney Health Board",0,IF('III Tool Overview'!$H$6="Shetland Health Board",0,IF('III Tool Overview'!$H$6="Western Isles Health Board",0,IF('III Tool Overview'!$H$6="Orkney Islands Local Authority",0,IF('III Tool Overview'!$H$6="Shetland Islands Local Authority",0,IF('III Tool Overview'!$H$6="Eilean Siar Local Authority",0,hosp_count(10,B76,C76,D76,$C$1,G76,1,F76,E76*F76))))))) -> 0 | AJ76: =IF('III Tool Overview'!$H$6="Orkney Health Board",0,IF('III Tool Overview'!$H$6="Shetland Health Board",0,IF('III Tool Overview'!$H$6="Western Isles Health Board",0,IF('III Tool Overview'!$H$6="Orkney Islands Local Authority",0,IF('III Tool Overview'!$H$6="Shetland Islands Local Authority",0,IF('III Tool Overview'!$H$6="Eilean Siar Local Authority",0,hosp_count(10,B76,C76,D76,$C$1,G76+H76,1,F76,E76*F76))))))) -> 0 | AK76: 0 | AL76: =IF('III Tool Overview'!$H$6="Orkney Health Board",0,IF('III Tool Overview'!$H$6="Shetland Health Board",0,IF('III Tool Overview'!$H$6="Western Isles Health Board",0,IF('III Tool Overview'!$H$6="Orkney Islands Local Authority",0,IF('III Tool Overview'!$H$6="Shetland Islands Local Authority",0,IF('III Tool Overview'!$H$6="Eilean Siar Local Authority",0,hosp_count(20,B76,C76,D76,$C$1,G76,1,F76,E76*F76))))))) -> 0 | AM76: =IF('III Tool Overview'!$H$6="Orkney Health Board",0,IF('III Tool Overview'!$H$6="Shetland Health Board",0,IF('III Tool Overview'!$H$6="Western Isles Health Board",0,IF('III Tool Overview'!$H$6="Orkney Islands Local Authority",0,IF('III Tool Overview'!$H$6="Shetland Islands Local Authority",0,IF('III Tool Overview'!$H$6="Eilean Siar Local Authority",0,hosp_count(20,B76,C76,D76,$C$1,G76+H76,1,F76,E76*F76))))))) -> 0 | AN76: 0 | AP76: 0.5 | AQ76: 5
A77: Male 50-54 | B77: 52.5 | C77: male | D77: 1 | E77: =HLOOKUP('III Tool Overview'!$H$6,Prevalence!$B$2:$AV$268,Prevalence!AW73,FALSE) -> 0.5625 | F77: =HLOOKUP('III Tool Overview'!$H$6,LookUpData_Pop!$B$1:$AV$269,LookUpData_Pop!BB78,FALSE)/5 -> 0 | G77: ='III Tool Overview'!$H$9/110 -> 0 | H77: =IF('III Tool Overview'!$H$10="Even distribution",Targeting!C75,IF('III Tool Overview'!$H$10="Targetting to Q1",Targeting!D75,IF('III Tool Overview'!$H$10="Targetting to Q1 & Q2",Targeting!E75,IF('III Tool Overview'!$H$10="No variation in price elasticity",Targeting!G75)))) -> 0 | I77: =IF('III Tool Overview'!$H$6="Orkney Health Board",0,IF('III Tool Overview'!$H$6="Shetland Health Board",0,IF('III Tool Overview'!$H$6="Western Isles Health Board",0,IF('III Tool Overview'!$H$6="Orkney Islands Local Authority",0,IF('III Tool Overview'!$H$6="Shetland Islands Local Authority",0,IF('III Tool Overview'!$H$6="Eilean Siar Local Authority",0,new_ci(2,B77,C77,D77,$C$1,G77,1,F77,E77*F77))))))) -> 0 | J77: =IF('III Tool Overview'!$H$6="Orkney Health Board",0,IF('III Tool Overview'!$H$6="Shetland Health Board",0,IF('III Tool Overview'!$H$6="Western Isles Health Board",0,IF('III Tool Overview'!$H$6="Orkney Islands Local Authority",0,IF('III Tool Overview'!$H$6="Shetland Islands Local Authority",0,IF('III Tool Overview'!$H$6="Eilean Siar Local Authority",0,new_ci(2,B77,C77,D77,$C$1,G77+H77,1,F77,E77*F77))))))) -> 0 | K77: =IF('III Tool Overview'!$H$6="Orkney Health Board",0,IF('III Tool Overview'!$H$6="Shetland Health Board",0,IF('III Tool Overview'!$H$6="Western Isles Health Board",0,IF('III Tool Overview'!$H$6="Orkney Islands Local Authority",0,IF('III Tool Overview'!$H$6="Shetland Islands Local Authority",0,IF('III Tool Overview'!$H$6="Eilean Siar Local Authority",0,new_ci(5,B77,C77,D77,$C$1,G77,1,F77,E77*F77))))))) -> 0 | L77: =IF('III Tool Overview'!$H$6="Orkney Health Board",0,IF('III Tool Overview'!$H$6="Shetland Health Board",0,IF('III Tool Overview'!$H$6="Western Isles Health Board",0,IF('III Tool Overview'!$H$6="Orkney Islands Local Authority",0,IF('III Tool Overview'!$H$6="Shetland Islands Local Authority",0,IF('III Tool Overview'!$H$6="Eilean Siar Local Authority",0,new_ci(5,B77,C77,D77,$C$1,G77+H77,1,F77,E77*F77))))))) -> 0 | M77: =IF('III Tool Overview'!$H$6="Orkney Health Board",0,IF('III Tool Overview'!$H$6="Shetland Health Board",0,IF('III Tool Overview'!$H$6="Western Isles Health Board",0,IF('III Tool Overview'!$H$6="Orkney Islands Local Authority",0,IF('III Tool Overview'!$H$6="Shetland Islands Local Authority",0,IF('III Tool Overview'!$H$6="Eilean Siar Local Authority",0,new_ci(10,B77,C77,D77,$C$1,G77,1,F77,E77*F77))))))) -> 0 | N77: =IF('III Tool Overview'!$H$6="Orkney Health Board",0,IF('III Tool Overview'!$H$6="Shetland Health Board",0,IF('III Tool Overview'!$H$6="Western Isles Health Board",0,IF('III Tool Overview'!$H$6="Orkney Islands Local Authority",0,IF('III Tool Overview'!$H$6="Shetland Islands Local Authority",0,IF('III Tool Overview'!$H$6="Eilean Siar Local Authority",0,new_ci(10,B77,C77,D77,$C$1,G77+H77,1,F77,E77*F77))))))) -> 0 | O77: =IF('III Tool Overview'!$H$6="Orkney Health Board",0,IF('III Tool Overview'!$H$6="Shetland Health Board",0,IF('III Tool Overview'!$H$6="Western Isles Health Board",0,IF('III Tool Overview'!$H$6="Orkney Islands Local Authority",0,IF('III Tool Overview'!$H$6="Shetland Islands Local Authority",0,IF('III Tool Overview'!$H$6="Eilean Siar Local Authority",0,new_ci(20,B77,C77,D77,$C$1,G77,1,F77,E77*F77))))))) -> 0 | P77: =IF('III Tool Overview'!$H$6="Orkney Health Board",0,IF('III Tool Overview'!$H$6="Shetland Health Board",0,IF('III Tool Overview'!$H$6="Western Isles Health Board",0,IF('III Tool Overview'!$H$6="Orkney Islands Local Authority",0,IF('III Tool Overview'!$H$6="Shetland Islands Local Authority",0,IF('III Tool Overview'!$H$6="Eilean Siar Local Authority",0,new_ci(20,B77,C77,D77,$C$1,G77+H77,1,F77,E77*F77))))))) -> 0 | Q77: =IF('III Tool Overview'!$H$6="Orkney Health Board",0,IF('III Tool Overview'!$H$6="Shetland Health Board",0,IF('III Tool Overview'!$H$6="Western Isles Health Board",0,IF('III Tool Overview'!$H$6="Orkney Islands Local Authority",0,IF('III Tool Overview'!$H$6="Shetland Islands Local Authority",0,IF('III Tool Overview'!$H$6="Eilean Siar Local Authority",0,new_yll(2,B77,C77,D77,$C$1,G77,1,F77,E77*F77))))))) -> 0 | R77: =IF('III Tool Overview'!$H$6="Orkney Health Board",0,IF('III Tool Overview'!$H$6="Shetland Health Board",0,IF('III Tool Overview'!$H$6="Western Isles Health Board",0,IF('III Tool Overview'!$H$6="Orkney Islands Local Authority",0,IF('III Tool Overview'!$H$6="Shetland Islands Local Authority",0,IF('III Tool Overview'!$H$6="Eilean Siar Local Authority",0,new_yll(2,B77,C77,D77,$C$1,G77+H77,1,F77,E77*F77))))))) -> 0 | S77: 0 | T77: =IF('III Tool Overview'!$H$6="Orkney Health Board",0,IF('III Tool Overview'!$H$6="Shetland Health Board",0,IF('III Tool Overview'!$H$6="Western Isles Health Board",0,IF('III Tool Overview'!$H$6="Orkney Islands Local Authority",0,IF('III Tool Overview'!$H$6="Shetland Islands Local Authority",0,IF('III Tool Overview'!$H$6="Eilean Siar Local Authority",0,new_yll(5,B77,C77,D77,$C$1,G77,1,F77,E77*F77))))))) -> 0 | U77: =IF('III Tool Overview'!$H$6="Orkney Health Board",0,IF('III Tool Overview'!$H$6="Shetland Health Board",0,IF('III Tool Overview'!$H$6="Western Isles Health Board",0,IF('III Tool Overview'!$H$6="Orkney Islands Local Authority",0,IF('III Tool Overview'!$H$6="Shetland Islands Local Authority",0,IF('III Tool Overview'!$H$6="Eilean Siar Local Authority",0,new_yll(5,B77,C77,D77,$C$1,G77+H77,1,F77,E77*F77))))))) -> 0 | V77: 0 | W77: =IF('III Tool Overview'!$H$6="Orkney Health Board",0,IF('III Tool Overview'!$H$6="Shetland Health Board",0,IF('III Tool Overview'!$H$6="Western Isles Health Board",0,IF('III Tool Overview'!$H$6="Orkney Islands Local Authority",0,IF('III Tool Overview'!$H$6="Shetland Islands Local Authority",0,IF('III Tool Overview'!$H$6="Eilean Siar Local Authority",0,new_yll(10,B77,C77,D77,$C$1,G77,1,F77,E77*F77))))))) -> 0 | X77: =IF('III Tool Overview'!$H$6="Orkney Health Board",0,IF('III Tool Overview'!$H$6="Shetland Health Board",0,IF('III Tool Overview'!$H$6="Western Isles Health Board",0,IF('III Tool Overview'!$H$6="Orkney Islands Local Authority",0,IF('III Tool Overview'!$H$6="Shetland Islands Local Authority",0,IF('III Tool Overview'!$H$6="Eilean Siar Local Authority",0,new_yll(10,B77,C77,D77,$C$1,G77+H77,1,F77,E77*F77))))))) -> 0 | Y77: 0 | Z77: =IF('III Tool Overview'!$H$6="Orkney Health Board",0,IF('III Tool Overview'!$H$6="Shetland Health Board",0,IF('III Tool Overview'!$H$6="Western Isles Health Board",0,IF('III Tool Overview'!$H$6="Orkney Islands Local Authority",0,IF('III Tool Overview'!$H$6="Shetland Islands Local Authority",0,IF('III Tool Overview'!$H$6="Eilean Siar Local Authority",0,new_yll(20,B77,C77,D77,$C$1,G77,1,F77,E77*F77))))))) -> 0 | AA77: =IF('III Tool Overview'!$H$6="Orkney Health Board",0,IF('III Tool Overview'!$H$6="Shetland Health Board",0,IF('III Tool Overview'!$H$6="Western Isles Health Board",0,IF('III Tool Overview'!$H$6="Orkney Islands Local Authority",0,IF('III Tool Overview'!$H$6="Shetland Islands Local Authority",0,IF('III Tool Overview'!$H$6="Eilean Siar Local Authority",0,new_yll(20,B77,C77,D77,$C$1,G77+H77,1,F77,E77*F77))))))) -> 0 | AB77: 0 | AC77: =IF('III Tool Overview'!$H$6="Orkney Health Board",0,IF('III Tool Overview'!$H$6="Shetland Health Board",0,IF('III Tool Overview'!$H$6="Western Isles Health Board",0,IF('III Tool Overview'!$H$6="Orkney Islands Local Authority",0,IF('III Tool Overview'!$H$6="Shetland Islands Local Authority",0,IF('III Tool Overview'!$H$6="Eilean Siar Local Authority",0,hosp_count(2,B77,C77,D77,$C$1,G77,1,F77,E77*F77))))))) -> 0 | AD77: =IF('III Tool Overview'!$H$6="Orkney Health Board",0,IF('III Tool Overview'!$H$6="Shetland Health Board",0,IF('III Tool Overview'!$H$6="Western Isles Health Board",0,IF('III Tool Overview'!$H$6="Orkney Islands Local Authority",0,IF('III Tool Overview'!$H$6="Shetland Islands Local Authority",0,IF('III Tool Overview'!$H$6="Eilean Siar Local Authority",0,hosp_count(2,B77,C77,D77,$C$1,G77+H77,1,F77,E77*F77))))))) -> 0 | AE77: 0 | AF77: =IF('III Tool Overview'!$H$6="Orkney Health Board",0,IF('III Tool Overview'!$H$6="Shetland Health Board",0,IF('III Tool Overview'!$H$6="Western Isles Health Board",0,IF('III Tool Overview'!$H$6="Orkney Islands Local Authority",0,IF('III Tool Overview'!$H$6="Shetland Islands Local Authority",0,IF('III Tool Overview'!$H$6="Eilean Siar Local Authority",0,hosp_count(5,B77,C77,D77,$C$1,G77,1,F77,E77*F77))))))) -> 0 | AG77: =IF('III Tool Overview'!$H$6="Orkney Health Board",0,IF('III Tool Overview'!$H$6="Shetland Health Board",0,IF('III Tool Overview'!$H$6="Western Isles Health Board",0,IF('III Tool Overview'!$H$6="Orkney Islands Local Authority",0,IF('III Tool Overview'!$H$6="Shetland Islands Local Authority",0,IF('III Tool Overview'!$H$6="Eilean Siar Local Authority",0,hosp_count(5,B77,C77,D77,$C$1,G77+H77,1,F77,E77*F77))))))) -> 0 | AH77: 0 | AI77: =IF('III Tool Overview'!$H$6="Orkney Health Board",0,IF('III Tool Overview'!$H$6="Shetland Health Board",0,IF('III Tool Overview'!$H$6="Western Isles Health Board",0,IF('III Tool Overview'!$H$6="Orkney Islands Local Authority",0,IF('III Tool Overview'!$H$6="Shetland Islands Local Authority",0,IF('III Tool Overview'!$H$6="Eilean Siar Local Authority",0,hosp_count(10,B77,C77,D77,$C$1,G77,1,F77,E77*F77))))))) -> 0 | AJ77: =IF('III Tool Overview'!$H$6="Orkney Health Board",0,IF('III Tool Overview'!$H$6="Shetland Health Board",0,IF('III Tool Overview'!$H$6="Western Isles Health Board",0,IF('III Tool Overview'!$H$6="Orkney Islands Local Authority",0,IF('III Tool Overview'!$H$6="Shetland Islands Local Authority",0,IF('III Tool Overview'!$H$6="Eilean Siar Local Authority",0,hosp_count(10,B77,C77,D77,$C$1,G77+H77,1,F77,E77*F77))))))) -> 0 | AK77: 0 | AL77: =IF('III Tool Overview'!$H$6="Orkney Health Board",0,IF('III Tool Overview'!$H$6="Shetland Health Board",0,IF('III Tool Overview'!$H$6="Western Isles Health Board",0,IF('III Tool Overview'!$H$6="Orkney Islands Local Authority",0,IF('III Tool Overview'!$H$6="Shetland Islands Local Authority",0,IF('III Tool Overview'!$H$6="Eilean Siar Local Authority",0,hosp_count(20,B77,C77,D77,$C$1,G77,1,F77,E77*F77))))))) -> 0 | AM77: =IF('III Tool Overview'!$H$6="Orkney Health Board",0,IF('III Tool Overview'!$H$6="Shetland Health Board",0,IF('III Tool Overview'!$H$6="Western Isles Health Board",0,IF('III Tool Overview'!$H$6="Orkney Islands Local Authority",0,IF('III Tool Overview'!$H$6="Shetland Islands Local Authority",0,IF('III Tool Overview'!$H$6="Eilean Siar Local Authority",0,hosp_count(20,B77,C77,D77,$C$1,G77+H77,1,F77,E77*F77))))))) -> 0 | AN77: 0 | AP77: 0.5 | AQ77: 5
A78: Male 55-59 | B78: 57.5 | C78: male | D78: 1 | E78: =HLOOKUP('III Tool Overview'!$H$6,Prevalence!$B$2:$AV$268,Prevalence!AW74,FALSE) -> 0.5375 | F78: =HLOOKUP('III Tool Overview'!$H$6,LookUpData_Pop!$B$1:$AV$269,LookUpData_Pop!BB79,FALSE)/5 -> 0 | G78: ='III Tool Overview'!$H$9/110 -> 0 | H78: =IF('III Tool Overview'!$H$10="Even distribution",Targeting!C76,IF('III Tool Overview'!$H$10="Targetting to Q1",Targeting!D76,IF('III Tool Overview'!$H$10="Targetting to Q1 & Q2",Targeting!E76,IF('III Tool Overview'!$H$10="No variation in price elasticity",Targeting!G76)))) -> 0 | I78: =IF('III Tool Overview'!$H$6="Orkney Health Board",0,IF('III Tool Overview'!$H$6="Shetland Health Board",0,IF('III Tool Overview'!$H$6="Western Isles Health Board",0,IF('III Tool Overview'!$H$6="Orkney Islands Local Authority",0,IF('III Tool Overview'!$H$6="Shetland Islands Local Authority",0,IF('III Tool Overview'!$H$6="Eilean Siar Local Authority",0,new_ci(2,B78,C78,D78,$C$1,G78,1,F78,E78*F78))))))) -> 0 | J78: =IF('III Tool Overview'!$H$6="Orkney Health Board",0,IF('III Tool Overview'!$H$6="Shetland Health Board",0,IF('III Tool Overview'!$H$6="Western Isles Health Board",0,IF('III Tool Overview'!$H$6="Orkney Islands Local Authority",0,IF('III Tool Overview'!$H$6="Shetland Islands Local Authority",0,IF('III Tool Overview'!$H$6="Eilean Siar Local Authority",0,new_ci(2,B78,C78,D78,$C$1,G78+H78,1,F78,E78*F78))))))) -> 0 | K78: =IF('III Tool Overview'!$H$6="Orkney Health Board",0,IF('III Tool Overview'!$H$6="Shetland Health Board",0,IF('III Tool Overview'!$H$6="Western Isles Health Board",0,IF('III Tool Overview'!$H$6="Orkney Islands Local Authority",0,IF('III Tool Overview'!$H$6="Shetland Islands Local Authority",0,IF('III Tool Overview'!$H$6="Eilean Siar Local Authority",0,new_ci(5,B78,C78,D78,$C$1,G78,1,F78,E78*F78))))))) -> 0 | L78: =IF('III Tool Overview'!$H$6="Orkney Health Board",0,IF('III Tool Overview'!$H$6="Shetland Health Board",0,IF('III Tool Overview'!$H$6="Western Isles Health Board",0,IF('III Tool Overview'!$H$6="Orkney Islands Local Authority",0,IF('III Tool Overview'!$H$6="Shetland Islands Local Authority",0,IF('III Tool Overview'!$H$6="Eilean Siar Local Authority",0,new_ci(5,B78,C78,D78,$C$1,G78+H78,1,F78,E78*F78))))))) -> 0 | M78: =IF('III Tool Overview'!$H$6="Orkney Health Board",0,IF('III Tool Overview'!$H$6="Shetland Health Board",0,IF('III Tool Overview'!$H$6="Western Isles Health Board",0,IF('III Tool Overview'!$H$6="Orkney Islands Local Authority",0,IF('III Tool Overview'!$H$6="Shetland Islands Local Authority",0,IF('III Tool Overview'!$H$6="Eilean Siar Local Authority",0,new_ci(10,B78,C78,D78,$C$1,G78,1,F78,E78*F78))))))) -> 0 | N78: =IF('III Tool Overview'!$H$6="Orkney Health Board",0,IF('III Tool Overview'!$H$6="Shetland Health Board",0,IF('III Tool Overview'!$H$6="Western Isles Health Board",0,IF('III Tool Overview'!$H$6="Orkney Islands Local Authority",0,IF('III Tool Overview'!$H$6="Shetland Islands Local Authority",0,IF('III Tool Overview'!$H$6="Eilean Siar Local Authority",0,new_ci(10,B78,C78,D78,$C$1,G78+H78,1,F78,E78*F78))))))) -> 0 | O78: =IF('III Tool Overview'!$H$6="Orkney Health Board",0,IF('III Tool Overview'!$H$6="Shetland Health Board",0,IF('III Tool Overview'!$H$6="Western Isles Health Board",0,IF('III Tool Overview'!$H$6="Orkney Islands Local Authority",0,IF('III Tool Overview'!$H$6="Shetland Islands Local Authority",0,IF('III Tool Overview'!$H$6="Eilean Siar Local Authority",0,new_ci(20,B78,C78,D78,$C$1,G78,1,F78,E78*F78))))))) -> 0 | P78: =IF('III Tool Overview'!$H$6="Orkney Health Board",0,IF('III Tool Overview'!$H$6="Shetland Health Board",0,IF('III Tool Overview'!$H$6="Western Isles Health Board",0,IF('III Tool Overview'!$H$6="Orkney Islands Local Authority",0,IF('III Tool Overview'!$H$6="Shetland Islands Local Authority",0,IF('III Tool Overview'!$H$6="Eilean Siar Local Authority",0,new_ci(20,B78,C78,D78,$C$1,G78+H78,1,F78,E78*F78))))))) -> 0 | Q78: =IF('III Tool Overview'!$H$6="Orkney Health Board",0,IF('III Tool Overview'!$H$6="Shetland Health Board",0,IF('III Tool Overview'!$H$6="Western Isles Health Board",0,IF('III Tool Overview'!$H$6="Orkney Islands Local Authority",0,IF('III Tool Overview'!$H$6="Shetland Islands Local Authority",0,IF('III Tool Overview'!$H$6="Eilean Siar Local Authority",0,new_yll(2,B78,C78,D78,$C$1,G78,1,F78,E78*F78))))))) -> 0 | R78: =IF('III Tool Overview'!$H$6="Orkney Health Board",0,IF('III Tool Overview'!$H$6="Shetland Health Board",0,IF('III Tool Overview'!$H$6="Western Isles Health Board",0,IF('III Tool Overview'!$H$6="Orkney Islands Local Authority",0,IF('III Tool Overview'!$H$6="Shetland Islands Local Authority",0,IF('III Tool Overview'!$H$6="Eilean Siar Local Authority",0,new_yll(2,B78,C78,D78,$C$1,G78+H78,1,F78,E78*F78))))))) -> 0 | S78: 0 | T78: =IF('III Tool Overview'!$H$6="Orkney Health Board",0,IF('III Tool Overview'!$H$6="Shetland Health Board",0,IF('III Tool Overview'!$H$6="Western Isles Health Board",0,IF('III Tool Overview'!$H$6="Orkney Islands Local Authority",0,IF('III Tool Overview'!$H$6="Shetland Islands Local Authority",0,IF('III Tool Overview'!$H$6="Eilean Siar Local Authority",0,new_yll(5,B78,C78,D78,$C$1,G78,1,F78,E78*F78))))))) -> 0 | U78: =IF('III Tool Overview'!$H$6="Orkney Health Board",0,IF('III Tool Overview'!$H$6="Shetland Health Board",0,IF('III Tool Overview'!$H$6="Western Isles Health Board",0,IF('III Tool Overview'!$H$6="Orkney Islands Local Authority",0,IF('III Tool Overview'!$H$6="Shetland Islands Local Authority",0,IF('III Tool Overview'!$H$6="Eilean Siar Local Authority",0,new_yll(5,B78,C78,D78,$C$1,G78+H78,1,F78,E78*F78))))))) -> 0 | V78: 0 | W78: =IF('III Tool Overview'!$H$6="Orkney Health Board",0,IF('III Tool Overview'!$H$6="Shetland Health Board",0,IF('III Tool Overview'!$H$6="Western Isles Health Board",0,IF('III Tool Overview'!$H$6="Orkney Islands Local Authority",0,IF('III Tool Overview'!$H$6="Shetland Islands Local Authority",0,IF('III Tool Overview'!$H$6="Eilean Siar Local Authority",0,new_yll(10,B78,C78,D78,$C$1,G78,1,F78,E78*F78))))))) -> 0 | X78: =IF('III Tool Overview'!$H$6="Orkney Health Board",0,IF('III Tool Overview'!$H$6="Shetland Health Board",0,IF('III Tool Overview'!$H$6="Western Isles Health Board",0,IF('III Tool Overview'!$H$6="Orkney Islands Local Authority",0,IF('III Tool Overview'!$H$6="Shetland Islands Local Authority",0,IF('III Tool Overview'!$H$6="Eilean Siar Local Authority",0,new_yll(10,B78,C78,D78,$C$1,G78+H78,1,F78,E78*F78))))))) -> 0 | Y78: 0 | Z78: =IF('III Tool Overview'!$H$6="Orkney Health Board",0,IF('III Tool Overview'!$H$6="Shetland Health Board",0,IF('III Tool Overview'!$H$6="Western Isles Health Board",0,IF('III Tool Overview'!$H$6="Orkney Islands Local Authority",0,IF('III Tool Overview'!$H$6="Shetland Islands Local Authority",0,IF('III Tool Overview'!$H$6="Eilean Siar Local Authority",0,new_yll(20,B78,C78,D78,$C$1,G78,1,F78,E78*F78))))))) -> 0 | AA78: =IF('III Tool Overview'!$H$6="Orkney Health Board",0,IF('III Tool Overview'!$H$6="Shetland Health Board",0,IF('III Tool Overview'!$H$6="Western Isles Health Board",0,IF('III Tool Overview'!$H$6="Orkney Islands Local Authority",0,IF('III Tool Overview'!$H$6="Shetland Islands Local Authority",0,IF('III Tool Overview'!$H$6="Eilean Siar Local Authority",0,new_yll(20,B78,C78,D78,$C$1,G78+H78,1,F78,E78*F78))))))) -> 0 | AB78: 0 | AC78: =IF('III Tool Overview'!$H$6="Orkney Health Board",0,IF('III Tool Overview'!$H$6="Shetland Health Board",0,IF('III Tool Overview'!$H$6="Western Isles Health Board",0,IF('III Tool Overview'!$H$6="Orkney Islands Local Authority",0,IF('III Tool Overview'!$H$6="Shetland Islands Local Authority",0,IF('III Tool Overview'!$H$6="Eilean Siar Local Authority",0,hosp_count(2,B78,C78,D78,$C$1,G78,1,F78,E78*F78))))))) -> 0 | AD78: =IF('III Tool Overview'!$H$6="Orkney Health Board",0,IF('III Tool Overview'!$H$6="Shetland Health Board",0,IF('III Tool Overview'!$H$6="Western Isles Health Board",0,IF('III Tool Overview'!$H$6="Orkney Islands Local Authority",0,IF('III Tool Overview'!$H$6="Shetland Islands Local Authority",0,IF('III Tool Overview'!$H$6="Eilean Siar Local Authority",0,hosp_count(2,B78,C78,D78,$C$1,G78+H78,1,F78,E78*F78))))))) -> 0 | AE78: 0 | AF78: =IF('III Tool Overview'!$H$6="Orkney Health Board",0,IF('III Tool Overview'!$H$6="Shetland Health Board",0,IF('III Tool Overview'!$H$6="Western Isles Health Board",0,IF('III Tool Overview'!$H$6="Orkney Islands Local Authority",0,IF('III Tool Overview'!$H$6="Shetland Islands Local Authority",0,IF('III Tool Overview'!$H$6="Eilean Siar Local Authority",0,hosp_count(5,B78,C78,D78,$C$1,G78,1,F78,E78*F78))))))) -> 0 | AG78: =IF('III Tool Overview'!$H$6="Orkney Health Board",0,IF('III Tool Overview'!$H$6="Shetland Health Board",0,IF('III Tool Overview'!$H$6="Western Isles Health Board",0,IF('III Tool Overview'!$H$6="Orkney Islands Local Authority",0,IF('III Tool Overview'!$H$6="Shetland Islands Local Authority",0,IF('III Tool Overview'!$H$6="Eilean Siar Local Authority",0,hosp_count(5,B78,C78,D78,$C$1,G78+H78,1,F78,E78*F78))))))) -> 0 | AH78: 0 | AI78: =IF('III Tool Overview'!$H$6="Orkney Health Board",0,IF('III Tool Overview'!$H$6="Shetland Health Board",0,IF('III Tool Overview'!$H$6="Western Isles Health Board",0,IF('III Tool Overview'!$H$6="Orkney Islands Local Authority",0,IF('III Tool Overview'!$H$6="Shetland Islands Local Authority",0,IF('III Tool Overview'!$H$6="Eilean Siar Local Authority",0,hosp_count(10,B78,C78,D78,$C$1,G78,1,F78,E78*F78))))))) -> 0 | AJ78: =IF('III Tool Overview'!$H$6="Orkney Health Board",0,IF('III Tool Overview'!$H$6="Shetland Health Board",0,IF('III Tool Overview'!$H$6="Western Isles Health Board",0,IF('III Tool Overview'!$H$6="Orkney Islands Local Authority",0,IF('III Tool Overview'!$H$6="Shetland Islands Local Authority",0,IF('III Tool Overview'!$H$6="Eilean Siar Local Authority",0,hosp_count(10,B78,C78,D78,$C$1,G78+H78,1,F78,E78*F78))))))) -> 0 | AK78: 0 | AL78: =IF('III Tool Overview'!$H$6="Orkney Health Board",0,IF('III Tool Overview'!$H$6="Shetland Health Board",0,IF('III Tool Overview'!$H$6="Western Isles Health Board",0,IF('III Tool Overview'!$H$6="Orkney Islands Local Authority",0,IF('III Tool Overview'!$H$6="Shetland Islands Local Authority",0,IF('III Tool Overview'!$H$6="Eilean Siar Local Authority",0,hosp_count(20,B78,C78,D78,$C$1,G78,1,F78,E78*F78))))))) -> 0 | AM78: =IF('III Tool Overview'!$H$6="Orkney Health Board",0,IF('III Tool Overview'!$H$6="Shetland Health Board",0,IF('III Tool Overview'!$H$6="Western Isles Health Board",0,IF('III Tool Overview'!$H$6="Orkney Islands Local Authority",0,IF('III Tool Overview'!$H$6="Shetland Islands Local Authority",0,IF('III Tool Overview'!$H$6="Eilean Siar Local Authority",0,hosp_count(20,B78,C78,D78,$C$1,G78+H78,1,F78,E78*F78))))))) -> 0 | AN78: 0 | AP78: 0.5 | AQ78: 5
A79: Male 60-64 | B79: 62.5 | C79: male | D79: 1 | E79: =HLOOKUP('III Tool Overview'!$H$6,Prevalence!$B$2:$AV$268,Prevalence!AW75,FALSE) -> 0.5375 | F79: =HLOOKUP('III Tool Overview'!$H$6,LookUpData_Pop!$B$1:$AV$269,LookUpData_Pop!BB80,FALSE)/5 -> 0 | G79: ='III Tool Overview'!$H$9/110 -> 0 | H79: =IF('III Tool Overview'!$H$10="Even distribution",Targeting!C77,IF('III Tool Overview'!$H$10="Targetting to Q1",Targeting!D77,IF('III Tool Overview'!$H$10="Targetting to Q1 & Q2",Targeting!E77,IF('III Tool Overview'!$H$10="No variation in price elasticity",Targeting!G77)))) -> 0 | I79: =IF('III Tool Overview'!$H$6="Orkney Health Board",0,IF('III Tool Overview'!$H$6="Shetland Health Board",0,IF('III Tool Overview'!$H$6="Western Isles Health Board",0,IF('III Tool Overview'!$H$6="Orkney Islands Local Authority",0,IF('III Tool Overview'!$H$6="Shetland Islands Local Authority",0,IF('III Tool Overview'!$H$6="Eilean Siar Local Authority",0,new_ci(2,B79,C79,D79,$C$1,G79,1,F79,E79*F79))))))) -> 0 | J79: =IF('III Tool Overview'!$H$6="Orkney Health Board",0,IF('III Tool Overview'!$H$6="Shetland Health Board",0,IF('III Tool Overview'!$H$6="Western Isles Health Board",0,IF('III Tool Overview'!$H$6="Orkney Islands Local Authority",0,IF('III Tool Overview'!$H$6="Shetland Islands Local Authority",0,IF('III Tool Overview'!$H$6="Eilean Siar Local Authority",0,new_ci(2,B79,C79,D79,$C$1,G79+H79,1,F79,E79*F79))))))) -> 0 | K79: =IF('III Tool Overview'!$H$6="Orkney Health Board",0,IF('III Tool Overview'!$H$6="Shetland Health Board",0,IF('III Tool Overview'!$H$6="Western Isles Health Board",0,IF('III Tool Overview'!$H$6="Orkney Islands Local Authority",0,IF('III Tool Overview'!$H$6="Shetland Islands Local Authority",0,IF('III Tool Overview'!$H$6="Eilean Siar Local Authority",0,new_ci(5,B79,C79,D79,$C$1,G79,1,F79,E79*F79))))))) -> 0 | L79: =IF('III Tool Overview'!$H$6="Orkney Health Board",0,IF('III Tool Overview'!$H$6="Shetland Health Board",0,IF('III Tool Overview'!$H$6="Western Isles Health Board",0,IF('III Tool Overview'!$H$6="Orkney Islands Local Authority",0,IF('III Tool Overview'!$H$6="Shetland Islands Local Authority",0,IF('III Tool Overview'!$H$6="Eilean Siar Local Authority",0,new_ci(5,B79,C79,D79,$C$1,G79+H79,1,F79,E79*F79))))))) -> 0 | M79: =IF('III Tool Overview'!$H$6="Orkney Health Board",0,IF('III Tool Overview'!$H$6="Shetland Health Board",0,IF('III Tool Overview'!$H$6="Western Isles Health Board",0,IF('III Tool Overview'!$H$6="Orkney Islands Local Authority",0,IF('III Tool Overview'!$H$6="Shetland Islands Local Authority",0,IF('III Tool Overview'!$H$6="Eilean Siar Local Authority",0,new_ci(10,B79,C79,D79,$C$1,G79,1,F79,E79*F79))))))) -> 0 | N79: =IF('III Tool Overview'!$H$6="Orkney Health Board",0,IF('III Tool Overview'!$H$6="Shetland Health Board",0,IF('III Tool Overview'!$H$6="Western Isles Health Board",0,IF('III Tool Overview'!$H$6="Orkney Islands Local Authority",0,IF('III Tool Overview'!$H$6="Shetland Islands Local Authority",0,IF('III Tool Overview'!$H$6="Eilean Siar Local Authority",0,new_ci(10,B79,C79,D79,$C$1,G79+H79,1,F79,E79*F79))))))) -> 0 | O79: =IF('III Tool Overview'!$H$6="Orkney Health Board",0,IF('III Tool Overview'!$H$6="Shetland Health Board",0,IF('III Tool Overview'!$H$6="Western Isles Health Board",0,IF('III Tool Overview'!$H$6="Orkney Islands Local Authority",0,IF('III Tool Overview'!$H$6="Shetland Islands Local Authority",0,IF('III Tool Overview'!$H$6="Eilean Siar Local Authority",0,new_ci(20,B79,C79,D79,$C$1,G79,1,F79,E79*F79))))))) -> 0 | P79: =IF('III Tool Overview'!$H$6="Orkney Health Board",0,IF('III Tool Overview'!$H$6="Shetland Health Board",0,IF('III Tool Overview'!$H$6="Western Isles Health Board",0,IF('III Tool Overview'!$H$6="Orkney Islands Local Authority",0,IF('III Tool Overview'!$H$6="Shetland Islands Local Authority",0,IF('III Tool Overview'!$H$6="Eilean Siar Local Authority",0,new_ci(20,B79,C79,D79,$C$1,G79+H79,1,F79,E79*F79))))))) -> 0 | Q79: =IF('III Tool Overview'!$H$6="Orkney Health Board",0,IF('III Tool Overview'!$H$6="Shetland Health Board",0,IF('III Tool Overview'!$H$6="Western Isles Health Board",0,IF('III Tool Overview'!$H$6="Orkney Islands Local Authority",0,IF('III Tool Overview'!$H$6="Shetland Islands Local Authority",0,IF('III Tool Overview'!$H$6="Eilean Siar Local Authority",0,new_yll(2,B79,C79,D79,$C$1,G79,1,F79,E79*F79))))))) -> 0 | R79: =IF('III Tool Overview'!$H$6="Orkney Health Board",0,IF('III Tool Overview'!$H$6="Shetland Health Board",0,IF('III Tool Overview'!$H$6="Western Isles Health Board",0,IF('III Tool Overview'!$H$6="Orkney Islands Local Authority",0,IF('III Tool Overview'!$H$6="Shetland Islands Local Authority",0,IF('III Tool Overview'!$H$6="Eilean Siar Local Authority",0,new_yll(2,B79,C79,D79,$C$1,G79+H79,1,F79,E79*F79))))))) -> 0 | S79: 0 | T79: =IF('III Tool Overview'!$H$6="Orkney Health Board",0,IF('III Tool Overview'!$H$6="Shetland Health Board",0,IF('III Tool Overview'!$H$6="Western Isles Health Board",0,IF('III Tool Overview'!$H$6="Orkney Islands Local Authority",0,IF('III Tool Overview'!$H$6="Shetland Islands Local Authority",0,IF('III Tool Overview'!$H$6="Eilean Siar Local Authority",0,new_yll(5,B79,C79,D79,$C$1,G79,1,F79,E79*F79))))))) -> 0 | U79: =IF('III Tool Overview'!$H$6="Orkney Health Board",0,IF('III Tool Overview'!$H$6="Shetland Health Board",0,IF('III Tool Overview'!$H$6="Western Isles Health Board",0,IF('III Tool Overview'!$H$6="Orkney Islands Local Authority",0,IF('III Tool Overview'!$H$6="Shetland Islands Local Authority",0,IF('III Tool Overview'!$H$6="Eilean Siar Local Authority",0,new_yll(5,B79,C79,D79,$C$1,G79+H79,1,F79,E79*F79))))))) -> 0 | V79: 0 | W79: =IF('III Tool Overview'!$H$6="Orkney Health Board",0,IF('III Tool Overview'!$H$6="Shetland Health Board",0,IF('III Tool Overview'!$H$6="Western Isles Health Board",0,IF('III Tool Overview'!$H$6="Orkney Islands Local Authority",0,IF('III Tool Overview'!$H$6="Shetland Islands Local Authority",0,IF('III Tool Overview'!$H$6="Eilean Siar Local Authority",0,new_yll(10,B79,C79,D79,$C$1,G79,1,F79,E79*F79))))))) -> 0 | X79: =IF('III Tool Overview'!$H$6="Orkney Health Board",0,IF('III Tool Overview'!$H$6="Shetland Health Board",0,IF('III Tool Overview'!$H$6="Western Isles Health Board",0,IF('III Tool Overview'!$H$6="Orkney Islands Local Authority",0,IF('III Tool Overview'!$H$6="Shetland Islands Local Authority",0,IF('III Tool Overview'!$H$6="Eilean Siar Local Authority",0,new_yll(10,B79,C79,D79,$C$1,G79+H79,1,F79,E79*F79))))))) -> 0 | Y79: 0 | Z79: =IF('III Tool Overview'!$H$6="Orkney Health Board",0,IF('III Tool Overview'!$H$6="Shetland Health Board",0,IF('III Tool Overview'!$H$6="Western Isles Health Board",0,IF('III Tool Overview'!$H$6="Orkney Islands Local Authority",0,IF('III Tool Overview'!$H$6="Shetland Islands Local Authority",0,IF('III Tool Overview'!$H$6="Eilean Siar Local Authority",0,new_yll(20,B79,C79,D79,$C$1,G79,1,F79,E79*F79))))))) -> 0 | AA79: =IF('III Tool Overview'!$H$6="Orkney Health Board",0,IF('III Tool Overview'!$H$6="Shetland Health Board",0,IF('III Tool Overview'!$H$6="Western Isles Health Board",0,IF('III Tool Overview'!$H$6="Orkney Islands Local Authority",0,IF('III Tool Overview'!$H$6="Shetland Islands Local Authority",0,IF('III Tool Overview'!$H$6="Eilean Siar Local Authority",0,new_yll(20,B79,C79,D79,$C$1,G79+H79,1,F79,E79*F79))))))) -> 0 | AB79: 0 | AC79: =IF('III Tool Overview'!$H$6="Orkney Health Board",0,IF('III Tool Overview'!$H$6="Shetland Health Board",0,IF('III Tool Overview'!$H$6="Western Isles Health Board",0,IF('III Tool Overview'!$H$6="Orkney Islands Local Authority",0,IF('III Tool Overview'!$H$6="Shetland Islands Local Authority",0,IF('III Tool Overview'!$H$6="Eilean Siar Local Authority",0,hosp_count(2,B79,C79,D79,$C$1,G79,1,F79,E79*F79))))))) -> 0 | AD79: =IF('III Tool Overview'!$H$6="Orkney Health Board",0,IF('III Tool Overview'!$H$6="Shetland Health Board",0,IF('III Tool Overview'!$H$6="Western Isles Health Board",0,IF('III Tool Overview'!$H$6="Orkney Islands Local Authority",0,IF('III Tool Overview'!$H$6="Shetland Islands Local Authority",0,IF('III Tool Overview'!$H$6="Eilean Siar Local Authority",0,hosp_count(2,B79,C79,D79,$C$1,G79+H79,1,F79,E79*F79))))))) -> 0 | AE79: 0 | AF79: =IF('III Tool Overview'!$H$6="Orkney Health Board",0,IF('III Tool Overview'!$H$6="Shetland Health Board",0,IF('III Tool Overview'!$H$6="Western Isles Health Board",0,IF('III Tool Overview'!$H$6="Orkney Islands Local Authority",0,IF('III Tool Overview'!$H$6="Shetland Islands Local Authority",0,IF('III Tool Overview'!$H$6="Eilean Siar Local Authority",0,hosp_count(5,B79,C79,D79,$C$1,G79,1,F79,E79*F79))))))) -> 0 | AG79: =IF('III Tool Overview'!$H$6="Orkney Health Board",0,IF('III Tool Overview'!$H$6="Shetland Health Board",0,IF('III Tool Overview'!$H$6="Western Isles Health Board",0,IF('III Tool Overview'!$H$6="Orkney Islands Local Authority",0,IF('III Tool Overview'!$H$6="Shetland Islands Local Authority",0,IF('III Tool Overview'!$H$6="Eilean Siar Local Authority",0,hosp_count(5,B79,C79,D79,$C$1,G79+H79,1,F79,E79*F79))))))) -> 0 | AH79: 0 | AI79: =IF('III Tool Overview'!$H$6="Orkney Health Board",0,IF('III Tool Overview'!$H$6="Shetland Health Board",0,IF('III Tool Overview'!$H$6="Western Isles Health Board",0,IF('III Tool Overview'!$H$6="Orkney Islands Local Authority",0,IF('III Tool Overview'!$H$6="Shetland Islands Local Authority",0,IF('III Tool Overview'!$H$6="Eilean Siar Local Authority",0,hosp_count(10,B79,C79,D79,$C$1,G79,1,F79,E79*F79))))))) -> 0 | AJ79: =IF('III Tool Overview'!$H$6="Orkney Health Board",0,IF('III Tool Overview'!$H$6="Shetland Health Board",0,IF('III Tool Overview'!$H$6="Western Isles Health Board",0,IF('III Tool Overview'!$H$6="Orkney Islands Local Authority",0,IF('III Tool Overview'!$H$6="Shetland Islands Local Authority",0,IF('III Tool Overview'!$H$6="Eilean Siar Local Authority",0,hosp_count(10,B79,C79,D79,$C$1,G79+H79,1,F79,E79*F79))))))) -> 0 | AK79: 0 | AL79: =IF('III Tool Overview'!$H$6="Orkney Health Board",0,IF('III Tool Overview'!$H$6="Shetland Health Board",0,IF('III Tool Overview'!$H$6="Western Isles Health Board",0,IF('III Tool Overview'!$H$6="Orkney Islands Local Authority",0,IF('III Tool Overview'!$H$6="Shetland Islands Local Authority",0,IF('III Tool Overview'!$H$6="Eilean Siar Local Authority",0,hosp_count(20,B79,C79,D79,$C$1,G79,1,F79,E79*F79))))))) -> 0 | AM79: =IF('III Tool Overview'!$H$6="Orkney Health Board",0,IF('III Tool Overview'!$H$6="Shetland Health Board",0,IF('III Tool Overview'!$H$6="Western Isles Health Board",0,IF('III Tool Overview'!$H$6="Orkney Islands Local Authority",0,IF('III Tool Overview'!$H$6="Shetland Islands Local Authority",0,IF('III Tool Overview'!$H$6="Eilean Siar Local Authority",0,hosp_count(20,B79,C79,D79,$C$1,G79+H79,1,F79,E79*F79))))))) -> 0 | AN79: 0 | AP79: 0.5 | AQ79: 5
A80: Male 65-69 | B80: 67.5 | C80: male | D80: 1 | E80: =HLOOKUP('III Tool Overview'!$H$6,Prevalence!$B$2:$AV$268,Prevalence!AW76,FALSE) -> 0.4375 | F80: =HLOOKUP('III Tool Overview'!$H$6,LookUpData_Pop!$B$1:$AV$269,LookUpData_Pop!BB81,FALSE)/5 -> 0 | G80: ='III Tool Overview'!$H$9/110 -> 0 | H80: =IF('III Tool Overview'!$H$10="Even distribution",Targeting!C78,IF('III Tool Overview'!$H$10="Targetting to Q1",Targeting!D78,IF('III Tool Overview'!$H$10="Targetting to Q1 & Q2",Targeting!E78,IF('III Tool Overview'!$H$10="No variation in price elasticity",Targeting!G78)))) -> 0 | I80: =IF('III Tool Overview'!$H$6="Orkney Health Board",0,IF('III Tool Overview'!$H$6="Shetland Health Board",0,IF('III Tool Overview'!$H$6="Western Isles Health Board",0,IF('III Tool Overview'!$H$6="Orkney Islands Local Authority",0,IF('III Tool Overview'!$H$6="Shetland Islands Local Authority",0,IF('III Tool Overview'!$H$6="Eilean Siar Local Authority",0,new_ci(2,B80,C80,D80,$C$1,G80,1,F80,E80*F80))))))) -> 0 | J80: =IF('III Tool Overview'!$H$6="Orkney Health Board",0,IF('III Tool Overview'!$H$6="Shetland Health Board",0,IF('III Tool Overview'!$H$6="Western Isles Health Board",0,IF('III Tool Overview'!$H$6="Orkney Islands Local Authority",0,IF('III Tool Overview'!$H$6="Shetland Islands Local Authority",0,IF('III Tool Overview'!$H$6="Eilean Siar Local Authority",0,new_ci(2,B80,C80,D80,$C$1,G80+H80,1,F80,E80*F80))))))) -> 0 | K80: =IF('III Tool Overview'!$H$6="Orkney Health Board",0,IF('III Tool Overview'!$H$6="Shetland Health Board",0,IF('III Tool Overview'!$H$6="Western Isles Health Board",0,IF('III Tool Overview'!$H$6="Orkney Islands Local Authority",0,IF('III Tool Overview'!$H$6="Shetland Islands Local Authority",0,IF('III Tool Overview'!$H$6="Eilean Siar Local Authority",0,new_ci(5,B80,C80,D80,$C$1,G80,1,F80,E80*F80))))))) -> 0 | L80: =IF('III Tool Overview'!$H$6="Orkney Health Board",0,IF('III Tool Overview'!$H$6="Shetland Health Board",0,IF('III Tool Overview'!$H$6="Western Isles Health Board",0,IF('III Tool Overview'!$H$6="Orkney Islands Local Authority",0,IF('III Tool Overview'!$H$6="Shetland Islands Local Authority",0,IF('III Tool Overview'!$H$6="Eilean Siar Local Authority",0,new_ci(5,B80,C80,D80,$C$1,G80+H80,1,F80,E80*F80))))))) -> 0 | M80: =IF('III Tool Overview'!$H$6="Orkney Health Board",0,IF('III Tool Overview'!$H$6="Shetland Health Board",0,IF('III Tool Overview'!$H$6="Western Isles Health Board",0,IF('III Tool Overview'!$H$6="Orkney Islands Local Authority",0,IF('III Tool Overview'!$H$6="Shetland Islands Local Authority",0,IF('III Tool Overview'!$H$6="Eilean Siar Local Authority",0,new_ci(10,B80,C80,D80,$C$1,G80,1,F80,E80*F80))))))) -> 0 | N80: =IF('III Tool Overview'!$H$6="Orkney Health Board",0,IF('III Tool Overview'!$H$6="Shetland Health Board",0,IF('III Tool Overview'!$H$6="Western Isles Health Board",0,IF('III Tool Overview'!$H$6="Orkney Islands Local Authority",0,IF('III Tool Overview'!$H$6="Shetland Islands Local Authority",0,IF('III Tool Overview'!$H$6="Eilean Siar Local Authority",0,new_ci(10,B80,C80,D80,$C$1,G80+H80,1,F80,E80*F80))))))) -> 0 | O80: =IF('III Tool Overview'!$H$6="Orkney Health Board",0,IF('III Tool Overview'!$H$6="Shetland Health Board",0,IF('III Tool Overview'!$H$6="Western Isles Health Board",0,IF('III Tool Overview'!$H$6="Orkney Islands Local Authority",0,IF('III Tool Overview'!$H$6="Shetland Islands Local Authority",0,IF('III Tool Overview'!$H$6="Eilean Siar Local Authority",0,new_ci(20,B80,C80,D80,$C$1,G80,1,F80,E80*F80))))))) -> 0 | P80: =IF('III Tool Overview'!$H$6="Orkney Health Board",0,IF('III Tool Overview'!$H$6="Shetland Health Board",0,IF('III Tool Overview'!$H$6="Western Isles Health Board",0,IF('III Tool Overview'!$H$6="Orkney Islands Local Authority",0,IF('III Tool Overview'!$H$6="Shetland Islands Local Authority",0,IF('III Tool Overview'!$H$6="Eilean Siar Local Authority",0,new_ci(20,B80,C80,D80,$C$1,G80+H80,1,F80,E80*F80))))))) -> 0 | Q80: =IF('III Tool Overview'!$H$6="Orkney Health Board",0,IF('III Tool Overview'!$H$6="Shetland Health Board",0,IF('III Tool Overview'!$H$6="Western Isles Health Board",0,IF('III Tool Overview'!$H$6="Orkney Islands Local Authority",0,IF('III Tool Overview'!$H$6="Shetland Islands Local Authority",0,IF('III Tool Overview'!$H$6="Eilean Siar Local Authority",0,new_yll(2,B80,C80,D80,$C$1,G80,1,F80,E80*F80))))))) -> 0 | R80: =IF('III Tool Overview'!$H$6="Orkney Health Board",0,IF('III Tool Overview'!$H$6="Shetland Health Board",0,IF('III Tool Overview'!$H$6="Western Isles Health Board",0,IF('III Tool Overview'!$H$6="Orkney Islands Local Authority",0,IF('III Tool Overview'!$H$6="Shetland Islands Local Authority",0,IF('III Tool Overview'!$H$6="Eilean Siar Local Authority",0,new_yll(2,B80,C80,D80,$C$1,G80+H80,1,F80,E80*F80))))))) -> 0 | S80: 0 | T80: =IF('III Tool Overview'!$H$6="Orkney Health Board",0,IF('III Tool Overview'!$H$6="Shetland Health Board",0,IF('III Tool Overview'!$H$6="Western Isles Health Board",0,IF('III Tool Overview'!$H$6="Orkney Islands Local Authority",0,IF('III Tool Overview'!$H$6="Shetland Islands Local Authority",0,IF('III Tool Overview'!$H$6="Eilean Siar Local Authority",0,new_yll(5,B80,C80,D80,$C$1,G80,1,F80,E80*F80))))))) -> 0 | U80: =IF('III Tool Overview'!$H$6="Orkney Health Board",0,IF('III Tool Overview'!$H$6="Shetland Health Board",0,IF('III Tool Overview'!$H$6="Western Isles Health Board",0,IF('III Tool Overview'!$H$6="Orkney Islands Local Authority",0,IF('III Tool Overview'!$H$6="Shetland Islands Local Authority",0,IF('III Tool Overview'!$H$6="Eilean Siar Local Authority",0,new_yll(5,B80,C80,D80,$C$1,G80+H80,1,F80,E80*F80))))))) -> 0 | V80: 0 | W80: =IF('III Tool Overview'!$H$6="Orkney Health Board",0,IF('III Tool Overview'!$H$6="Shetland Health Board",0,IF('III Tool Overview'!$H$6="Western Isles Health Board",0,IF('III Tool Overview'!$H$6="Orkney Islands Local Authority",0,IF('III Tool Overview'!$H$6="Shetland Islands Local Authority",0,IF('III Tool Overview'!$H$6="Eilean Siar Local Authority",0,new_yll(10,B80,C80,D80,$C$1,G80,1,F80,E80*F80))))))) -> 0 | X80: =IF('III Tool Overview'!$H$6="Orkney Health Board",0,IF('III Tool Overview'!$H$6="Shetland Health Board",0,IF('III Tool Overview'!$H$6="Western Isles Health Board",0,IF('III Tool Overview'!$H$6="Orkney Islands Local Authority",0,IF('III Tool Overview'!$H$6="Shetland Islands Local Authority",0,IF('III Tool Overview'!$H$6="Eilean Siar Local Authority",0,new_yll(10,B80,C80,D80,$C$1,G80+H80,1,F80,E80*F80))))))) -> 0 | Y80: 0 | Z80: =IF('III Tool Overview'!$H$6="Orkney Health Board",0,IF('III Tool Overview'!$H$6="Shetland Health Board",0,IF('III Tool Overview'!$H$6="Western Isles Health Board",0,IF('III Tool Overview'!$H$6="Orkney Islands Local Authority",0,IF('III Tool Overview'!$H$6="Shetland Islands Local Authority",0,IF('III Tool Overview'!$H$6="Eilean Siar Local Authority",0,new_yll(20,B80,C80,D80,$C$1,G80,1,F80,E80*F80))))))) -> 0 | AA80: =IF('III Tool Overview'!$H$6="Orkney Health Board",0,IF('III Tool Overview'!$H$6="Shetland Health Board",0,IF('III Tool Overview'!$H$6="Western Isles Health Board",0,IF('III Tool Overview'!$H$6="Orkney Islands Local Authority",0,IF('III Tool Overview'!$H$6="Shetland Islands Local Authority",0,IF('III Tool Overview'!$H$6="Eilean Siar Local Authority",0,new_yll(20,B80,C80,D80,$C$1,G80+H80,1,F80,E80*F80))))))) -> 0 | AB80: 0 | AC80: =IF('III Tool Overview'!$H$6="Orkney Health Board",0,IF('III Tool Overview'!$H$6="Shetland Health Board",0,IF('III Tool Overview'!$H$6="Western Isles Health Board",0,IF('III Tool Overview'!$H$6="Orkney Islands Local Authority",0,IF('III Tool Overview'!$H$6="Shetland Islands Local Authority",0,IF('III Tool Overview'!$H$6="Eilean Siar Local Authority",0,hosp_count(2,B80,C80,D80,$C$1,G80,1,F80,E80*F80))))))) -> 0 | AD80: =IF('III Tool Overview'!$H$6="Orkney Health Board",0,IF('III Tool Overview'!$H$6="Shetland Health Board",0,IF('III Tool Overview'!$H$6="Western Isles Health Board",0,IF('III Tool Overview'!$H$6="Orkney Islands Local Authority",0,IF('III Tool Overview'!$H$6="Shetland Islands Local Authority",0,IF('III Tool Overview'!$H$6="Eilean Siar Local Authority",0,hosp_count(2,B80,C80,D80,$C$1,G80+H80,1,F80,E80*F80))))))) -> 0 | AE80: 0 | AF80: =IF('III Tool Overview'!$H$6="Orkney Health Board",0,IF('III Tool Overview'!$H$6="Shetland Health Board",0,IF('III Tool Overview'!$H$6="Western Isles Health Board",0,IF('III Tool Overview'!$H$6="Orkney Islands Local Authority",0,IF('III Tool Overview'!$H$6="Shetland Islands Local Authority",0,IF('III Tool Overview'!$H$6="Eilean Siar Local Authority",0,hosp_count(5,B80,C80,D80,$C$1,G80,1,F80,E80*F80))))))) -> 0 | AG80: =IF('III Tool Overview'!$H$6="Orkney Health Board",0,IF('III Tool Overview'!$H$6="Shetland Health Board",0,IF('III Tool Overview'!$H$6="Western Isles Health Board",0,IF('III Tool Overview'!$H$6="Orkney Islands Local Authority",0,IF('III Tool Overview'!$H$6="Shetland Islands Local Authority",0,IF('III Tool Overview'!$H$6="Eilean Siar Local Authority",0,hosp_count(5,B80,C80,D80,$C$1,G80+H80,1,F80,E80*F80))))))) -> 0 | AH80: 0 | AI80: =IF('III Tool Overview'!$H$6="Orkney Health Board",0,IF('III Tool Overview'!$H$6="Shetland Health Board",0,IF('III Tool Overview'!$H$6="Western Isles Health Board",0,IF('III Tool Overview'!$H$6="Orkney Islands Local Authority",0,IF('III Tool Overview'!$H$6="Shetland Islands Local Authority",0,IF('III Tool Overview'!$H$6="Eilean Siar Local Authority",0,hosp_count(10,B80,C80,D80,$C$1,G80,1,F80,E80*F80))))))) -> 0 | AJ80: =IF('III Tool Overview'!$H$6="Orkney Health Board",0,IF('III Tool Overview'!$H$6="Shetland Health Board",0,IF('III Tool Overview'!$H$6="Western Isles Health Board",0,IF('III Tool Overview'!$H$6="Orkney Islands Local Authority",0,IF('III Tool Overview'!$H$6="Shetland Islands Local Authority",0,IF('III Tool Overview'!$H$6="Eilean Siar Local Authority",0,hosp_count(10,B80,C80,D80,$C$1,G80+H80,1,F80,E80*F80))))))) -> 0 | AK80: 0 | AL80: =IF('III Tool Overview'!$H$6="Orkney Health Board",0,IF('III Tool Overview'!$H$6="Shetland Health Board",0,IF('III Tool Overview'!$H$6="Western Isles Health Board",0,IF('III Tool Overview'!$H$6="Orkney Islands Local Authority",0,IF('III Tool Overview'!$H$6="Shetland Islands Local Authority",0,IF('III Tool Overview'!$H$6="Eilean Siar Local Authority",0,hosp_count(20,B80,C80,D80,$C$1,G80,1,F80,E80*F80))))))) -> 0 | AM80: =IF('III Tool Overview'!$H$6="Orkney Health Board",0,IF('III Tool Overview'!$H$6="Shetland Health Board",0,IF('III Tool Overview'!$H$6="Western Isles Health Board",0,IF('III Tool Overview'!$H$6="Orkney Islands Local Authority",0,IF('III Tool Overview'!$H$6="Shetland Islands Local Authority",0,IF('III Tool Overview'!$H$6="Eilean Siar Local Authority",0,hosp_count(20,B80,C80,D80,$C$1,G80+H80,1,F80,E80*F80))))))) -> 0 | AN80: 0 | AP80: 0.5 | AQ80: 5
A81: Male 70-74 | B81: 72.5 | C81: male | D81: 1 | E81: =HLOOKUP('III Tool Overview'!$H$6,Prevalence!$B$2:$AV$268,Prevalence!AW77,FALSE) -> 0.4375 | F81: =HLOOKUP('III Tool Overview'!$H$6,LookUpData_Pop!$B$1:$AV$269,LookUpData_Pop!BB82,FALSE)/5 -> 0 | G81: ='III Tool Overview'!$H$9/110 -> 0 | H81: =IF('III Tool Overview'!$H$10="Even distribution",Targeting!C79,IF('III Tool Overview'!$H$10="Targetting to Q1",Targeting!D79,IF('III Tool Overview'!$H$10="Targetting to Q1 & Q2",Targeting!E79,IF('III Tool Overview'!$H$10="No variation in price elasticity",Targeting!G79)))) -> 0 | I81: =IF('III Tool Overview'!$H$6="Orkney Health Board",0,IF('III Tool Overview'!$H$6="Shetland Health Board",0,IF('III Tool Overview'!$H$6="Western Isles Health Board",0,IF('III Tool Overview'!$H$6="Orkney Islands Local Authority",0,IF('III Tool Overview'!$H$6="Shetland Islands Local Authority",0,IF('III Tool Overview'!$H$6="Eilean Siar Local Authority",0,new_ci(2,B81,C81,D81,$C$1,G81,1,F81,E81*F81))))))) -> 0 | J81: =IF('III Tool Overview'!$H$6="Orkney Health Board",0,IF('III Tool Overview'!$H$6="Shetland Health Board",0,IF('III Tool Overview'!$H$6="Western Isles Health Board",0,IF('III Tool Overview'!$H$6="Orkney Islands Local Authority",0,IF('III Tool Overview'!$H$6="Shetland Islands Local Authority",0,IF('III Tool Overview'!$H$6="Eilean Siar Local Authority",0,new_ci(2,B81,C81,D81,$C$1,G81+H81,1,F81,E81*F81))))))) -> 0 | K81: =IF('III Tool Overview'!$H$6="Orkney Health Board",0,IF('III Tool Overview'!$H$6="Shetland Health Board",0,IF('III Tool Overview'!$H$6="Western Isles Health Board",0,IF('III Tool Overview'!$H$6="Orkney Islands Local Authority",0,IF('III Tool Overview'!$H$6="Shetland Islands Local Authority",0,IF('III Tool Overview'!$H$6="Eilean Siar Local Authority",0,new_ci(5,B81,C81,D81,$C$1,G81,1,F81,E81*F81))))))) -> 0 | L81: =IF('III Tool Overview'!$H$6="Orkney Health Board",0,IF('III Tool Overview'!$H$6="Shetland Health Board",0,IF('III Tool Overview'!$H$6="Western Isles Health Board",0,IF('III Tool Overview'!$H$6="Orkney Islands Local Authority",0,IF('III Tool Overview'!$H$6="Shetland Islands Local Authority",0,IF('III Tool Overview'!$H$6="Eilean Siar Local Authority",0,new_ci(5,B81,C81,D81,$C$1,G81+H81,1,F81,E81*F81))))))) -> 0 | M81: =IF('III Tool Overview'!$H$6="Orkney Health Board",0,IF('III Tool Overview'!$H$6="Shetland Health Board",0,IF('III Tool Overview'!$H$6="Western Isles Health Board",0,IF('III Tool Overview'!$H$6="Orkney Islands Local Authority",0,IF('III Tool Overview'!$H$6="Shetland Islands Local Authority",0,IF('III Tool Overview'!$H$6="Eilean Siar Local Authority",0,new_ci(10,B81,C81,D81,$C$1,G81,1,F81,E81*F81))))))) -> 0 | N81: =IF('III Tool Overview'!$H$6="Orkney Health Board",0,IF('III Tool Overview'!$H$6="Shetland Health Board",0,IF('III Tool Overview'!$H$6="Western Isles Health Board",0,IF('III Tool Overview'!$H$6="Orkney Islands Local Authority",0,IF('III Tool Overview'!$H$6="Shetland Islands Local Authority",0,IF('III Tool Overview'!$H$6="Eilean Siar Local Authority",0,new_ci(10,B81,C81,D81,$C$1,G81+H81,1,F81,E81*F81))))))) -> 0 | O81: =IF('III Tool Overview'!$H$6="Orkney Health Board",0,IF('III Tool Overview'!$H$6="Shetland Health Board",0,IF('III Tool Overview'!$H$6="Western Isles Health Board",0,IF('III Tool Overview'!$H$6="Orkney Islands Local Authority",0,IF('III Tool Overview'!$H$6="Shetland Islands Local Authority",0,IF('III Tool Overview'!$H$6="Eilean Siar Local Authority",0,new_ci(20,B81,C81,D81,$C$1,G81,1,F81,E81*F81))))))) -> 0 | P81: =IF('III Tool Overview'!$H$6="Orkney Health Board",0,IF('III Tool Overview'!$H$6="Shetland Health Board",0,IF('III Tool Overview'!$H$6="Western Isles Health Board",0,IF('III Tool Overview'!$H$6="Orkney Islands Local Authority",0,IF('III Tool Overview'!$H$6="Shetland Islands Local Authority",0,IF('III Tool Overview'!$H$6="Eilean Siar Local Authority",0,new_ci(20,B81,C81,D81,$C$1,G81+H81,1,F81,E81*F81))))))) -> 0 | Q81: =IF('III Tool Overview'!$H$6="Orkney Health Board",0,IF('III Tool Overview'!$H$6="Shetland Health Board",0,IF('III Tool Overview'!$H$6="Western Isles Health Board",0,IF('III Tool Overview'!$H$6="Orkney Islands Local Authority",0,IF('III Tool Overview'!$H$6="Shetland Islands Local Authority",0,IF('III Tool Overview'!$H$6="Eilean Siar Local Authority",0,new_yll(2,B81,C81,D81,$C$1,G81,1,F81,E81*F81))))))) -> 0 | R81: =IF('III Tool Overview'!$H$6="Orkney Health Board",0,IF('III Tool Overview'!$H$6="Shetland Health Board",0,IF('III Tool Overview'!$H$6="Western Isles Health Board",0,IF('III Tool Overview'!$H$6="Orkney Islands Local Authority",0,IF('III Tool Overview'!$H$6="Shetland Islands Local Authority",0,IF('III Tool Overview'!$H$6="Eilean Siar Local Authority",0,new_yll(2,B81,C81,D81,$C$1,G81+H81,1,F81,E81*F81))))))) -> 0 | S81: =Q81-R81 -> 0 | T81: =IF('III Tool Overview'!$H$6="Orkney Health Board",0,IF('III Tool Overview'!$H$6="Shetland Health Board",0,IF('III Tool Overview'!$H$6="Western Isles Health Board",0,IF('III Tool Overview'!$H$6="Orkney Islands Local Authority",0,IF('III Tool Overview'!$H$6="Shetland Islands Local Authority",0,IF('III Tool Overview'!$H$6="Eilean Siar Local Authority",0,new_yll(5,B81,C81,D81,$C$1,G81,1,F81,E81*F81))))))) -> 0 | U81: =IF('III Tool Overview'!$H$6="Orkney Health Board",0,IF('III Tool Overview'!$H$6="Shetland Health Board",0,IF('III Tool Overview'!$H$6="Western Isles Health Board",0,IF('III Tool Overview'!$H$6="Orkney Islands Local Authority",0,IF('III Tool Overview'!$H$6="Shetland Islands Local Authority",0,IF('III Tool Overview'!$H$6="Eilean Siar Local Authority",0,new_yll(5,B81,C81,D81,$C$1,G81+H81,1,F81,E81*F81))))))) -> 0 | V81: =T81-U81 -> 0 | W81: =IF('III Tool Overview'!$H$6="Orkney Health Board",0,IF('III Tool Overview'!$H$6="Shetland Health Board",0,IF('III Tool Overview'!$H$6="Western Isles Health Board",0,IF('III Tool Overview'!$H$6="Orkney Islands Local Authority",0,IF('III Tool Overview'!$H$6="Shetland Islands Local Authority",0,IF('III Tool Overview'!$H$6="Eilean Siar Local Authority",0,new_yll(10,B81,C81,D81,$C$1,G81,1,F81,E81*F81))))))) -> 0 | X81: =IF('III Tool Overview'!$H$6="Orkney Health Board",0,IF('III Tool Overview'!$H$6="Shetland Health Board",0,IF('III Tool Overview'!$H$6="Western Isles Health Board",0,IF('III Tool Overview'!$H$6="Orkney Islands Local Authority",0,IF('III Tool Overview'!$H$6="Shetland Islands Local Authority",0,IF('III Tool Overview'!$H$6="Eilean Siar Local Authority",0,new_yll(10,B81,C81,D81,$C$1,G81+H81,1,F81,E81*F81))))))) -> 0 | Y81: =W81-X81 -> 0 | Z81: =IF('III Tool Overview'!$H$6="Orkney Health Board",0,IF('III Tool Overview'!$H$6="Shetland Health Board",0,IF('III Tool Overview'!$H$6="Western Isles Health Board",0,IF('III Tool Overview'!$H$6="Orkney Islands Local Authority",0,IF('III Tool Overview'!$H$6="Shetland Islands Local Authority",0,IF('III Tool Overview'!$H$6="Eilean Siar Local Authority",0,new_yll(20,B81,C81,D81,$C$1,G81,1,F81,E81*F81))))))) -> 0 | AA81: =IF('III Tool Overview'!$H$6="Orkney Health Board",0,IF('III Tool Overview'!$H$6="Shetland Health Board",0,IF('III Tool Overview'!$H$6="Western Isles Health Board",0,IF('III Tool Overview'!$H$6="Orkney Islands Local Authority",0,IF('III Tool Overview'!$H$6="Shetland Islands Local Authority",0,IF('III Tool Overview'!$H$6="Eilean Siar Local Authority",0,new_yll(20,B81,C81,D81,$C$1,G81+H81,1,F81,E81*F81))))))) -> 0 | AB81: =Z81-AA81 -> 0 | AC81: =IF('III Tool Overview'!$H$6="Orkney Health Board",0,IF('III Tool Overview'!$H$6="Shetland Health Board",0,IF('III Tool Overview'!$H$6="Western Isles Health Board",0,IF('III Tool Overview'!$H$6="Orkney Islands Local Authority",0,IF('III Tool Overview'!$H$6="Shetland Islands Local Authority",0,IF('III Tool Overview'!$H$6="Eilean Siar Local Authority",0,hosp_count(2,B81,C81,D81,$C$1,G81,1,F81,E81*F81))))))) -> 0 | AD81: =IF('III Tool Overview'!$H$6="Orkney Health Board",0,IF('III Tool Overview'!$H$6="Shetland Health Board",0,IF('III Tool Overview'!$H$6="Western Isles Health Board",0,IF('III Tool Overview'!$H$6="Orkney Islands Local Authority",0,IF('III Tool Overview'!$H$6="Shetland Islands Local Authority",0,IF('III Tool Overview'!$H$6="Eilean Siar Local Authority",0,hosp_count(2,B81,C81,D81,$C$1,G81+H81,1,F81,E81*F81))))))) -> 0 | AE81: =AC81-AD81 -> 0 | AF81: =IF('III Tool Overview'!$H$6="Orkney Health Board",0,IF('III Tool Overview'!$H$6="Shetland Health Board",0,IF('III Tool Overview'!$H$6="Western Isles Health Board",0,IF('III Tool Overview'!$H$6="Orkney Islands Local Authority",0,IF('III Tool Overview'!$H$6="Shetland Islands Local Authority",0,IF('III Tool Overview'!$H$6="Eilean Siar Local Authority",0,hosp_count(5,B81,C81,D81,$C$1,G81,1,F81,E81*F81))))))) -> 0 | AG81: =IF('III Tool Overview'!$H$6="Orkney Health Board",0,IF('III Tool Overview'!$H$6="Shetland Health Board",0,IF('III Tool Overview'!$H$6="Western Isles Health Board",0,IF('III Tool Overview'!$H$6="Orkney Islands Local Authority",0,IF('III Tool Overview'!$H$6="Shetland Islands Local Authority",0,IF('III Tool Overview'!$H$6="Eilean Siar Local Authority",0,hosp_count(5,B81,C81,D81,$C$1,G81+H81,1,F81,E81*F81))))))) -> 0 | AH81: =AF81-AG81 -> 0 | AI81: =IF('III Tool Overview'!$H$6="Orkney Health Board",0,IF('III Tool Overview'!$H$6="Shetland Health Board",0,IF('III Tool Overview'!$H$6="Western Isles Health Board",0,IF('III Tool Overview'!$H$6="Orkney Islands Local Authority",0,IF('III Tool Overview'!$H$6="Shetland Islands Local Authority",0,IF('III Tool Overview'!$H$6="Eilean Siar Local Authority",0,hosp_count(10,B81,C81,D81,$C$1,G81,1,F81,E81*F81))))))) -> 0 | AJ81: =IF('III Tool Overview'!$H$6="Orkney Health Board",0,IF('III Tool Overview'!$H$6="Shetland Health Board",0,IF('III Tool Overview'!$H$6="Western Isles Health Board",0,IF('III Tool Overview'!$H$6="Orkney Islands Local Authority",0,IF('III Tool Overview'!$H$6="Shetland Islands Local Authority",0,IF('III Tool Overview'!$H$6="Eilean Siar Local Authority",0,hosp_count(10,B81,C81,D81,$C$1,G81+H81,1,F81,E81*F81))))))) -> 0 | AK81: =AI81-AJ81 -> 0 | AL81: =IF('III Tool Overview'!$H$6="Orkney Health Board",0,IF('III Tool Overview'!$H$6="Shetland Health Board",0,IF('III Tool Overview'!$H$6="Western Isles Health Board",0,IF('III Tool Overview'!$H$6="Orkney Islands Local Authority",0,IF('III Tool Overview'!$H$6="Shetland Islands Local Authority",0,IF('III Tool Overview'!$H$6="Eilean Siar Local Authority",0,hosp_count(20,B81,C81,D81,$C$1,G81,1,F81,E81*F81))))))) -> 0 | AM81: =IF('III Tool Overview'!$H$6="Orkney Health Board",0,IF('III Tool Overview'!$H$6="Shetland Health Board",0,IF('III Tool Overview'!$H$6="Western Isles Health Board",0,IF('III Tool Overview'!$H$6="Orkney Islands Local Authority",0,IF('III Tool Overview'!$H$6="Shetland Islands Local Authority",0,IF('III Tool Overview'!$H$6="Eilean Siar Local Authority",0,hosp_count(20,B81,C81,D81,$C$1,G81+H81,1,F81,E81*F81))))))) -> 0 | AN81: =AL81-AM81 -> 0 | AP81: 0.5 | AQ81: 5
A82: Male 75-79 | B82: 77.5 | C82: male | D82: 1 | E82: =HLOOKUP('III Tool Overview'!$H$6,Prevalence!$B$2:$AV$268,Prevalence!AW78,FALSE) -> 0.15 | F82: =HLOOKUP('III Tool Overview'!$H$6,LookUpData_Pop!$B$1:$AV$269,LookUpData_Pop!BB83,FALSE)/5 -> 0 | G82: ='III Tool Overview'!$H$9/110 -> 0 | H82: =IF('III Tool Overview'!$H$10="Even distribution",Targeting!C80,IF('III Tool Overview'!$H$10="Targetting to Q1",Targeting!D80,IF('III Tool Overview'!$H$10="Targetting to Q1 & Q2",Targeting!E80,IF('III Tool Overview'!$H$10="No variation in price elasticity",Targeting!G80)))) -> 0 | I82: =IF('III Tool Overview'!$H$6="Orkney Health Board",0,IF('III Tool Overview'!$H$6="Shetland Health Board",0,IF('III Tool Overview'!$H$6="Western Isles Health Board",0,IF('III Tool Overview'!$H$6="Orkney Islands Local Authority",0,IF('III Tool Overview'!$H$6="Shetland Islands Local Authority",0,IF('III Tool Overview'!$H$6="Eilean Siar Local Authority",0,new_ci(2,B82,C82,D82,$C$1,G82,1,F82,E82*F82))))))) -> 0 | J82: =IF('III Tool Overview'!$H$6="Orkney Health Board",0,IF('III Tool Overview'!$H$6="Shetland Health Board",0,IF('III Tool Overview'!$H$6="Western Isles Health Board",0,IF('III Tool Overview'!$H$6="Orkney Islands Local Authority",0,IF('III Tool Overview'!$H$6="Shetland Islands Local Authority",0,IF('III Tool Overview'!$H$6="Eilean Siar Local Authority",0,new_ci(2,B82,C82,D82,$C$1,G82+H82,1,F82,E82*F82))))))) -> 0 | K82: =IF('III Tool Overview'!$H$6="Orkney Health Board",0,IF('III Tool Overview'!$H$6="Shetland Health Board",0,IF('III Tool Overview'!$H$6="Western Isles Health Board",0,IF('III Tool Overview'!$H$6="Orkney Islands Local Authority",0,IF('III Tool Overview'!$H$6="Shetland Islands Local Authority",0,IF('III Tool Overview'!$H$6="Eilean Siar Local Authority",0,new_ci(5,B82,C82,D82,$C$1,G82,1,F82,E82*F82))))))) -> 0 | L82: =IF('III Tool Overview'!$H$6="Orkney Health Board",0,IF('III Tool Overview'!$H$6="Shetland Health Board",0,IF('III Tool Overview'!$H$6="Western Isles Health Board",0,IF('III Tool Overview'!$H$6="Orkney Islands Local Authority",0,IF('III Tool Overview'!$H$6="Shetland Islands Local Authority",0,IF('III Tool Overview'!$H$6="Eilean Siar Local Authority",0,new_ci(5,B82,C82,D82,$C$1,G82+H82,1,F82,E82*F82))))))) -> 0 | M82: =IF('III Tool Overview'!$H$6="Orkney Health Board",0,IF('III Tool Overview'!$H$6="Shetland Health Board",0,IF('III Tool Overview'!$H$6="Western Isles Health Board",0,IF('III Tool Overview'!$H$6="Orkney Islands Local Authority",0,IF('III Tool Overview'!$H$6="Shetland Islands Local Authority",0,IF('III Tool Overview'!$H$6="Eilean Siar Local Authority",0,new_ci(10,B82,C82,D82,$C$1,G82,1,F82,E82*F82))))))) -> 0 | N82: =IF('III Tool Overview'!$H$6="Orkney Health Board",0,IF('III Tool Overview'!$H$6="Shetland Health Board",0,IF('III Tool Overview'!$H$6="Western Isles Health Board",0,IF('III Tool Overview'!$H$6="Orkney Islands Local Authority",0,IF('III Tool Overview'!$H$6="Shetland Islands Local Authority",0,IF('III Tool Overview'!$H$6="Eilean Siar Local Authority",0,new_ci(10,B82,C82,D82,$C$1,G82+H82,1,F82,E82*F82))))))) -> 0 | O82: =IF('III Tool Overview'!$H$6="Orkney Health Board",0,IF('III Tool Overview'!$H$6="Shetland Health Board",0,IF('III Tool Overview'!$H$6="Western Isles Health Board",0,IF('III Tool Overview'!$H$6="Orkney Islands Local Authority",0,IF('III Tool Overview'!$H$6="Shetland Islands Local Authority",0,IF('III Tool Overview'!$H$6="Eilean Siar Local Authority",0,new_ci(20,B82,C82,D82,$C$1,G82,1,F82,E82*F82))))))) -> 0 | P82: =IF('III Tool Overview'!$H$6="Orkney Health Board",0,IF('III Tool Overview'!$H$6="Shetland Health Board",0,IF('III Tool Overview'!$H$6="Western Isles Health Board",0,IF('III Tool Overview'!$H$6="Orkney Islands Local Authority",0,IF('III Tool Overview'!$H$6="Shetland Islands Local Authority",0,IF('III Tool Overview'!$H$6="Eilean Siar Local Authority",0,new_ci(20,B82,C82,D82,$C$1,G82+H82,1,F82,E82*F82))))))) -> 0 | Q82: =IF('III Tool Overview'!$H$6="Orkney Health Board",0,IF('III Tool Overview'!$H$6="Shetland Health Board",0,IF('III Tool Overview'!$H$6="Western Isles Health Board",0,IF('III Tool Overview'!$H$6="Orkney Islands Local Authority",0,IF('III Tool Overview'!$H$6="Shetland Islands Local Authority",0,IF('III Tool Overview'!$H$6="Eilean Siar Local Authority",0,new_yll(2,B82,C82,D82,$C$1,G82,1,F82,E82*F82))))))) -> 0 | R82: =IF('III Tool Overview'!$H$6="Orkney Health Board",0,IF('III Tool Overview'!$H$6="Shetland Health Board",0,IF('III Tool Overview'!$H$6="Western Isles Health Board",0,IF('III Tool Overview'!$H$6="Orkney Islands Local Authority",0,IF('III Tool Overview'!$H$6="Shetland Islands Local Authority",0,IF('III Tool Overview'!$H$6="Eilean Siar Local Authority",0,new_yll(2,B82,C82,D82,$C$1,G82+H82,1,F82,E82*F82))))))) -> 0 | S82: 0 | T82: =IF('III Tool Overview'!$H$6="Orkney Health Board",0,IF('III Tool Overview'!$H$6="Shetland Health Board",0,IF('III Tool Overview'!$H$6="Western Isles Health Board",0,IF('III Tool Overview'!$H$6="Orkney Islands Local Authority",0,IF('III Tool Overview'!$H$6="Shetland Islands Local Authority",0,IF('III Tool Overview'!$H$6="Eilean Siar Local Authority",0,new_yll(5,B82,C82,D82,$C$1,G82,1,F82,E82*F82))))))) -> 0 | U82: =IF('III Tool Overview'!$H$6="Orkney Health Board",0,IF('III Tool Overview'!$H$6="Shetland Health Board",0,IF('III Tool Overview'!$H$6="Western Isles Health Board",0,IF('III Tool Overview'!$H$6="Orkney Islands Local Authority",0,IF('III Tool Overview'!$H$6="Shetland Islands Local Authority",0,IF('III Tool Overview'!$H$6="Eilean Siar Local Authority",0,new_yll(5,B82,C82,D82,$C$1,G82+H82,1,F82,E82*F82))))))) -> 0 | V82: 0 | W82: =IF('III Tool Overview'!$H$6="Orkney Health Board",0,IF('III Tool Overview'!$H$6="Shetland Health Board",0,IF('III Tool Overview'!$H$6="Western Isles Health Board",0,IF('III Tool Overview'!$H$6="Orkney Islands Local Authority",0,IF('III Tool Overview'!$H$6="Shetland Islands Local Authority",0,IF('III Tool Overview'!$H$6="Eilean Siar Local Authority",0,new_yll(10,B82,C82,D82,$C$1,G82,1,F82,E82*F82))))))) -> 0 | X82: =IF('III Tool Overview'!$H$6="Orkney Health Board",0,IF('III Tool Overview'!$H$6="Shetland Health Board",0,IF('III Tool Overview'!$H$6="Western Isles Health Board",0,IF('III Tool Overview'!$H$6="Orkney Islands Local Authority",0,IF('III Tool Overview'!$H$6="Shetland Islands Local Authority",0,IF('III Tool Overview'!$H$6="Eilean Siar Local Authority",0,new_yll(10,B82,C82,D82,$C$1,G82+H82,1,F82,E82*F82))))))) -> 0 | Y82: 0 | Z82: =IF('III Tool Overview'!$H$6="Orkney Health Board",0,IF('III Tool Overview'!$H$6="Shetland Health Board",0,IF('III Tool Overview'!$H$6="Western Isles Health Board",0,IF('III Tool Overview'!$H$6="Orkney Islands Local Authority",0,IF('III Tool Overview'!$H$6="Shetland Islands Local Authority",0,IF('III Tool Overview'!$H$6="Eilean Siar Local Authority",0,new_yll(20,B82,C82,D82,$C$1,G82,1,F82,E82*F82))))))) -> 0 | AA82: =IF('III Tool Overview'!$H$6="Orkney Health Board",0,IF('III Tool Overview'!$H$6="Shetland Health Board",0,IF('III Tool Overview'!$H$6="Western Isles Health Board",0,IF('III Tool Overview'!$H$6="Orkney Islands Local Authority",0,IF('III Tool Overview'!$H$6="Shetland Islands Local Authority",0,IF('III Tool Overview'!$H$6="Eilean Siar Local Authority",0,new_yll(20,B82,C82,D82,$C$1,G82+H82,1,F82,E82*F82))))))) -> 0 | AB82: 0 | AC82: =IF('III Tool Overview'!$H$6="Orkney Health Board",0,IF('III Tool Overview'!$H$6="Shetland Health Board",0,IF('III Tool Overview'!$H$6="Western Isles Health Board",0,IF('III Tool Overview'!$H$6="Orkney Islands Local Authority",0,IF('III Tool Overview'!$H$6="Shetland Islands Local Authority",0,IF('III Tool Overview'!$H$6="Eilean Siar Local Authority",0,hosp_count(2,B82,C82,D82,$C$1,G82,1,F82,E82*F82))))))) -> 0 | AD82: =IF('III Tool Overview'!$H$6="Orkney Health Board",0,IF('III Tool Overview'!$H$6="Shetland Health Board",0,IF('III Tool Overview'!$H$6="Western Isles Health Board",0,IF('III Tool Overview'!$H$6="Orkney Islands Local Authority",0,IF('III Tool Overview'!$H$6="Shetland Islands Local Authority",0,IF('III Tool Overview'!$H$6="Eilean Siar Local Authority",0,hosp_count(2,B82,C82,D82,$C$1,G82+H82,1,F82,E82*F82))))))) -> 0 | AE82: 0 | AF82: =IF('III Tool Overview'!$H$6="Orkney Health Board",0,IF('III Tool Overview'!$H$6="Shetland Health Board",0,IF('III Tool Overview'!$H$6="Western Isles Health Board",0,IF('III Tool Overview'!$H$6="Orkney Islands Local Authority",0,IF('III Tool Overview'!$H$6="Shetland Islands Local Authority",0,IF('III Tool Overview'!$H$6="Eilean Siar Local Authority",0,hosp_count(5,B82,C82,D82,$C$1,G82,1,F82,E82*F82))))))) -> 0 | AG82: =IF('III Tool Overview'!$H$6="Orkney Health Board",0,IF('III Tool Overview'!$H$6="Shetland Health Board",0,IF('III Tool Overview'!$H$6="Western Isles Health Board",0,IF('III Tool Overview'!$H$6="Orkney Islands Local Authority",0,IF('III Tool Overview'!$H$6="Shetland Islands Local Authority",0,IF('III Tool Overview'!$H$6="Eilean Siar Local Authority",0,hosp_count(5,B82,C82,D82,$C$1,G82+H82,1,F82,E82*F82))))))) -> 0 | AH82: 0 | AI82: =IF('III Tool Overview'!$H$6="Orkney Health Board",0,IF('III Tool Overview'!$H$6="Shetland Health Board",0,IF('III Tool Overview'!$H$6="Western Isles Health Board",0,IF('III Tool Overview'!$H$6="Orkney Islands Local Authority",0,IF('III Tool Overview'!$H$6="Shetland Islands Local Authority",0,IF('III Tool Overview'!$H$6="Eilean Siar Local Authority",0,hosp_count(10,B82,C82,D82,$C$1,G82,1,F82,E82*F82))))))) -> 0 | AJ82: =IF('III Tool Overview'!$H$6="Orkney Health Board",0,IF('III Tool Overview'!$H$6="Shetland Health Board",0,IF('III Tool Overview'!$H$6="Western Isles Health Board",0,IF('III Tool Overview'!$H$6="Orkney Islands Local Authority",0,IF('III Tool Overview'!$H$6="Shetland Islands Local Authority",0,IF('III Tool Overview'!$H$6="Eilean Siar Local Authority",0,hosp_count(10,B82,C82,D82,$C$1,G82+H82,1,F82,E82*F82))))))) -> 0 | AK82: 0 | AL82: =IF('III Tool Overview'!$H$6="Orkney Health Board",0,IF('III Tool Overview'!$H$6="Shetland Health Board",0,IF('III Tool Overview'!$H$6="Western Isles Health Board",0,IF('III Tool Overview'!$H$6="Orkney Islands Local Authority",0,IF('III Tool Overview'!$H$6="Shetland Islands Local Authority",0,IF('III Tool Overview'!$H$6="Eilean Siar Local Authority",0,hosp_count(20,B82,C82,D82,$C$1,G82,1,F82,E82*F82))))))) -> 0 | AM82: =IF('III Tool Overview'!$H$6="Orkney Health Board",0,IF('III Tool Overview'!$H$6="Shetland Health Board",0,IF('III Tool Overview'!$H$6="Western Isles Health Board",0,IF('III Tool Overview'!$H$6="Orkney Islands Local Authority",0,IF('III Tool Overview'!$H$6="Shetland Islands Local Authority",0,IF('III Tool Overview'!$H$6="Eilean Siar Local Authority",0,hosp_count(20,B82,C82,D82,$C$1,G82+H82,1,F82,E82*F82))))))) -> 0 | AN82: 0 | AP82: 0.5 | AQ82: 5
A83: Male 80-84 | B83: 82.5 | C83: male | D83: 1 | E83: =HLOOKUP('III Tool Overview'!$H$6,Prevalence!$B$2:$AV$268,Prevalence!AW79,FALSE) -> 0.15 | F83: =HLOOKUP('III Tool Overview'!$H$6,LookUpData_Pop!$B$1:$AV$269,LookUpData_Pop!BB84,FALSE)/5 -> 0 | G83: ='III Tool Overview'!$H$9/110 -> 0 | H83: =IF('III Tool Overview'!$H$10="Even distribution",Targeting!C81,IF('III Tool Overview'!$H$10="Targetting to Q1",Targeting!D81,IF('III Tool Overview'!$H$10="Targetting to Q1 & Q2",Targeting!E81,IF('III Tool Overview'!$H$10="No variation in price elasticity",Targeting!G81)))) -> 0 | I83: =IF('III Tool Overview'!$H$6="Orkney Health Board",0,IF('III Tool Overview'!$H$6="Shetland Health Board",0,IF('III Tool Overview'!$H$6="Western Isles Health Board",0,IF('III Tool Overview'!$H$6="Orkney Islands Local Authority",0,IF('III Tool Overview'!$H$6="Shetland Islands Local Authority",0,IF('III Tool Overview'!$H$6="Eilean Siar Local Authority",0,new_ci(2,B83,C83,D83,$C$1,G83,1,F83,E83*F83))))))) -> 0 | J83: =IF('III Tool Overview'!$H$6="Orkney Health Board",0,IF('III Tool Overview'!$H$6="Shetland Health Board",0,IF('III Tool Overview'!$H$6="Western Isles Health Board",0,IF('III Tool Overview'!$H$6="Orkney Islands Local Authority",0,IF('III Tool Overview'!$H$6="Shetland Islands Local Authority",0,IF('III Tool Overview'!$H$6="Eilean Siar Local Authority",0,new_ci(2,B83,C83,D83,$C$1,G83+H83,1,F83,E83*F83))))))) -> 0 | K83: =IF('III Tool Overview'!$H$6="Orkney Health Board",0,IF('III Tool Overview'!$H$6="Shetland Health Board",0,IF('III Tool Overview'!$H$6="Western Isles Health Board",0,IF('III Tool Overview'!$H$6="Orkney Islands Local Authority",0,IF('III Tool Overview'!$H$6="Shetland Islands Local Authority",0,IF('III Tool Overview'!$H$6="Eilean Siar Local Authority",0,new_ci(5,B83,C83,D83,$C$1,G83,1,F83,E83*F83))))))) -> 0 | L83: =IF('III Tool Overview'!$H$6="Orkney Health Board",0,IF('III Tool Overview'!$H$6="Shetland Health Board",0,IF('III Tool Overview'!$H$6="Western Isles Health Board",0,IF('III Tool Overview'!$H$6="Orkney Islands Local Authority",0,IF('III Tool Overview'!$H$6="Shetland Islands Local Authority",0,IF('III Tool Overview'!$H$6="Eilean Siar Local Authority",0,new_ci(5,B83,C83,D83,$C$1,G83+H83,1,F83,E83*F83))))))) -> 0 | M83: =IF('III Tool Overview'!$H$6="Orkney Health Board",0,IF('III Tool Overview'!$H$6="Shetland Health Board",0,IF('III Tool Overview'!$H$6="Western Isles Health Board",0,IF('III Tool Overview'!$H$6="Orkney Islands Local Authority",0,IF('III Tool Overview'!$H$6="Shetland Islands Local Authority",0,IF('III Tool Overview'!$H$6="Eilean Siar Local Authority",0,new_ci(10,B83,C83,D83,$C$1,G83,1,F83,E83*F83))))))) -> 0 | N83: =IF('III Tool Overview'!$H$6="Orkney Health Board",0,IF('III Tool Overview'!$H$6="Shetland Health Board",0,IF('III Tool Overview'!$H$6="Western Isles Health Board",0,IF('III Tool Overview'!$H$6="Orkney Islands Local Authority",0,IF('III Tool Overview'!$H$6="Shetland Islands Local Authority",0,IF('III Tool Overview'!$H$6="Eilean Siar Local Authority",0,new_ci(10,B83,C83,D83,$C$1,G83+H83,1,F83,E83*F83))))))) -> 0 | O83: =IF('III Tool Overview'!$H$6="Orkney Health Board",0,IF('III Tool Overview'!$H$6="Shetland Health Board",0,IF('III Tool Overview'!$H$6="Western Isles Health Board",0,IF('III Tool Overview'!$H$6="Orkney Islands Local Authority",0,IF('III Tool Overview'!$H$6="Shetland Islands Local Authority",0,IF('III Tool Overview'!$H$6="Eilean Siar Local Authority",0,new_ci(20,B83,C83,D83,$C$1,G83,1,F83,E83*F83))))))) -> 0 | P83: =IF('III Tool Overview'!$H$6="Orkney Health Board",0,IF('III Tool Overview'!$H$6="Shetland Health Board",0,IF('III Tool Overview'!$H$6="Western Isles Health Board",0,IF('III Tool Overview'!$H$6="Orkney Islands Local Authority",0,IF('III Tool Overview'!$H$6="Shetland Islands Local Authority",0,IF('III Tool Overview'!$H$6="Eilean Siar Local Authority",0,new_ci(20,B83,C83,D83,$C$1,G83+H83,1,F83,E83*F83))))))) -> 0 | Q83: =IF('III Tool Overview'!$H$6="Orkney Health Board",0,IF('III Tool Overview'!$H$6="Shetland Health Board",0,IF('III Tool Overview'!$H$6="Western Isles Health Board",0,IF('III Tool Overview'!$H$6="Orkney Islands Local Authority",0,IF('III Tool Overview'!$H$6="Shetland Islands Local Authority",0,IF('III Tool Overview'!$H$6="Eilean Siar Local Authority",0,new_yll(2,B83,C83,D83,$C$1,G83,1,F83,E83*F83))))))) -> 0 | R83: =IF('III Tool Overview'!$H$6="Orkney Health Board",0,IF('III Tool Overview'!$H$6="Shetland Health Board",0,IF('III Tool Overview'!$H$6="Western Isles Health Board",0,IF('III Tool Overview'!$H$6="Orkney Islands Local Authority",0,IF('III Tool Overview'!$H$6="Shetland Islands Local Authority",0,IF('III Tool Overview'!$H$6="Eilean Siar Local Authority",0,new_yll(2,B83,C83,D83,$C$1,G83+H83,1,F83,E83*F83))))))) -> 0 | S83: 0 | T83: =IF('III Tool Overview'!$H$6="Orkney Health Board",0,IF('III Tool Overview'!$H$6="Shetland Health Board",0,IF('III Tool Overview'!$H$6="Western Isles Health Board",0,IF('III Tool Overview'!$H$6="Orkney Islands Local Authority",0,IF('III Tool Overview'!$H$6="Shetland Islands Local Authority",0,IF('III Tool Overview'!$H$6="Eilean Siar Local Authority",0,new_yll(5,B83,C83,D83,$C$1,G83,1,F83,E83*F83))))))) -> 0 | U83: =IF('III Tool Overview'!$H$6="Orkney Health Board",0,IF('III Tool Overview'!$H$6="Shetland Health Board",0,IF('III Tool Overview'!$H$6="Western Isles Health Board",0,IF('III Tool Overview'!$H$6="Orkney Islands Local Authority",0,IF('III Tool Overview'!$H$6="Shetland Islands Local Authority",0,IF('III Tool Overview'!$H$6="Eilean Siar Local Authority",0,new_yll(5,B83,C83,D83,$C$1,G83+H83,1,F83,E83*F83))))))) -> 0 | V83: 0 | W83: =IF('III Tool Overview'!$H$6="Orkney Health Board",0,IF('III Tool Overview'!$H$6="Shetland Health Board",0,IF('III Tool Overview'!$H$6="Western Isles Health Board",0,IF('III Tool Overview'!$H$6="Orkney Islands Local Authority",0,IF('III Tool Overview'!$H$6="Shetland Islands Local Authority",0,IF('III Tool Overview'!$H$6="Eilean Siar Local Authority",0,new_yll(10,B83,C83,D83,$C$1,G83,1,F83,E83*F83))))))) -> 0 | X83: =IF('III Tool Overview'!$H$6="Orkney Health Board",0,IF('III Tool Overview'!$H$6="Shetland Health Board",0,IF('III Tool Overview'!$H$6="Western Isles Health Board",0,IF('III Tool Overview'!$H$6="Orkney Islands Local Authority",0,IF('III Tool Overview'!$H$6="Shetland Islands Local Authority",0,IF('III Tool Overview'!$H$6="Eilean Siar Local Authority",0,new_yll(10,B83,C83,D83,$C$1,G83+H83,1,F83,E83*F83))))))) -> 0 | Y83: 0 | Z83: =IF('III Tool Overview'!$H$6="Orkney Health Board",0,IF('III Tool Overview'!$H$6="Shetland Health Board",0,IF('III Tool Overview'!$H$6="Western Isles Health Board",0,IF('III Tool Overview'!$H$6="Orkney Islands Local Authority",0,IF('III Tool Overview'!$H$6="Shetland Islands Local Authority",0,IF('III Tool Overview'!$H$6="Eilean Siar Local Authority",0,new_yll(20,B83,C83,D83,$C$1,G83,1,F83,E83*F83))))))) -> 0 | AA83: =IF('III Tool Overview'!$H$6="Orkney Health Board",0,IF('III Tool Overview'!$H$6="Shetland Health Board",0,IF('III Tool Overview'!$H$6="Western Isles Health Board",0,IF('III Tool Overview'!$H$6="Orkney Islands Local Authority",0,IF('III Tool Overview'!$H$6="Shetland Islands Local Authority",0,IF('III Tool Overview'!$H$6="Eilean Siar Local Authority",0,new_yll(20,B83,C83,D83,$C$1,G83+H83,1,F83,E83*F83))))))) -> 0 | AB83: 0 | AC83: =IF('III Tool Overview'!$H$6="Orkney Health Board",0,IF('III Tool Overview'!$H$6="Shetland Health Board",0,IF('III Tool Overview'!$H$6="Western Isles Health Board",0,IF('III Tool Overview'!$H$6="Orkney Islands Local Authority",0,IF('III Tool Overview'!$H$6="Shetland Islands Local Authority",0,IF('III Tool Overview'!$H$6="Eilean Siar Local Authority",0,hosp_count(2,B83,C83,D83,$C$1,G83,1,F83,E83*F83))))))) -> 0 | AD83: =IF('III Tool Overview'!$H$6="Orkney Health Board",0,IF('III Tool Overview'!$H$6="Shetland Health Board",0,IF('III Tool Overview'!$H$6="Western Isles Health Board",0,IF('III Tool Overview'!$H$6="Orkney Islands Local Authority",0,IF('III Tool Overview'!$H$6="Shetland Islands Local Authority",0,IF('III Tool Overview'!$H$6="Eilean Siar Local Authority",0,hosp_count(2,B83,C83,D83,$C$1,G83+H83,1,F83,E83*F83))))))) -> 0 | AE83: 0 | AF83: =IF('III Tool Overview'!$H$6="Orkney Health Board",0,IF('III Tool Overview'!$H$6="Shetland Health Board",0,IF('III Tool Overview'!$H$6="Western Isles Health Board",0,IF('III Tool Overview'!$H$6="Orkney Islands Local Authority",0,IF('III Tool Overview'!$H$6="Shetland Islands Local Authority",0,IF('III Tool Overview'!$H$6="Eilean Siar Local Authority",0,hosp_count(5,B83,C83,D83,$C$1,G83,1,F83,E83*F83))))))) -> 0 | AG83: =IF('III Tool Overview'!$H$6="Orkney Health Board",0,IF('III Tool Overview'!$H$6="Shetland Health Board",0,IF('III Tool Overview'!$H$6="Western Isles Health Board",0,IF('III Tool Overview'!$H$6="Orkney Islands Local Authority",0,IF('III Tool Overview'!$H$6="Shetland Islands Local Authority",0,IF('III Tool Overview'!$H$6="Eilean Siar Local Authority",0,hosp_count(5,B83,C83,D83,$C$1,G83+H83,1,F83,E83*F83))))))) -> 0 | AH83: 0 | AI83: =IF('III Tool Overview'!$H$6="Orkney Health Board",0,IF('III Tool Overview'!$H$6="Shetland Health Board",0,IF('III Tool Overview'!$H$6="Western Isles Health Board",0,IF('III Tool Overview'!$H$6="Orkney Islands Local Authority",0,IF('III Tool Overview'!$H$6="Shetland Islands Local Authority",0,IF('III Tool Overview'!$H$6="Eilean Siar Local Authority",0,hosp_count(10,B83,C83,D83,$C$1,G83,1,F83,E83*F83))))))) -> 0 | AJ83: =IF('III Tool Overview'!$H$6="Orkney Health Board",0,IF('III Tool Overview'!$H$6="Shetland Health Board",0,IF('III Tool Overview'!$H$6="Western Isles Health Board",0,IF('III Tool Overview'!$H$6="Orkney Islands Local Authority",0,IF('III Tool Overview'!$H$6="Shetland Islands Local Authority",0,IF('III Tool Overview'!$H$6="Eilean Siar Local Authority",0,hosp_count(10,B83,C83,D83,$C$1,G83+H83,1,F83,E83*F83))))))) -> 0 | AK83: 0 | AL83: =IF('III Tool Overview'!$H$6="Orkney Health Board",0,IF('III Tool Overview'!$H$6="Shetland Health Board",0,IF('III Tool Overview'!$H$6="Western Isles Health Board",0,IF('III Tool Overview'!$H$6="Orkney Islands Local Authority",0,IF('III Tool Overview'!$H$6="Shetland Islands Local Authority",0,IF('III Tool Overview'!$H$6="Eilean Siar Local Authority",0,hosp_count(20,B83,C83,D83,$C$1,G83,1,F83,E83*F83))))))) -> 0 | AM83: =IF('III Tool Overview'!$H$6="Orkney Health Board",0,IF('III Tool Overview'!$H$6="Shetland Health Board",0,IF('III Tool Overview'!$H$6="Western Isles Health Board",0,IF('III Tool Overview'!$H$6="Orkney Islands Local Authority",0,IF('III Tool Overview'!$H$6="Shetland Islands Local Authority",0,IF('III Tool Overview'!$H$6="Eilean Siar Local Authority",0,hosp_count(20,B83,C83,D83,$C$1,G83+H83,1,F83,E83*F83))))))) -> 0 | AN83: 0 | AP83: 0.5 | AQ83: 5
A84: Male 85-89 | B84: 87.5 | C84: male | D84: 1 | E84: =HLOOKUP('III Tool Overview'!$H$6,Prevalence!$B$2:$AV$268,Prevalence!AW80,FALSE) -> 0.15 | F84: =HLOOKUP('III Tool Overview'!$H$6,LookUpData_Pop!$B$1:$AV$269,LookUpData_Pop!BB85,FALSE)/5 -> 0 | G84: ='III Tool Overview'!$H$9/110 -> 0 | H84: =IF('III Tool Overview'!$H$10="Even distribution",Targeting!C82,IF('III Tool Overview'!$H$10="Targetting to Q1",Targeting!D82,IF('III Tool Overview'!$H$10="Targetting to Q1 & Q2",Targeting!E82,IF('III Tool Overview'!$H$10="No variation in price elasticity",Targeting!G82)))) -> 0 | I84: =IF('III Tool Overview'!$H$6="Orkney Health Board",0,IF('III Tool Overview'!$H$6="Shetland Health Board",0,IF('III Tool Overview'!$H$6="Western Isles Health Board",0,IF('III Tool Overview'!$H$6="Orkney Islands Local Authority",0,IF('III Tool Overview'!$H$6="Shetland Islands Local Authority",0,IF('III Tool Overview'!$H$6="Eilean Siar Local Authority",0,new_ci(2,B84,C84,D84,$C$1,G84,1,F84,E84*F84))))))) -> 0 | J84: =IF('III Tool Overview'!$H$6="Orkney Health Board",0,IF('III Tool Overview'!$H$6="Shetland Health Board",0,IF('III Tool Overview'!$H$6="Western Isles Health Board",0,IF('III Tool Overview'!$H$6="Orkney Islands Local Authority",0,IF('III Tool Overview'!$H$6="Shetland Islands Local Authority",0,IF('III Tool Overview'!$H$6="Eilean Siar Local Authority",0,new_ci(2,B84,C84,D84,$C$1,G84+H84,1,F84,E84*F84))))))) -> 0 | K84: =IF('III Tool Overview'!$H$6="Orkney Health Board",0,IF('III Tool Overview'!$H$6="Shetland Health Board",0,IF('III Tool Overview'!$H$6="Western Isles Health Board",0,IF('III Tool Overview'!$H$6="Orkney Islands Local Authority",0,IF('III Tool Overview'!$H$6="Shetland Islands Local Authority",0,IF('III Tool Overview'!$H$6="Eilean Siar Local Authority",0,new_ci(5,B84,C84,D84,$C$1,G84,1,F84,E84*F84))))))) -> 0 | L84: =IF('III Tool Overview'!$H$6="Orkney Health Board",0,IF('III Tool Overview'!$H$6="Shetland Health Board",0,IF('III Tool Overview'!$H$6="Western Isles Health Board",0,IF('III Tool Overview'!$H$6="Orkney Islands Local Authority",0,IF('III Tool Overview'!$H$6="Shetland Islands Local Authority",0,IF('III Tool Overview'!$H$6="Eilean Siar Local Authority",0,new_ci(5,B84,C84,D84,$C$1,G84+H84,1,F84,E84*F84))))))) -> 0 | M84: =IF('III Tool Overview'!$H$6="Orkney Health Board",0,IF('III Tool Overview'!$H$6="Shetland Health Board",0,IF('III Tool Overview'!$H$6="Western Isles Health Board",0,IF('III Tool Overview'!$H$6="Orkney Islands Local Authority",0,IF('III Tool Overview'!$H$6="Shetland Islands Local Authority",0,IF('III Tool Overview'!$H$6="Eilean Siar Local Authority",0,new_ci(10,B84,C84,D84,$C$1,G84,1,F84,E84*F84))))))) -> 0 | N84: =IF('III Tool Overview'!$H$6="Orkney Health Board",0,IF('III Tool Overview'!$H$6="Shetland Health Board",0,IF('III Tool Overview'!$H$6="Western Isles Health Board",0,IF('III Tool Overview'!$H$6="Orkney Islands Local Authority",0,IF('III Tool Overview'!$H$6="Shetland Islands Local Authority",0,IF('III Tool Overview'!$H$6="Eilean Siar Local Authority",0,new_ci(10,B84,C84,D84,$C$1,G84+H84,1,F84,E84*F84))))))) -> 0 | O84: =IF('III Tool Overview'!$H$6="Orkney Health Board",0,IF('III Tool Overview'!$H$6="Shetland Health Board",0,IF('III Tool Overview'!$H$6="Western Isles Health Board",0,IF('III Tool Overview'!$H$6="Orkney Islands Local Authority",0,IF('III Tool Overview'!$H$6="Shetland Islands Local Authority",0,IF('III Tool Overview'!$H$6="Eilean Siar Local Authority",0,new_ci(20,B84,C84,D84,$C$1,G84,1,F84,E84*F84))))))) -> 0 | P84: =IF('III Tool Overview'!$H$6="Orkney Health Board",0,IF('III Tool Overview'!$H$6="Shetland Health Board",0,IF('III Tool Overview'!$H$6="Western Isles Health Board",0,IF('III Tool Overview'!$H$6="Orkney Islands Local Authority",0,IF('III Tool Overview'!$H$6="Shetland Islands Local Authority",0,IF('III Tool Overview'!$H$6="Eilean Siar Local Authority",0,new_ci(20,B84,C84,D84,$C$1,G84+H84,1,F84,E84*F84))))))) -> 0 | Q84: =IF('III Tool Overview'!$H$6="Orkney Health Board",0,IF('III Tool Overview'!$H$6="Shetland Health Board",0,IF('III Tool Overview'!$H$6="Western Isles Health Board",0,IF('III Tool Overview'!$H$6="Orkney Islands Local Authority",0,IF('III Tool Overview'!$H$6="Shetland Islands Local Authority",0,IF('III Tool Overview'!$H$6="Eilean Siar Local Authority",0,new_yll(2,B84,C84,D84,$C$1,G84,1,F84,E84*F84))))))) -> 0 | R84: =IF('III Tool Overview'!$H$6="Orkney Health Board",0,IF('III Tool Overview'!$H$6="Shetland Health Board",0,IF('III Tool Overview'!$H$6="Western Isles Health Board",0,IF('III Tool Overview'!$H$6="Orkney Islands Local Authority",0,IF('III Tool Overview'!$H$6="Shetland Islands Local Authority",0,IF('III Tool Overview'!$H$6="Eilean Siar Local Authority",0,new_yll(2,B84,C84,D84,$C$1,G84+H84,1,F84,E84*F84))))))) -> 0 | S84: 0 | T84: =IF('III Tool Overview'!$H$6="Orkney Health Board",0,IF('III Tool Overview'!$H$6="Shetland Health Board",0,IF('III Tool Overview'!$H$6="Western Isles Health Board",0,IF('III Tool Overview'!$H$6="Orkney Islands Local Authority",0,IF('III Tool Overview'!$H$6="Shetland Islands Local Authority",0,IF('III Tool Overview'!$H$6="Eilean Siar Local Authority",0,new_yll(5,B84,C84,D84,$C$1,G84,1,F84,E84*F84))))))) -> 0 | U84: =IF('III Tool Overview'!$H$6="Orkney Health Board",0,IF('III Tool Overview'!$H$6="Shetland Health Board",0,IF('III Tool Overview'!$H$6="Western Isles Health Board",0,IF('III Tool Overview'!$H$6="Orkney Islands Local Authority",0,IF('III Tool Overview'!$H$6="Shetland Islands Local Authority",0,IF('III Tool Overview'!$H$6="Eilean Siar Local Authority",0,new_yll(5,B84,C84,D84,$C$1,G84+H84,1,F84,E84*F84))))))) -> 0 | V84: 0 | W84: =IF('III Tool Overview'!$H$6="Orkney Health Board",0,IF('III Tool Overview'!$H$6="Shetland Health Board",0,IF('III Tool Overview'!$H$6="Western Isles Health Board",0,IF('III Tool Overview'!$H$6="Orkney Islands Local Authority",0,IF('III Tool Overview'!$H$6="Shetland Islands Local Authority",0,IF('III Tool Overview'!$H$6="Eilean Siar Local Authority",0,new_yll(10,B84,C84,D84,$C$1,G84,1,F84,E84*F84))))))) -> 0 | X84: =IF('III Tool Overview'!$H$6="Orkney Health Board",0,IF('III Tool Overview'!$H$6="Shetland Health Board",0,IF('III Tool Overview'!$H$6="Western Isles Health Board",0,IF('III Tool Overview'!$H$6="Orkney Islands Local Authority",0,IF('III Tool Overview'!$H$6="Shetland Islands Local Authority",0,IF('III Tool Overview'!$H$6="Eilean Siar Local Authority",0,new_yll(10,B84,C84,D84,$C$1,G84+H84,1,F84,E84*F84))))))) -> 0 | Y84: 0 | Z84: =IF('III Tool Overview'!$H$6="Orkney Health Board",0,IF('III Tool Overview'!$H$6="Shetland Health Board",0,IF('III Tool Overview'!$H$6="Western Isles Health Board",0,IF('III Tool Overview'!$H$6="Orkney Islands Local Authority",0,IF('III Tool Overview'!$H$6="Shetland Islands Local Authority",0,IF('III Tool Overview'!$H$6="Eilean Siar Local Authority",0,new_yll(20,B84,C84,D84,$C$1,G84,1,F84,E84*F84))))))) -> 0 | AA84: =IF('III Tool Overview'!$H$6="Orkney Health Board",0,IF('III Tool Overview'!$H$6="Shetland Health Board",0,IF('III Tool Overview'!$H$6="Western Isles Health Board",0,IF('III Tool Overview'!$H$6="Orkney Islands Local Authority",0,IF('III Tool Overview'!$H$6="Shetland Islands Local Authority",0,IF('III Tool Overview'!$H$6="Eilean Siar Local Authority",0,new_yll(20,B84,C84,D84,$C$1,G84+H84,1,F84,E84*F84))))))) -> 0 | AB84: 0 | AC84: =IF('III Tool Overview'!$H$6="Orkney Health Board",0,IF('III Tool Overview'!$H$6="Shetland Health Board",0,IF('III Tool Overview'!$H$6="Western Isles Health Board",0,IF('III Tool Overview'!$H$6="Orkney Islands Local Authority",0,IF('III Tool Overview'!$H$6="Shetland Islands Local Authority",0,IF('III Tool Overview'!$H$6="Eilean Siar Local Authority",0,hosp_count(2,B84,C84,D84,$C$1,G84,1,F84,E84*F84))))))) -> 0 | AD84: =IF('III Tool Overview'!$H$6="Orkney Health Board",0,IF('III Tool Overview'!$H$6="Shetland Health Board",0,IF('III Tool Overview'!$H$6="Western Isles Health Board",0,IF('III Tool Overview'!$H$6="Orkney Islands Local Authority",0,IF('III Tool Overview'!$H$6="Shetland Islands Local Authority",0,IF('III Tool Overview'!$H$6="Eilean Siar Local Authority",0,hosp_count(2,B84,C84,D84,$C$1,G84+H84,1,F84,E84*F84))))))) -> 0 | AE84: 0 | AF84: =IF('III Tool Overview'!$H$6="Orkney Health Board",0,IF('III Tool Overview'!$H$6="Shetland Health Board",0,IF('III Tool Overview'!$H$6="Western Isles Health Board",0,IF('III Tool Overview'!$H$6="Orkney Islands Local Authority",0,IF('III Tool Overview'!$H$6="Shetland Islands Local Authority",0,IF('III Tool Overview'!$H$6="Eilean Siar Local Authority",0,hosp_count(5,B84,C84,D84,$C$1,G84,1,F84,E84*F84))))))) -> 0 | AG84: =IF('III Tool Overview'!$H$6="Orkney Health Board",0,IF('III Tool Overview'!$H$6="Shetland Health Board",0,IF('III Tool Overview'!$H$6="Western Isles Health Board",0,IF('III Tool Overview'!$H$6="Orkney Islands Local Authority",0,IF('III Tool Overview'!$H$6="Shetland Islands Local Authority",0,IF('III Tool Overview'!$H$6="Eilean Siar Local Authority",0,hosp_count(5,B84,C84,D84,$C$1,G84+H84,1,F84,E84*F84))))))) -> 0 | AH84: 0 | AI84: =IF('III Tool Overview'!$H$6="Orkney Health Board",0,IF('III Tool Overview'!$H$6="Shetland Health Board",0,IF('III Tool Overview'!$H$6="Western Isles Health Board",0,IF('III Tool Overview'!$H$6="Orkney Islands Local Authority",0,IF('III Tool Overview'!$H$6="Shetland Islands Local Authority",0,IF('III Tool Overview'!$H$6="Eilean Siar Local Authority",0,hosp_count(10,B84,C84,D84,$C$1,G84,1,F84,E84*F84))))))) -> 0 | AJ84: =IF('III Tool Overview'!$H$6="Orkney Health Board",0,IF('III Tool Overview'!$H$6="Shetland Health Board",0,IF('III Tool Overview'!$H$6="Western Isles Health Board",0,IF('III Tool Overview'!$H$6="Orkney Islands Local Authority",0,IF('III Tool Overview'!$H$6="Shetland Islands Local Authority",0,IF('III Tool Overview'!$H$6="Eilean Siar Local Authority",0,hosp_count(10,B84,C84,D84,$C$1,G84+H84,1,F84,E84*F84))))))) -> 0 | AK84: 0 | AL84: =IF('III Tool Overview'!$H$6="Orkney Health Board",0,IF('III Tool Overview'!$H$6="Shetland Health Board",0,IF('III Tool Overview'!$H$6="Western Isles Health Board",0,IF('III Tool Overview'!$H$6="Orkney Islands Local Authority",0,IF('III Tool Overview'!$H$6="Shetland Islands Local Authority",0,IF('III Tool Overview'!$H$6="Eilean Siar Local Authority",0,hosp_count(20,B84,C84,D84,$C$1,G84,1,F84,E84*F84))))))) -> 0 | AM84: =IF('III Tool Overview'!$H$6="Orkney Health Board",0,IF('III Tool Overview'!$H$6="Shetland Health Board",0,IF('III Tool Overview'!$H$6="Western Isles Health Board",0,IF('III Tool Overview'!$H$6="Orkney Islands Local Authority",0,IF('III Tool Overview'!$H$6="Shetland Islands Local Authority",0,IF('III Tool Overview'!$H$6="Eilean Siar Local Authority",0,hosp_count(20,B84,C84,D84,$C$1,G84+H84,1,F84,E84*F84))))))) -> 0 | AN84: 0 | AP84: 0.5 | AQ84: =2/#REF! -> 
A85: Male 90+ | B85: 95 | C85: male | D85: 1 | E85: =HLOOKUP('III Tool Overview'!$H$6,Prevalence!$B$2:$AV$268,Prevalence!AW81,FALSE) -> 0.15 | F85: =HLOOKUP('III Tool Overview'!$H$6,LookUpData_Pop!$B$1:$AV$269,LookUpData_Pop!BB86,FALSE)/5 -> 0 | G85: ='III Tool Overview'!$H$9/110 -> 0 | H85: =IF('III Tool Overview'!$H$10="Even distribution",Targeting!C83,IF('III Tool Overview'!$H$10="Targetting to Q1",Targeting!D83,IF('III Tool Overview'!$H$10="Targetting to Q1 & Q2",Targeting!E83,IF('III Tool Overview'!$H$10="No variation in price elasticity",Targeting!G83)))) -> 0 | I85: =IF('III Tool Overview'!$H$6="Orkney Health Board",0,IF('III Tool Overview'!$H$6="Shetland Health Board",0,IF('III Tool Overview'!$H$6="Western Isles Health Board",0,IF('III Tool Overview'!$H$6="Orkney Islands Local Authority",0,IF('III Tool Overview'!$H$6="Shetland Islands Local Authority",0,IF('III Tool Overview'!$H$6="Eilean Siar Local Authority",0,new_ci(2,B85,C85,D85,$C$1,G85,1,F85,E85*F85))))))) -> 0 | J85: =IF('III Tool Overview'!$H$6="Orkney Health Board",0,IF('III Tool Overview'!$H$6="Shetland Health Board",0,IF('III Tool Overview'!$H$6="Western Isles Health Board",0,IF('III Tool Overview'!$H$6="Orkney Islands Local Authority",0,IF('III Tool Overview'!$H$6="Shetland Islands Local Authority",0,IF('III Tool Overview'!$H$6="Eilean Siar Local Authority",0,new_ci(2,B85,C85,D85,$C$1,G85+H85,1,F85,E85*F85))))))) -> 0 | K85: =IF('III Tool Overview'!$H$6="Orkney Health Board",0,IF('III Tool Overview'!$H$6="Shetland Health Board",0,IF('III Tool Overview'!$H$6="Western Isles Health Board",0,IF('III Tool Overview'!$H$6="Orkney Islands Local Authority",0,IF('III Tool Overview'!$H$6="Shetland Islands Local Authority",0,IF('III Tool Overview'!$H$6="Eilean Siar Local Authority",0,new_ci(5,B85,C85,D85,$C$1,G85,1,F85,E85*F85))))))) -> 0 | L85: =IF('III Tool Overview'!$H$6="Orkney Health Board",0,IF('III Tool Overview'!$H$6="Shetland Health Board",0,IF('III Tool Overview'!$H$6="Western Isles Health Board",0,IF('III Tool Overview'!$H$6="Orkney Islands Local Authority",0,IF('III Tool Overview'!$H$6="Shetland Islands Local Authority",0,IF('III Tool Overview'!$H$6="Eilean Siar Local Authority",0,new_ci(5,B85,C85,D85,$C$1,G85+H85,1,F85,E85*F85))))))) -> 0 | M85: =IF('III Tool Overview'!$H$6="Orkney Health Board",0,IF('III Tool Overview'!$H$6="Shetland Health Board",0,IF('III Tool Overview'!$H$6="Western Isles Health Board",0,IF('III Tool Overview'!$H$6="Orkney Islands Local Authority",0,IF('III Tool Overview'!$H$6="Shetland Islands Local Authority",0,IF('III Tool Overview'!$H$6="Eilean Siar Local Authority",0,new_ci(10,B85,C85,D85,$C$1,G85,1,F85,E85*F85))))))) -> 0 | N85: =IF('III Tool Overview'!$H$6="Orkney Health Board",0,IF('III Tool Overview'!$H$6="Shetland Health Board",0,IF('III Tool Overview'!$H$6="Western Isles Health Board",0,IF('III Tool Overview'!$H$6="Orkney Islands Local Authority",0,IF('III Tool Overview'!$H$6="Shetland Islands Local Authority",0,IF('III Tool Overview'!$H$6="Eilean Siar Local Authority",0,new_ci(10,B85,C85,D85,$C$1,G85+H85,1,F85,E85*F85))))))) -> 0 | O85: =IF('III Tool Overview'!$H$6="Orkney Health Board",0,IF('III Tool Overview'!$H$6="Shetland Health Board",0,IF('III Tool Overview'!$H$6="Western Isles Health Board",0,IF('III Tool Overview'!$H$6="Orkney Islands Local Authority",0,IF('III Tool Overview'!$H$6="Shetland Islands Local Authority",0,IF('III Tool Overview'!$H$6="Eilean Siar Local Authority",0,new_ci(20,B85,C85,D85,$C$1,G85,1,F85,E85*F85))))))) -> 0 | P85: =IF('III Tool Overview'!$H$6="Orkney Health Board",0,IF('III Tool Overview'!$H$6="Shetland Health Board",0,IF('III Tool Overview'!$H$6="Western Isles Health Board",0,IF('III Tool Overview'!$H$6="Orkney Islands Local Authority",0,IF('III Tool Overview'!$H$6="Shetland Islands Local Authority",0,IF('III Tool Overview'!$H$6="Eilean Siar Local Authority",0,new_ci(20,B85,C85,D85,$C$1,G85+H85,1,F85,E85*F85))))))) -> 0 | Q85: =IF('III Tool Overview'!$H$6="Orkney Health Board",0,IF('III Tool Overview'!$H$6="Shetland Health Board",0,IF('III Tool Overview'!$H$6="Western Isles Health Board",0,IF('III Tool Overview'!$H$6="Orkney Islands Local Authority",0,IF('III Tool Overview'!$H$6="Shetland Islands Local Authority",0,IF('III Tool Overview'!$H$6="Eilean Siar Local Authority",0,new_yll(2,B85,C85,D85,$C$1,G85,1,F85,E85*F85))))))) -> 0 | R85: =IF('III Tool Overview'!$H$6="Orkney Health Board",0,IF('III Tool Overview'!$H$6="Shetland Health Board",0,IF('III Tool Overview'!$H$6="Western Isles Health Board",0,IF('III Tool Overview'!$H$6="Orkney Islands Local Authority",0,IF('III Tool Overview'!$H$6="Shetland Islands Local Authority",0,IF('III Tool Overview'!$H$6="Eilean Siar Local Authority",0,new_yll(2,B85,C85,D85,$C$1,G85+H85,1,F85,E85*F85))))))) -> 0 | S85: =Q85-R85 -> 0 | T85: =IF('III Tool Overview'!$H$6="Orkney Health Board",0,IF('III Tool Overview'!$H$6="Shetland Health Board",0,IF('III Tool Overview'!$H$6="Western Isles Health Board",0,IF('III Tool Overview'!$H$6="Orkney Islands Local Authority",0,IF('III Tool Overview'!$H$6="Shetland Islands Local Authority",0,IF('III Tool Overview'!$H$6="Eilean Siar Local Authority",0,new_yll(5,B85,C85,D85,$C$1,G85,1,F85,E85*F85))))))) -> 0 | U85: =IF('III Tool Overview'!$H$6="Orkney Health Board",0,IF('III Tool Overview'!$H$6="Shetland Health Board",0,IF('III Tool Overview'!$H$6="Western Isles Health Board",0,IF('III Tool Overview'!$H$6="Orkney Islands Local Authority",0,IF('III Tool Overview'!$H$6="Shetland Islands Local Authority",0,IF('III Tool Overview'!$H$6="Eilean Siar Local Authority",0,new_yll(5,B85,C85,D85,$C$1,G85+H85,1,F85,E85*F85))))))) -> 0 | V85: =T85-U85 -> 0 | W85: =IF('III Tool Overview'!$H$6="Orkney Health Board",0,IF('III Tool Overview'!$H$6="Shetland Health Board",0,IF('III Tool Overview'!$H$6="Western Isles Health Board",0,IF('III Tool Overview'!$H$6="Orkney Islands Local Authority",0,IF('III Tool Overview'!$H$6="Shetland Islands Local Authority",0,IF('III Tool Overview'!$H$6="Eilean Siar Local Authority",0,new_yll(10,B85,C85,D85,$C$1,G85,1,F85,E85*F85))))))) -> 0 | X85: =IF('III Tool Overview'!$H$6="Orkney Health Board",0,IF('III Tool Overview'!$H$6="Shetland Health Board",0,IF('III Tool Overview'!$H$6="Western Isles Health Board",0,IF('III Tool Overview'!$H$6="Orkney Islands Local Authority",0,IF('III Tool Overview'!$H$6="Shetland Islands Local Authority",0,IF('III Tool Overview'!$H$6="Eilean Siar Local Authority",0,new_yll(10,B85,C85,D85,$C$1,G85+H85,1,F85,E85*F85))))))) -> 0 | Y85: =W85-X85 -> 0 | Z85: =IF('III Tool Overview'!$H$6="Orkney Health Board",0,IF('III Tool Overview'!$H$6="Shetland Health Board",0,IF('III Tool Overview'!$H$6="Western Isles Health Board",0,IF('III Tool Overview'!$H$6="Orkney Islands Local Authority",0,IF('III Tool Overview'!$H$6="Shetland Islands Local Authority",0,IF('III Tool Overview'!$H$6="Eilean Siar Local Authority",0,new_yll(20,B85,C85,D85,$C$1,G85,1,F85,E85*F85))))))) -> 0 | AA85: =IF('III Tool Overview'!$H$6="Orkney Health Board",0,IF('III Tool Overview'!$H$6="Shetland Health Board",0,IF('III Tool Overview'!$H$6="Western Isles Health Board",0,IF('III Tool Overview'!$H$6="Orkney Islands Local Authority",0,IF('III Tool Overview'!$H$6="Shetland Islands Local Authority",0,IF('III Tool Overview'!$H$6="Eilean Siar Local Authority",0,new_yll(20,B85,C85,D85,$C$1,G85+H85,1,F85,E85*F85))))))) -> 0 | AB85: =Z85-AA85 -> 0 | AC85: =IF('III Tool Overview'!$H$6="Orkney Health Board",0,IF('III Tool Overview'!$H$6="Shetland Health Board",0,IF('III Tool Overview'!$H$6="Western Isles Health Board",0,IF('III Tool Overview'!$H$6="Orkney Islands Local Authority",0,IF('III Tool Overview'!$H$6="Shetland Islands Local Authority",0,IF('III Tool Overview'!$H$6="Eilean Siar Local Authority",0,hosp_count(2,B85,C85,D85,$C$1,G85,1,F85,E85*F85))))))) -> 0 | AD85: =IF('III Tool Overview'!$H$6="Orkney Health Board",0,IF('III Tool Overview'!$H$6="Shetland Health Board",0,IF('III Tool Overview'!$H$6="Western Isles Health Board",0,IF('III Tool Overview'!$H$6="Orkney Islands Local Authority",0,IF('III Tool Overview'!$H$6="Shetland Islands Local Authority",0,IF('III Tool Overview'!$H$6="Eilean Siar Local Authority",0,hosp_count(2,B85,C85,D85,$C$1,G85+H85,1,F85,E85*F85))))))) -> 0 | AE85: =AC85-AD85 -> 0 | AF85: =IF('III Tool Overview'!$H$6="Orkney Health Board",0,IF('III Tool Overview'!$H$6="Shetland Health Board",0,IF('III Tool Overview'!$H$6="Western Isles Health Board",0,IF('III Tool Overview'!$H$6="Orkney Islands Local Authority",0,IF('III Tool Overview'!$H$6="Shetland Islands Local Authority",0,IF('III Tool Overview'!$H$6="Eilean Siar Local Authority",0,hosp_count(5,B85,C85,D85,$C$1,G85,1,F85,E85*F85))))))) -> 0 | AG85: =IF('III Tool Overview'!$H$6="Orkney Health Board",0,IF('III Tool Overview'!$H$6="Shetland Health Board",0,IF('III Tool Overview'!$H$6="Western Isles Health Board",0,IF('III Tool Overview'!$H$6="Orkney Islands Local Authority",0,IF('III Tool Overview'!$H$6="Shetland Islands Local Authority",0,IF('III Tool Overview'!$H$6="Eilean Siar Local Authority",0,hosp_count(5,B85,C85,D85,$C$1,G85+H85,1,F85,E85*F85))))))) -> 0 | AH85: =AF85-AG85 -> 0 | AI85: =IF('III Tool Overview'!$H$6="Orkney Health Board",0,IF('III Tool Overview'!$H$6="Shetland Health Board",0,IF('III Tool Overview'!$H$6="Western Isles Health Board",0,IF('III Tool Overview'!$H$6="Orkney Islands Local Authority",0,IF('III Tool Overview'!$H$6="Shetland Islands Local Authority",0,IF('III Tool Overview'!$H$6="Eilean Siar Local Authority",0,hosp_count(10,B85,C85,D85,$C$1,G85,1,F85,E85*F85))))))) -> 0 | AJ85: =IF('III Tool Overview'!$H$6="Orkney Health Board",0,IF('III Tool Overview'!$H$6="Shetland Health Board",0,IF('III Tool Overview'!$H$6="Western Isles Health Board",0,IF('III Tool Overview'!$H$6="Orkney Islands Local Authority",0,IF('III Tool Overview'!$H$6="Shetland Islands Local Authority",0,IF('III Tool Overview'!$H$6="Eilean Siar Local Authority",0,hosp_count(10,B85,C85,D85,$C$1,G85+H85,1,F85,E85*F85))))))) -> 0 | AK85: =AI85-AJ85 -> 0 | AL85: =IF('III Tool Overview'!$H$6="Orkney Health Board",0,IF('III Tool Overview'!$H$6="Shetland Health Board",0,IF('III Tool Overview'!$H$6="Western Isles Health Board",0,IF('III Tool Overview'!$H$6="Orkney Islands Local Authority",0,IF('III Tool Overview'!$H$6="Shetland Islands Local Authority",0,IF('III Tool Overview'!$H$6="Eilean Siar Local Authority",0,hosp_count(20,B85,C85,D85,$C$1,G85,1,F85,E85*F85))))))) -> 0 | AM85: =IF('III Tool Overview'!$H$6="Orkney Health Board",0,IF('III Tool Overview'!$H$6="Shetland Health Board",0,IF('III Tool Overview'!$H$6="Western Isles Health Board",0,IF('III Tool Overview'!$H$6="Orkney Islands Local Authority",0,IF('III Tool Overview'!$H$6="Shetland Islands Local Authority",0,IF('III Tool Overview'!$H$6="Eilean Siar Local Authority",0,hosp_count(20,B85,C85,D85,$C$1,G85+H85,1,F85,E85*F85))))))) -> 0 | AN85: =AL85-AM85 -> 0
A86: TOTAL | F86: =SUM(F70:F85) -> 0 | G86: =SUM(G70:G85) -> 0 | H86: 0 | I86: 0 | J86: 0 | K86: 0 | L86: 0 | M86: 0 | N86: 0 | O86: 0 | P86: 0 | Q86: 0 | R86: 0 | S86: 0 | T86: 0 | U86: 0 | V86: 0 | W86: 0 | X86: 0 | Y86: 0 | Z86: 0 | AA86: 0 | AB86: 0 | AC86: 0 | AD86: 0 | AE86: 0 | AF86: 0 | AG86: 0 | AH86: 0 | AI86: 0 | AJ86: 0 | AK86: 0 | AL86: 0 | AM86: 0 | AN86: 0
A87: Female <1 | B87: 0.5 | C87: female | D87: 1 | F87: =HLOOKUP('III Tool Overview'!$H$6,LookUpData_Pop!$B$1:$AV$269,LookUpData_Pop!BB87,FALSE)/5 -> 0 | AP87: 0.1 | AQ87: 1
A88: Female 1-4 | B88: 2.5 | C88: female | D88: 1 | F88: =HLOOKUP('III Tool Overview'!$H$6,LookUpData_Pop!$B$1:$AV$269,LookUpData_Pop!BB88,FALSE)/5 -> 0 | AP88: 0.5 | AQ88: 4
A89: Female 5-9 | B89: 7.5 | C89: female | D89: 1 | F89: =HLOOKUP('III Tool Overview'!$H$6,LookUpData_Pop!$B$1:$AV$269,LookUpData_Pop!BB89,FALSE)/5 -> 0 | AP89: 0.5 | AQ89: 5
A90: Female 10-14 | B90: 12.5 | C90: female | D90: 1 | F90: =HLOOKUP('III Tool Overview'!$H$6,LookUpData_Pop!$B$1:$AV$269,LookUpData_Pop!BB90,FALSE)/5 -> 0 | AP90: 0.5 | AQ90: 5
A91: Female 15-19 | B91: 17.5 | C91: female | D91: 1 | E91: =HLOOKUP('III Tool Overview'!$H$6,Prevalence!$B$2:$AV$268,Prevalence!AW86,FALSE) -> 0.1704545455 | F91: =HLOOKUP('III Tool Overview'!$H$6,LookUpData_Pop!$B$1:$AV$269,LookUpData_Pop!BB91,FALSE)/5 -> 0 | G91: ='III Tool Overview'!$H$9/110 -> 0 | H91: =IF('III Tool Overview'!$H$10="Even distribution",Targeting!C89,IF('III Tool Overview'!$H$10="Targetting to Q1",Targeting!D89,IF('III Tool Overview'!$H$10="Targetting to Q1 & Q2",Targeting!E89,IF('III Tool Overview'!$H$10="No variation in price elasticity",Targeting!G89)))) -> 0 | I91: =IF('III Tool Overview'!$H$6="Orkney Health Board",0,IF('III Tool Overview'!$H$6="Shetland Health Board",0,IF('III Tool Overview'!$H$6="Western Isles Health Board",0,IF('III Tool Overview'!$H$6="Orkney Islands Local Authority",0,IF('III Tool Overview'!$H$6="Shetland Islands Local Authority",0,IF('III Tool Overview'!$H$6="Eilean Siar Local Authority",0,new_ci(2,B91,C91,D91,$C$1,G91,1,F91,E91*F91))))))) -> 0 | J91: =IF('III Tool Overview'!$H$6="Orkney Health Board",0,IF('III Tool Overview'!$H$6="Shetland Health Board",0,IF('III Tool Overview'!$H$6="Western Isles Health Board",0,IF('III Tool Overview'!$H$6="Orkney Islands Local Authority",0,IF('III Tool Overview'!$H$6="Shetland Islands Local Authority",0,IF('III Tool Overview'!$H$6="Eilean Siar Local Authority",0,new_ci(2,B91,C91,D91,$C$1,G91+H91,1,F91,E91*F91))))))) -> 0 | K91: =IF('III Tool Overview'!$H$6="Orkney Health Board",0,IF('III Tool Overview'!$H$6="Shetland Health Board",0,IF('III Tool Overview'!$H$6="Western Isles Health Board",0,IF('III Tool Overview'!$H$6="Orkney Islands Local Authority",0,IF('III Tool Overview'!$H$6="Shetland Islands Local Authority",0,IF('III Tool Overview'!$H$6="Eilean Siar Local Authority",0,new_ci(5,B91,C91,D91,$C$1,G91,1,F91,E91*F91))))))) -> 0 | L91: =IF('III Tool Overview'!$H$6="Orkney Health Board",0,IF('III Tool Overview'!$H$6="Shetland Health Board",0,IF('III Tool Overview'!$H$6="Western Isles Health Board",0,IF('III Tool Overview'!$H$6="Orkney Islands Local Authority",0,IF('III Tool Overview'!$H$6="Shetland Islands Local Authority",0,IF('III Tool Overview'!$H$6="Eilean Siar Local Authority",0,new_ci(5,B91,C91,D91,$C$1,G91+H91,1,F91,E91*F91))))))) -> 0 | M91: =IF('III Tool Overview'!$H$6="Orkney Health Board",0,IF('III Tool Overview'!$H$6="Shetland Health Board",0,IF('III Tool Overview'!$H$6="Western Isles Health Board",0,IF('III Tool Overview'!$H$6="Orkney Islands Local Authority",0,IF('III Tool Overview'!$H$6="Shetland Islands Local Authority",0,IF('III Tool Overview'!$H$6="Eilean Siar Local Authority",0,new_ci(10,B91,C91,D91,$C$1,G91,1,F91,E91*F91))))))) -> 0 | N91: =IF('III Tool Overview'!$H$6="Orkney Health Board",0,IF('III Tool Overview'!$H$6="Shetland Health Board",0,IF('III Tool Overview'!$H$6="Western Isles Health Board",0,IF('III Tool Overview'!$H$6="Orkney Islands Local Authority",0,IF('III Tool Overview'!$H$6="Shetland Islands Local Authority",0,IF('III Tool Overview'!$H$6="Eilean Siar Local Authority",0,new_ci(10,B91,C91,D91,$C$1,G91+H91,1,F91,E91*F91))))))) -> 0 | O91: =IF('III Tool Overview'!$H$6="Orkney Health Board",0,IF('III Tool Overview'!$H$6="Shetland Health Board",0,IF('III Tool Overview'!$H$6="Western Isles Health Board",0,IF('III Tool Overview'!$H$6="Orkney Islands Local Authority",0,IF('III Tool Overview'!$H$6="Shetland Islands Local Authority",0,IF('III Tool Overview'!$H$6="Eilean Siar Local Authority",0,new_ci(20,B91,C91,D91,$C$1,G91,1,F91,E91*F91))))))) -> 0 | P91: =IF('III Tool Overview'!$H$6="Orkney Health Board",0,IF('III Tool Overview'!$H$6="Shetland Health Board",0,IF('III Tool Overview'!$H$6="Western Isles Health Board",0,IF('III Tool Overview'!$H$6="Orkney Islands Local Authority",0,IF('III Tool Overview'!$H$6="Shetland Islands Local Authority",0,IF('III Tool Overview'!$H$6="Eilean Siar Local Authority",0,new_ci(20,B91,C91,D91,$C$1,G91+H91,1,F91,E91*F91))))))) -> 0 | Q91: =IF('III Tool Overview'!$H$6="Orkney Health Board",0,IF('III Tool Overview'!$H$6="Shetland Health Board",0,IF('III Tool Overview'!$H$6="Western Isles Health Board",0,IF('III Tool Overview'!$H$6="Orkney Islands Local Authority",0,IF('III Tool Overview'!$H$6="Shetland Islands Local Authority",0,IF('III Tool Overview'!$H$6="Eilean Siar Local Authority",0,new_yll(2,B91,C91,D91,$C$1,G91,1,F91,E91*F91))))))) -> 0 | R91: =IF('III Tool Overview'!$H$6="Orkney Health Board",0,IF('III Tool Overview'!$H$6="Shetland Health Board",0,IF('III Tool Overview'!$H$6="Western Isles Health Board",0,IF('III Tool Overview'!$H$6="Orkney Islands Local Authority",0,IF('III Tool Overview'!$H$6="Shetland Islands Local Authority",0,IF('III Tool Overview'!$H$6="Eilean Siar Local Authority",0,new_yll(2,B91,C91,D91,$C$1,G91+H91,1,F91,E91*F91))))))) -> 0 | S91: =Q91-R91 -> 0 | T91: =IF('III Tool Overview'!$H$6="Orkney Health Board",0,IF('III Tool Overview'!$H$6="Shetland Health Board",0,IF('III Tool Overview'!$H$6="Western Isles Health Board",0,IF('III Tool Overview'!$H$6="Orkney Islands Local Authority",0,IF('III Tool Overview'!$H$6="Shetland Islands Local Authority",0,IF('III Tool Overview'!$H$6="Eilean Siar Local Authority",0,new_yll(5,B91,C91,D91,$C$1,G91,1,F91,E91*F91))))))) -> 0 | U91: =IF('III Tool Overview'!$H$6="Orkney Health Board",0,IF('III Tool Overview'!$H$6="Shetland Health Board",0,IF('III Tool Overview'!$H$6="Western Isles Health Board",0,IF('III Tool Overview'!$H$6="Orkney Islands Local Authority",0,IF('III Tool Overview'!$H$6="Shetland Islands Local Authority",0,IF('III Tool Overview'!$H$6="Eilean Siar Local Authority",0,new_yll(5,B91,C91,D91,$C$1,G91+H91,1,F91,E91*F91))))))) -> 0 | V91: =T91-U91 -> 0 | W91: =IF('III Tool Overview'!$H$6="Orkney Health Board",0,IF('III Tool Overview'!$H$6="Shetland Health Board",0,IF('III Tool Overview'!$H$6="Western Isles Health Board",0,IF('III Tool Overview'!$H$6="Orkney Islands Local Authority",0,IF('III Tool Overview'!$H$6="Shetland Islands Local Authority",0,IF('III Tool Overview'!$H$6="Eilean Siar Local Authority",0,new_yll(10,B91,C91,D91,$C$1,G91,1,F91,E91*F91))))))) -> 0 | X91: =IF('III Tool Overview'!$H$6="Orkney Health Board",0,IF('III Tool Overview'!$H$6="Shetland Health Board",0,IF('III Tool Overview'!$H$6="Western Isles Health Board",0,IF('III Tool Overview'!$H$6="Orkney Islands Local Authority",0,IF('III Tool Overview'!$H$6="Shetland Islands Local Authority",0,IF('III Tool Overview'!$H$6="Eilean Siar Local Authority",0,new_yll(10,B91,C91,D91,$C$1,G91+H91,1,F91,E91*F91))))))) -> 0 | Y91: =W91-X91 -> 0 | Z91: =IF('III Tool Overview'!$H$6="Orkney Health Board",0,IF('III Tool Overview'!$H$6="Shetland Health Board",0,IF('III Tool Overview'!$H$6="Western Isles Health Board",0,IF('III Tool Overview'!$H$6="Orkney Islands Local Authority",0,IF('III Tool Overview'!$H$6="Shetland Islands Local Authority",0,IF('III Tool Overview'!$H$6="Eilean Siar Local Authority",0,new_yll(20,B91,C91,D91,$C$1,G91,1,F91,E91*F91))))))) -> 0 | AA91: =IF('III Tool Overview'!$H$6="Orkney Health Board",0,IF('III Tool Overview'!$H$6="Shetland Health Board",0,IF('III Tool Overview'!$H$6="Western Isles Health Board",0,IF('III Tool Overview'!$H$6="Orkney Islands Local Authority",0,IF('III Tool Overview'!$H$6="Shetland Islands Local Authority",0,IF('III Tool Overview'!$H$6="Eilean Siar Local Authority",0,new_yll(20,B91,C91,D91,$C$1,G91+H91,1,F91,E91*F91))))))) -> 0 | AB91: =Z91-AA91 -> 0 | AC91: =IF('III Tool Overview'!$H$6="Orkney Health Board",0,IF('III Tool Overview'!$H$6="Shetland Health Board",0,IF('III Tool Overview'!$H$6="Western Isles Health Board",0,IF('III Tool Overview'!$H$6="Orkney Islands Local Authority",0,IF('III Tool Overview'!$H$6="Shetland Islands Local Authority",0,IF('III Tool Overview'!$H$6="Eilean Siar Local Authority",0,hosp_count(2,B91,C91,D91,$C$1,G91,1,F91,E91*F91))))))) -> 0 | AD91: =IF('III Tool Overview'!$H$6="Orkney Health Board",0,IF('III Tool Overview'!$H$6="Shetland Health Board",0,IF('III Tool Overview'!$H$6="Western Isles Health Board",0,IF('III Tool Overview'!$H$6="Orkney Islands Local Authority",0,IF('III Tool Overview'!$H$6="Shetland Islands Local Authority",0,IF('III Tool Overview'!$H$6="Eilean Siar Local Authority",0,hosp_count(2,B91,C91,D91,$C$1,G91+H91,1,F91,E91*F91))))))) -> 0 | AE91: =AC91-AD91 -> 0 | AF91: =IF('III Tool Overview'!$H$6="Orkney Health Board",0,IF('III Tool Overview'!$H$6="Shetland Health Board",0,IF('III Tool Overview'!$H$6="Western Isles Health Board",0,IF('III Tool Overview'!$H$6="Orkney Islands Local Authority",0,IF('III Tool Overview'!$H$6="Shetland Islands Local Authority",0,IF('III Tool Overview'!$H$6="Eilean Siar Local Authority",0,hosp_count(5,B91,C91,D91,$C$1,G91,1,F91,E91*F91))))))) -> 0 | AG91: =IF('III Tool Overview'!$H$6="Orkney Health Board",0,IF('III Tool Overview'!$H$6="Shetland Health Board",0,IF('III Tool Overview'!$H$6="Western Isles Health Board",0,IF('III Tool Overview'!$H$6="Orkney Islands Local Authority",0,IF('III Tool Overview'!$H$6="Shetland Islands Local Authority",0,IF('III Tool Overview'!$H$6="Eilean Siar Local Authority",0,hosp_count(5,B91,C91,D91,$C$1,G91+H91,1,F91,E91*F91))))))) -> 0 | AH91: =AF91-AG91 -> 0 | AI91: =IF('III Tool Overview'!$H$6="Orkney Health Board",0,IF('III Tool Overview'!$H$6="Shetland Health Board",0,IF('III Tool Overview'!$H$6="Western Isles Health Board",0,IF('III Tool Overview'!$H$6="Orkney Islands Local Authority",0,IF('III Tool Overview'!$H$6="Shetland Islands Local Authority",0,IF('III Tool Overview'!$H$6="Eilean Siar Local Authority",0,hosp_count(10,B91,C91,D91,$C$1,G91,1,F91,E91*F91))))))) -> 0 | AJ91: =IF('III Tool Overview'!$H$6="Orkney Health Board",0,IF('III Tool Overview'!$H$6="Shetland Health Board",0,IF('III Tool Overview'!$H$6="Western Isles Health Board",0,IF('III Tool Overview'!$H$6="Orkney Islands Local Authority",0,IF('III Tool Overview'!$H$6="Shetland Islands Local Authority",0,IF('III Tool Overview'!$H$6="Eilean Siar Local Authority",0,hosp_count(10,B91,C91,D91,$C$1,G91+H91,1,F91,E91*F91))))))) -> 0 | AK91: =AI91-AJ91 -> 0 | AL91: =IF('III Tool Overview'!$H$6="Orkney Health Board",0,IF('III Tool Overview'!$H$6="Shetland Health Board",0,IF('III Tool Overview'!$H$6="Western Isles Health Board",0,IF('III Tool Overview'!$H$6="Orkney Islands Local Authority",0,IF('III Tool Overview'!$H$6="Shetland Islands Local Authority",0,IF('III Tool Overview'!$H$6="Eilean Siar Local Authority",0,hosp_count(20,B91,C91,D91,$C$1,G91,1,F91,E91*F91))))))) -> 0 | AM91: =IF('III Tool Overview'!$H$6="Orkney Health Board",0,IF('III Tool Overview'!$H$6="Shetland Health Board",0,IF('III Tool Overview'!$H$6="Western Isles Health Board",0,IF('III Tool Overview'!$H$6="Orkney Islands Local Authority",0,IF('III Tool Overview'!$H$6="Shetland Islands Local Authority",0,IF('III Tool Overview'!$H$6="Eilean Siar Local Authority",0,hosp_count(20,B91,C91,D91,$C$1,G91+H91,1,F91,E91*F91))))))) -> 0 | AN91: =AL91-AM91 -> 0 | AP91: 0.5 | AQ91: 5
A92: Female 20-24 | B92: 22.5 | C92: female | D92: 1 | E92: =HLOOKUP('III Tool Overview'!$H$6,Prevalence!$B$2:$AV$268,Prevalence!AW87,FALSE) -> 0.1704545455 | F92: =HLOOKUP('III Tool Overview'!$H$6,LookUpData_Pop!$B$1:$AV$269,LookUpData_Pop!BB92,FALSE)/5 -> 0 | G92: ='III Tool Overview'!$H$9/110 -> 0 | H92: =IF('III Tool Overview'!$H$10="Even distribution",Targeting!C90,IF('III Tool Overview'!$H$10="Targetting to Q1",Targeting!D90,IF('III Tool Overview'!$H$10="Targetting to Q1 & Q2",Targeting!E90,IF('III Tool Overview'!$H$10="No variation in price elasticity",Targeting!G90)))) -> 0 | I92: =IF('III Tool Overview'!$H$6="Orkney Health Board",0,IF('III Tool Overview'!$H$6="Shetland Health Board",0,IF('III Tool Overview'!$H$6="Western Isles Health Board",0,IF('III Tool Overview'!$H$6="Orkney Islands Local Authority",0,IF('III Tool Overview'!$H$6="Shetland Islands Local Authority",0,IF('III Tool Overview'!$H$6="Eilean Siar Local Authority",0,new_ci(2,B92,C92,D92,$C$1,G92,1,F92,E92*F92))))))) -> 0 | J92: =IF('III Tool Overview'!$H$6="Orkney Health Board",0,IF('III Tool Overview'!$H$6="Shetland Health Board",0,IF('III Tool Overview'!$H$6="Western Isles Health Board",0,IF('III Tool Overview'!$H$6="Orkney Islands Local Authority",0,IF('III Tool Overview'!$H$6="Shetland Islands Local Authority",0,IF('III Tool Overview'!$H$6="Eilean Siar Local Authority",0,new_ci(2,B92,C92,D92,$C$1,G92+H92,1,F92,E92*F92))))))) -> 0 | K92: =IF('III Tool Overview'!$H$6="Orkney Health Board",0,IF('III Tool Overview'!$H$6="Shetland Health Board",0,IF('III Tool Overview'!$H$6="Western Isles Health Board",0,IF('III Tool Overview'!$H$6="Orkney Islands Local Authority",0,IF('III Tool Overview'!$H$6="Shetland Islands Local Authority",0,IF('III Tool Overview'!$H$6="Eilean Siar Local Authority",0,new_ci(5,B92,C92,D92,$C$1,G92,1,F92,E92*F92))))))) -> 0 | L92: =IF('III Tool Overview'!$H$6="Orkney Health Board",0,IF('III Tool Overview'!$H$6="Shetland Health Board",0,IF('III Tool Overview'!$H$6="Western Isles Health Board",0,IF('III Tool Overview'!$H$6="Orkney Islands Local Authority",0,IF('III Tool Overview'!$H$6="Shetland Islands Local Authority",0,IF('III Tool Overview'!$H$6="Eilean Siar Local Authority",0,new_ci(5,B92,C92,D92,$C$1,G92+H92,1,F92,E92*F92))))))) -> 0 | M92: =IF('III Tool Overview'!$H$6="Orkney Health Board",0,IF('III Tool Overview'!$H$6="Shetland Health Board",0,IF('III Tool Overview'!$H$6="Western Isles Health Board",0,IF('III Tool Overview'!$H$6="Orkney Islands Local Authority",0,IF('III Tool Overview'!$H$6="Shetland Islands Local Authority",0,IF('III Tool Overview'!$H$6="Eilean Siar Local Authority",0,new_ci(10,B92,C92,D92,$C$1,G92,1,F92,E92*F92))))))) -> 0 | N92: =IF('III Tool Overview'!$H$6="Orkney Health Board",0,IF('III Tool Overview'!$H$6="Shetland Health Board",0,IF('III Tool Overview'!$H$6="Western Isles Health Board",0,IF('III Tool Overview'!$H$6="Orkney Islands Local Authority",0,IF('III Tool Overview'!$H$6="Shetland Islands Local Authority",0,IF('III Tool Overview'!$H$6="Eilean Siar Local Authority",0,new_ci(10,B92,C92,D92,$C$1,G92+H92,1,F92,E92*F92))))))) -> 0 | O92: =IF('III Tool Overview'!$H$6="Orkney Health Board",0,IF('III Tool Overview'!$H$6="Shetland Health Board",0,IF('III Tool Overview'!$H$6="Western Isles Health Board",0,IF('III Tool Overview'!$H$6="Orkney Islands Local Authority",0,IF('III Tool Overview'!$H$6="Shetland Islands Local Authority",0,IF('III Tool Overview'!$H$6="Eilean Siar Local Authority",0,new_ci(20,B92,C92,D92,$C$1,G92,1,F92,E92*F92))))))) -> 0 | P92: =IF('III Tool Overview'!$H$6="Orkney Health Board",0,IF('III Tool Overview'!$H$6="Shetland Health Board",0,IF('III Tool Overview'!$H$6="Western Isles Health Board",0,IF('III Tool Overview'!$H$6="Orkney Islands Local Authority",0,IF('III Tool Overview'!$H$6="Shetland Islands Local Authority",0,IF('III Tool Overview'!$H$6="Eilean Siar Local Authority",0,new_ci(20,B92,C92,D92,$C$1,G92+H92,1,F92,E92*F92))))))) -> 0 | Q92: =IF('III Tool Overview'!$H$6="Orkney Health Board",0,IF('III Tool Overview'!$H$6="Shetland Health Board",0,IF('III Tool Overview'!$H$6="Western Isles Health Board",0,IF('III Tool Overview'!$H$6="Orkney Islands Local Authority",0,IF('III Tool Overview'!$H$6="Shetland Islands Local Authority",0,IF('III Tool Overview'!$H$6="Eilean Siar Local Authority",0,new_yll(2,B92,C92,D92,$C$1,G92,1,F92,E92*F92))))))) -> 0 | R92: =IF('III Tool Overview'!$H$6="Orkney Health Board",0,IF('III Tool Overview'!$H$6="Shetland Health Board",0,IF('III Tool Overview'!$H$6="Western Isles Health Board",0,IF('III Tool Overview'!$H$6="Orkney Islands Local Authority",0,IF('III Tool Overview'!$H$6="Shetland Islands Local Authority",0,IF('III Tool Overview'!$H$6="Eilean Siar Local Authority",0,new_yll(2,B92,C92,D92,$C$1,G92+H92,1,F92,E92*F92))))))) -> 0 | S92: =Q92-R92 -> 0 | T92: =IF('III Tool Overview'!$H$6="Orkney Health Board",0,IF('III Tool Overview'!$H$6="Shetland Health Board",0,IF('III Tool Overview'!$H$6="Western Isles Health Board",0,IF('III Tool Overview'!$H$6="Orkney Islands Local Authority",0,IF('III Tool Overview'!$H$6="Shetland Islands Local Authority",0,IF('III Tool Overview'!$H$6="Eilean Siar Local Authority",0,new_yll(5,B92,C92,D92,$C$1,G92,1,F92,E92*F92))))))) -> 0 | U92: =IF('III Tool Overview'!$H$6="Orkney Health Board",0,IF('III Tool Overview'!$H$6="Shetland Health Board",0,IF('III Tool Overview'!$H$6="Western Isles Health Board",0,IF('III Tool Overview'!$H$6="Orkney Islands Local Authority",0,IF('III Tool Overview'!$H$6="Shetland Islands Local Authority",0,IF('III Tool Overview'!$H$6="Eilean Siar Local Authority",0,new_yll(5,B92,C92,D92,$C$1,G92+H92,1,F92,E92*F92))))))) -> 0 | V92: =T92-U92 -> 0 | W92: =IF('III Tool Overview'!$H$6="Orkney Health Board",0,IF('III Tool Overview'!$H$6="Shetland Health Board",0,IF('III Tool Overview'!$H$6="Western Isles Health Board",0,IF('III Tool Overview'!$H$6="Orkney Islands Local Authority",0,IF('III Tool Overview'!$H$6="Shetland Islands Local Authority",0,IF('III Tool Overview'!$H$6="Eilean Siar Local Authority",0,new_yll(10,B92,C92,D92,$C$1,G92,1,F92,E92*F92))))))) -> 0 | X92: =IF('III Tool Overview'!$H$6="Orkney Health Board",0,IF('III Tool Overview'!$H$6="Shetland Health Board",0,IF('III Tool Overview'!$H$6="Western Isles Health Board",0,IF('III Tool Overview'!$H$6="Orkney Islands Local Authority",0,IF('III Tool Overview'!$H$6="Shetland Islands Local Authority",0,IF('III Tool Overview'!$H$6="Eilean Siar Local Authority",0,new_yll(10,B92,C92,D92,$C$1,G92+H92,1,F92,E92*F92))))))) -> 0 | Y92: =W92-X92 -> 0 | Z92: =IF('III Tool Overview'!$H$6="Orkney Health Board",0,IF('III Tool Overview'!$H$6="Shetland Health Board",0,IF('III Tool Overview'!$H$6="Western Isles Health Board",0,IF('III Tool Overview'!$H$6="Orkney Islands Local Authority",0,IF('III Tool Overview'!$H$6="Shetland Islands Local Authority",0,IF('III Tool Overview'!$H$6="Eilean Siar Local Authority",0,new_yll(20,B92,C92,D92,$C$1,G92,1,F92,E92*F92))))))) -> 0 | AA92: =IF('III Tool Overview'!$H$6="Orkney Health Board",0,IF('III Tool Overview'!$H$6="Shetland Health Board",0,IF('III Tool Overview'!$H$6="Western Isles Health Board",0,IF('III Tool Overview'!$H$6="Orkney Islands Local Authority",0,IF('III Tool Overview'!$H$6="Shetland Islands Local Authority",0,IF('III Tool Overview'!$H$6="Eilean Siar Local Authority",0,new_yll(20,B92,C92,D92,$C$1,G92+H92,1,F92,E92*F92))))))) -> 0 | AB92: =Z92-AA92 -> 0 | AC92: =IF('III Tool Overview'!$H$6="Orkney Health Board",0,IF('III Tool Overview'!$H$6="Shetland Health Board",0,IF('III Tool Overview'!$H$6="Western Isles Health Board",0,IF('III Tool Overview'!$H$6="Orkney Islands Local Authority",0,IF('III Tool Overview'!$H$6="Shetland Islands Local Authority",0,IF('III Tool Overview'!$H$6="Eilean Siar Local Authority",0,hosp_count(2,B92,C92,D92,$C$1,G92,1,F92,E92*F92))))))) -> 0 | AD92: =IF('III Tool Overview'!$H$6="Orkney Health Board",0,IF('III Tool Overview'!$H$6="Shetland Health Board",0,IF('III Tool Overview'!$H$6="Western Isles Health Board",0,IF('III Tool Overview'!$H$6="Orkney Islands Local Authority",0,IF('III Tool Overview'!$H$6="Shetland Islands Local Authority",0,IF('III Tool Overview'!$H$6="Eilean Siar Local Authority",0,hosp_count(2,B92,C92,D92,$C$1,G92+H92,1,F92,E92*F92))))))) -> 0 | AE92: =AC92-AD92 -> 0 | AF92: =IF('III Tool Overview'!$H$6="Orkney Health Board",0,IF('III Tool Overview'!$H$6="Shetland Health Board",0,IF('III Tool Overview'!$H$6="Western Isles Health Board",0,IF('III Tool Overview'!$H$6="Orkney Islands Local Authority",0,IF('III Tool Overview'!$H$6="Shetland Islands Local Authority",0,IF('III Tool Overview'!$H$6="Eilean Siar Local Authority",0,hosp_count(5,B92,C92,D92,$C$1,G92,1,F92,E92*F92))))))) -> 0 | AG92: =IF('III Tool Overview'!$H$6="Orkney Health Board",0,IF('III Tool Overview'!$H$6="Shetland Health Board",0,IF('III Tool Overview'!$H$6="Western Isles Health Board",0,IF('III Tool Overview'!$H$6="Orkney Islands Local Authority",0,IF('III Tool Overview'!$H$6="Shetland Islands Local Authority",0,IF('III Tool Overview'!$H$6="Eilean Siar Local Authority",0,hosp_count(5,B92,C92,D92,$C$1,G92+H92,1,F92,E92*F92))))))) -> 0 | AH92: =AF92-AG92 -> 0 | AI92: =IF('III Tool Overview'!$H$6="Orkney Health Board",0,IF('III Tool Overview'!$H$6="Shetland Health Board",0,IF('III Tool Overview'!$H$6="Western Isles Health Board",0,IF('III Tool Overview'!$H$6="Orkney Islands Local Authority",0,IF('III Tool Overview'!$H$6="Shetland Islands Local Authority",0,IF('III Tool Overview'!$H$6="Eilean Siar Local Authority",0,hosp_count(10,B92,C92,D92,$C$1,G92,1,F92,E92*F92))))))) -> 0 | AJ92: =IF('III Tool Overview'!$H$6="Orkney Health Board",0,IF('III Tool Overview'!$H$6="Shetland Health Board",0,IF('III Tool Overview'!$H$6="Western Isles Health Board",0,IF('III Tool Overview'!$H$6="Orkney Islands Local Authority",0,IF('III Tool Overview'!$H$6="Shetland Islands Local Authority",0,IF('III Tool Overview'!$H$6="Eilean Siar Local Authority",0,hosp_count(10,B92,C92,D92,$C$1,G92+H92,1,F92,E92*F92))))))) -> 0 | AK92: =AI92-AJ92 -> 0 | AL92: =IF('III Tool Overview'!$H$6="Orkney Health Board",0,IF('III Tool Overview'!$H$6="Shetland Health Board",0,IF('III Tool Overview'!$H$6="Western Isles Health Board",0,IF('III Tool Overview'!$H$6="Orkney Islands Local Authority",0,IF('III Tool Overview'!$H$6="Shetland Islands Local Authority",0,IF('III Tool Overview'!$H$6="Eilean Siar Local Authority",0,hosp_count(20,B92,C92,D92,$C$1,G92,1,F92,E92*F92))))))) -> 0 | AM92: =IF('III Tool Overview'!$H$6="Orkney Health Board",0,IF('III Tool Overview'!$H$6="Shetland Health Board",0,IF('III Tool Overview'!$H$6="Western Isles Health Board",0,IF('III Tool Overview'!$H$6="Orkney Islands Local Authority",0,IF('III Tool Overview'!$H$6="Shetland Islands Local Authority",0,IF('III Tool Overview'!$H$6="Eilean Siar Local Authority",0,hosp_count(20,B92,C92,D92,$C$1,G92+H92,1,F92,E92*F92))))))) -> 0 | AN92: =AL92-AM92 -> 0 | AP92: 0.5 | AQ92: 5
A93: Female 25-29 | B93: 27.5 | C93: female | D93: 1 | E93: =HLOOKUP('III Tool Overview'!$H$6,Prevalence!$B$2:$AV$268,Prevalence!AW88,FALSE) -> 0.2454545455 | F93: =HLOOKUP('III Tool Overview'!$H$6,LookUpData_Pop!$B$1:$AV$269,LookUpData_Pop!BB93,FALSE)/5 -> 0 | G93: ='III Tool Overview'!$H$9/110 -> 0 | H93: =IF('III Tool Overview'!$H$10="Even distribution",Targeting!C91,IF('III Tool Overview'!$H$10="Targetting to Q1",Targeting!D91,IF('III Tool Overview'!$H$10="Targetting to Q1 & Q2",Targeting!E91,IF('III Tool Overview'!$H$10="No variation in price elasticity",Targeting!G91)))) -> 0 | I93: =IF('III Tool Overview'!$H$6="Orkney Health Board",0,IF('III Tool Overview'!$H$6="Shetland Health Board",0,IF('III Tool Overview'!$H$6="Western Isles Health Board",0,IF('III Tool Overview'!$H$6="Orkney Islands Local Authority",0,IF('III Tool Overview'!$H$6="Shetland Islands Local Authority",0,IF('III Tool Overview'!$H$6="Eilean Siar Local Authority",0,new_ci(2,B93,C93,D93,$C$1,G93,1,F93,E93*F93))))))) -> 0 | J93: =IF('III Tool Overview'!$H$6="Orkney Health Board",0,IF('III Tool Overview'!$H$6="Shetland Health Board",0,IF('III Tool Overview'!$H$6="Western Isles Health Board",0,IF('III Tool Overview'!$H$6="Orkney Islands Local Authority",0,IF('III Tool Overview'!$H$6="Shetland Islands Local Authority",0,IF('III Tool Overview'!$H$6="Eilean Siar Local Authority",0,new_ci(2,B93,C93,D93,$C$1,G93+H93,1,F93,E93*F93))))))) -> 0 | K93: =IF('III Tool Overview'!$H$6="Orkney Health Board",0,IF('III Tool Overview'!$H$6="Shetland Health Board",0,IF('III Tool Overview'!$H$6="Western Isles Health Board",0,IF('III Tool Overview'!$H$6="Orkney Islands Local Authority",0,IF('III Tool Overview'!$H$6="Shetland Islands Local Authority",0,IF('III Tool Overview'!$H$6="Eilean Siar Local Authority",0,new_ci(5,B93,C93,D93,$C$1,G93,1,F93,E93*F93))))))) -> 0 | L93: =IF('III Tool Overview'!$H$6="Orkney Health Board",0,IF('III Tool Overview'!$H$6="Shetland Health Board",0,IF('III Tool Overview'!$H$6="Western Isles Health Board",0,IF('III Tool Overview'!$H$6="Orkney Islands Local Authority",0,IF('III Tool Overview'!$H$6="Shetland Islands Local Authority",0,IF('III Tool Overview'!$H$6="Eilean Siar Local Authority",0,new_ci(5,B93,C93,D93,$C$1,G93+H93,1,F93,E93*F93))))))) -> 0 | M93: =IF('III Tool Overview'!$H$6="Orkney Health Board",0,IF('III Tool Overview'!$H$6="Shetland Health Board",0,IF('III Tool Overview'!$H$6="Western Isles Health Board",0,IF('III Tool Overview'!$H$6="Orkney Islands Local Authority",0,IF('III Tool Overview'!$H$6="Shetland Islands Local Authority",0,IF('III Tool Overview'!$H$6="Eilean Siar Local Authority",0,new_ci(10,B93,C93,D93,$C$1,G93,1,F93,E93*F93))))))) -> 0 | N93: =IF('III Tool Overview'!$H$6="Orkney Health Board",0,IF('III Tool Overview'!$H$6="Shetland Health Board",0,IF('III Tool Overview'!$H$6="Western Isles Health Board",0,IF('III Tool Overview'!$H$6="Orkney Islands Local Authority",0,IF('III Tool Overview'!$H$6="Shetland Islands Local Authority",0,IF('III Tool Overview'!$H$6="Eilean Siar Local Authority",0,new_ci(10,B93,C93,D93,$C$1,G93+H93,1,F93,E93*F93))))))) -> 0 | O93: =IF('III Tool Overview'!$H$6="Orkney Health Board",0,IF('III Tool Overview'!$H$6="Shetland Health Board",0,IF('III Tool Overview'!$H$6="Western Isles Health Board",0,IF('III Tool Overview'!$H$6="Orkney Islands Local Authority",0,IF('III Tool Overview'!$H$6="Shetland Islands Local Authority",0,IF('III Tool Overview'!$H$6="Eilean Siar Local Authority",0,new_ci(20,B93,C93,D93,$C$1,G93,1,F93,E93*F93))))))) -> 0 | P93: =IF('III Tool Overview'!$H$6="Orkney Health Board",0,IF('III Tool Overview'!$H$6="Shetland Health Board",0,IF('III Tool Overview'!$H$6="Western Isles Health Board",0,IF('III Tool Overview'!$H$6="Orkney Islands Local Authority",0,IF('III Tool Overview'!$H$6="Shetland Islands Local Authority",0,IF('III Tool Overview'!$H$6="Eilean Siar Local Authority",0,new_ci(20,B93,C93,D93,$C$1,G93+H93,1,F93,E93*F93))))))) -> 0 | Q93: =IF('III Tool Overview'!$H$6="Orkney Health Board",0,IF('III Tool Overview'!$H$6="Shetland Health Board",0,IF('III Tool Overview'!$H$6="Western Isles Health Board",0,IF('III Tool Overview'!$H$6="Orkney Islands Local Authority",0,IF('III Tool Overview'!$H$6="Shetland Islands Local Authority",0,IF('III Tool Overview'!$H$6="Eilean Siar Local Authority",0,new_yll(2,B93,C93,D93,$C$1,G93,1,F93,E93*F93))))))) -> 0 | R93: =IF('III Tool Overview'!$H$6="Orkney Health Board",0,IF('III Tool Overview'!$H$6="Shetland Health Board",0,IF('III Tool Overview'!$H$6="Western Isles Health Board",0,IF('III Tool Overview'!$H$6="Orkney Islands Local Authority",0,IF('III Tool Overview'!$H$6="Shetland Islands Local Authority",0,IF('III Tool Overview'!$H$6="Eilean Siar Local Authority",0,new_yll(2,B93,C93,D93,$C$1,G93+H93,1,F93,E93*F93))))))) -> 0 | S93: 0 | T93: =IF('III Tool Overview'!$H$6="Orkney Health Board",0,IF('III Tool Overview'!$H$6="Shetland Health Board",0,IF('III Tool Overview'!$H$6="Western Isles Health Board",0,IF('III Tool Overview'!$H$6="Orkney Islands Local Authority",0,IF('III Tool Overview'!$H$6="Shetland Islands Local Authority",0,IF('III Tool Overview'!$H$6="Eilean Siar Local Authority",0,new_yll(5,B93,C93,D93,$C$1,G93,1,F93,E93*F93))))))) -> 0 | U93: =IF('III Tool Overview'!$H$6="Orkney Health Board",0,IF('III Tool Overview'!$H$6="Shetland Health Board",0,IF('III Tool Overview'!$H$6="Western Isles Health Board",0,IF('III Tool Overview'!$H$6="Orkney Islands Local Authority",0,IF('III Tool Overview'!$H$6="Shetland Islands Local Authority",0,IF('III Tool Overview'!$H$6="Eilean Siar Local Authority",0,new_yll(5,B93,C93,D93,$C$1,G93+H93,1,F93,E93*F93))))))) -> 0 | V93: 0 | W93: =IF('III Tool Overview'!$H$6="Orkney Health Board",0,IF('III Tool Overview'!$H$6="Shetland Health Board",0,IF('III Tool Overview'!$H$6="Western Isles Health Board",0,IF('III Tool Overview'!$H$6="Orkney Islands Local Authority",0,IF('III Tool Overview'!$H$6="Shetland Islands Local Authority",0,IF('III Tool Overview'!$H$6="Eilean Siar Local Authority",0,new_yll(10,B93,C93,D93,$C$1,G93,1,F93,E93*F93))))))) -> 0 | X93: =IF('III Tool Overview'!$H$6="Orkney Health Board",0,IF('III Tool Overview'!$H$6="Shetland Health Board",0,IF('III Tool Overview'!$H$6="Western Isles Health Board",0,IF('III Tool Overview'!$H$6="Orkney Islands Local Authority",0,IF('III Tool Overview'!$H$6="Shetland Islands Local Authority",0,IF('III Tool Overview'!$H$6="Eilean Siar Local Authority",0,new_yll(10,B93,C93,D93,$C$1,G93+H93,1,F93,E93*F93))))))) -> 0 | Y93: 0 | Z93: =IF('III Tool Overview'!$H$6="Orkney Health Board",0,IF('III Tool Overview'!$H$6="Shetland Health Board",0,IF('III Tool Overview'!$H$6="Western Isles Health Board",0,IF('III Tool Overview'!$H$6="Orkney Islands Local Authority",0,IF('III Tool Overview'!$H$6="Shetland Islands Local Authority",0,IF('III Tool Overview'!$H$6="Eilean Siar Local Authority",0,new_yll(20,B93,C93,D93,$C$1,G93,1,F93,E93*F93))))))) -> 0 | AA93: =IF('III Tool Overview'!$H$6="Orkney Health Board",0,IF('III Tool Overview'!$H$6="Shetland Health Board",0,IF('III Tool Overview'!$H$6="Western Isles Health Board",0,IF('III Tool Overview'!$H$6="Orkney Islands Local Authority",0,IF('III Tool Overview'!$H$6="Shetland Islands Local Authority",0,IF('III Tool Overview'!$H$6="Eilean Siar Local Authority",0,new_yll(20,B93,C93,D93,$C$1,G93+H93,1,F93,E93*F93))))))) -> 0 | AB93: 0 | AC93: =IF('III Tool Overview'!$H$6="Orkney Health Board",0,IF('III Tool Overview'!$H$6="Shetland Health Board",0,IF('III Tool Overview'!$H$6="Western Isles Health Board",0,IF('III Tool Overview'!$H$6="Orkney Islands Local Authority",0,IF('III Tool Overview'!$H$6="Shetland Islands Local Authority",0,IF('III Tool Overview'!$H$6="Eilean Siar Local Authority",0,hosp_count(2,B93,C93,D93,$C$1,G93,1,F93,E93*F93))))))) -> 0 | AD93: =IF('III Tool Overview'!$H$6="Orkney Health Board",0,IF('III Tool Overview'!$H$6="Shetland Health Board",0,IF('III Tool Overview'!$H$6="Western Isles Health Board",0,IF('III Tool Overview'!$H$6="Orkney Islands Local Authority",0,IF('III Tool Overview'!$H$6="Shetland Islands Local Authority",0,IF('III Tool Overview'!$H$6="Eilean Siar Local Authority",0,hosp_count(2,B93,C93,D93,$C$1,G93+H93,1,F93,E93*F93))))))) -> 0 | AE93: 0 | AF93: =IF('III Tool Overview'!$H$6="Orkney Health Board",0,IF('III Tool Overview'!$H$6="Shetland Health Board",0,IF('III Tool Overview'!$H$6="Western Isles Health Board",0,IF('III Tool Overview'!$H$6="Orkney Islands Local Authority",0,IF('III Tool Overview'!$H$6="Shetland Islands Local Authority",0,IF('III Tool Overview'!$H$6="Eilean Siar Local Authority",0,hosp_count(5,B93,C93,D93,$C$1,G93,1,F93,E93*F93))))))) -> 0 | AG93: =IF('III Tool Overview'!$H$6="Orkney Health Board",0,IF('III Tool Overview'!$H$6="Shetland Health Board",0,IF('III Tool Overview'!$H$6="Western Isles Health Board",0,IF('III Tool Overview'!$H$6="Orkney Islands Local Authority",0,IF('III Tool Overview'!$H$6="Shetland Islands Local Authority",0,IF('III Tool Overview'!$H$6="Eilean Siar Local Authority",0,hosp_count(5,B93,C93,D93,$C$1,G93+H93,1,F93,E93*F93))))))) -> 0 | AH93: 0 | AI93: =IF('III Tool Overview'!$H$6="Orkney Health Board",0,IF('III Tool Overview'!$H$6="Shetland Health Board",0,IF('III Tool Overview'!$H$6="Western Isles Health Board",0,IF('III Tool Overview'!$H$6="Orkney Islands Local Authority",0,IF('III Tool Overview'!$H$6="Shetland Islands Local Authority",0,IF('III Tool Overview'!$H$6="Eilean Siar Local Authority",0,hosp_count(10,B93,C93,D93,$C$1,G93,1,F93,E93*F93))))))) -> 0 | AJ93: =IF('III Tool Overview'!$H$6="Orkney Health Board",0,IF('III Tool Overview'!$H$6="Shetland Health Board",0,IF('III Tool Overview'!$H$6="Western Isles Health Board",0,IF('III Tool Overview'!$H$6="Orkney Islands Local Authority",0,IF('III Tool Overview'!$H$6="Shetland Islands Local Authority",0,IF('III Tool Overview'!$H$6="Eilean Siar Local Authority",0,hosp_count(10,B93,C93,D93,$C$1,G93+H93,1,F93,E93*F93))))))) -> 0 | AK93: 0 | AL93: =IF('III Tool Overview'!$H$6="Orkney Health Board",0,IF('III Tool Overview'!$H$6="Shetland Health Board",0,IF('III Tool Overview'!$H$6="Western Isles Health Board",0,IF('III Tool Overview'!$H$6="Orkney Islands Local Authority",0,IF('III Tool Overview'!$H$6="Shetland Islands Local Authority",0,IF('III Tool Overview'!$H$6="Eilean Siar Local Authority",0,hosp_count(20,B93,C93,D93,$C$1,G93,1,F93,E93*F93))))))) -> 0 | AM93: =IF('III Tool Overview'!$H$6="Orkney Health Board",0,IF('III Tool Overview'!$H$6="Shetland Health Board",0,IF('III Tool Overview'!$H$6="Western Isles Health Board",0,IF('III Tool Overview'!$H$6="Orkney Islands Local Authority",0,IF('III Tool Overview'!$H$6="Shetland Islands Local Authority",0,IF('III Tool Overview'!$H$6="Eilean Siar Local Authority",0,hosp_count(20,B93,C93,D93,$C$1,G93+H93,1,F93,E93*F93))))))) -> 0 | AN93: 0 | AP93: 0.5 | AQ93: 5
A94: Female 30-34 | B94: 32.5 | C94: female | D94: 1 | E94: =HLOOKUP('III Tool Overview'!$H$6,Prevalence!$B$2:$AV$268,Prevalence!AW89,FALSE) -> 0.2454545455 | F94: =HLOOKUP('III Tool Overview'!$H$6,LookUpData_Pop!$B$1:$AV$269,LookUpData_Pop!BB94,FALSE)/5 -> 0 | G94: ='III Tool Overview'!$H$9/110 -> 0 | H94: =IF('III Tool Overview'!$H$10="Even distribution",Targeting!C92,IF('III Tool Overview'!$H$10="Targetting to Q1",Targeting!D92,IF('III Tool Overview'!$H$10="Targetting to Q1 & Q2",Targeting!E92,IF('III Tool Overview'!$H$10="No variation in price elasticity",Targeting!G92)))) -> 0 | I94: =IF('III Tool Overview'!$H$6="Orkney Health Board",0,IF('III Tool Overview'!$H$6="Shetland Health Board",0,IF('III Tool Overview'!$H$6="Western Isles Health Board",0,IF('III Tool Overview'!$H$6="Orkney Islands Local Authority",0,IF('III Tool Overview'!$H$6="Shetland Islands Local Authority",0,IF('III Tool Overview'!$H$6="Eilean Siar Local Authority",0,new_ci(2,B94,C94,D94,$C$1,G94,1,F94,E94*F94))))))) -> 0 | J94: =IF('III Tool Overview'!$H$6="Orkney Health Board",0,IF('III Tool Overview'!$H$6="Shetland Health Board",0,IF('III Tool Overview'!$H$6="Western Isles Health Board",0,IF('III Tool Overview'!$H$6="Orkney Islands Local Authority",0,IF('III Tool Overview'!$H$6="Shetland Islands Local Authority",0,IF('III Tool Overview'!$H$6="Eilean Siar Local Authority",0,new_ci(2,B94,C94,D94,$C$1,G94+H94,1,F94,E94*F94))))))) -> 0 | K94: =IF('III Tool Overview'!$H$6="Orkney Health Board",0,IF('III Tool Overview'!$H$6="Shetland Health Board",0,IF('III Tool Overview'!$H$6="Western Isles Health Board",0,IF('III Tool Overview'!$H$6="Orkney Islands Local Authority",0,IF('III Tool Overview'!$H$6="Shetland Islands Local Authority",0,IF('III Tool Overview'!$H$6="Eilean Siar Local Authority",0,new_ci(5,B94,C94,D94,$C$1,G94,1,F94,E94*F94))))))) -> 0 | L94: =IF('III Tool Overview'!$H$6="Orkney Health Board",0,IF('III Tool Overview'!$H$6="Shetland Health Board",0,IF('III Tool Overview'!$H$6="Western Isles Health Board",0,IF('III Tool Overview'!$H$6="Orkney Islands Local Authority",0,IF('III Tool Overview'!$H$6="Shetland Islands Local Authority",0,IF('III Tool Overview'!$H$6="Eilean Siar Local Authority",0,new_ci(5,B94,C94,D94,$C$1,G94+H94,1,F94,E94*F94))))))) -> 0 | M94: =IF('III Tool Overview'!$H$6="Orkney Health Board",0,IF('III Tool Overview'!$H$6="Shetland Health Board",0,IF('III Tool Overview'!$H$6="Western Isles Health Board",0,IF('III Tool Overview'!$H$6="Orkney Islands Local Authority",0,IF('III Tool Overview'!$H$6="Shetland Islands Local Authority",0,IF('III Tool Overview'!$H$6="Eilean Siar Local Authority",0,new_ci(10,B94,C94,D94,$C$1,G94,1,F94,E94*F94))))))) -> 0 | N94: =IF('III Tool Overview'!$H$6="Orkney Health Board",0,IF('III Tool Overview'!$H$6="Shetland Health Board",0,IF('III Tool Overview'!$H$6="Western Isles Health Board",0,IF('III Tool Overview'!$H$6="Orkney Islands Local Authority",0,IF('III Tool Overview'!$H$6="Shetland Islands Local Authority",0,IF('III Tool Overview'!$H$6="Eilean Siar Local Authority",0,new_ci(10,B94,C94,D94,$C$1,G94+H94,1,F94,E94*F94))))))) -> 0 | O94: =IF('III Tool Overview'!$H$6="Orkney Health Board",0,IF('III Tool Overview'!$H$6="Shetland Health Board",0,IF('III Tool Overview'!$H$6="Western Isles Health Board",0,IF('III Tool Overview'!$H$6="Orkney Islands Local Authority",0,IF('III Tool Overview'!$H$6="Shetland Islands Local Authority",0,IF('III Tool Overview'!$H$6="Eilean Siar Local Authority",0,new_ci(20,B94,C94,D94,$C$1,G94,1,F94,E94*F94))))))) -> 0 | P94: =IF('III Tool Overview'!$H$6="Orkney Health Board",0,IF('III Tool Overview'!$H$6="Shetland Health Board",0,IF('III Tool Overview'!$H$6="Western Isles Health Board",0,IF('III Tool Overview'!$H$6="Orkney Islands Local Authority",0,IF('III Tool Overview'!$H$6="Shetland Islands Local Authority",0,IF('III Tool Overview'!$H$6="Eilean Siar Local Authority",0,new_ci(20,B94,C94,D94,$C$1,G94+H94,1,F94,E94*F94))))))) -> 0 | Q94: =IF('III Tool Overview'!$H$6="Orkney Health Board",0,IF('III Tool Overview'!$H$6="Shetland Health Board",0,IF('III Tool Overview'!$H$6="Western Isles Health Board",0,IF('III Tool Overview'!$H$6="Orkney Islands Local Authority",0,IF('III Tool Overview'!$H$6="Shetland Islands Local Authority",0,IF('III Tool Overview'!$H$6="Eilean Siar Local Authority",0,new_yll(2,B94,C94,D94,$C$1,G94,1,F94,E94*F94))))))) -> 0 | R94: =IF('III Tool Overview'!$H$6="Orkney Health Board",0,IF('III Tool Overview'!$H$6="Shetland Health Board",0,IF('III Tool Overview'!$H$6="Western Isles Health Board",0,IF('III Tool Overview'!$H$6="Orkney Islands Local Authority",0,IF('III Tool Overview'!$H$6="Shetland Islands Local Authority",0,IF('III Tool Overview'!$H$6="Eilean Siar Local Authority",0,new_yll(2,B94,C94,D94,$C$1,G94+H94,1,F94,E94*F94))))))) -> 0 | S94: 0 | T94: =IF('III Tool Overview'!$H$6="Orkney Health Board",0,IF('III Tool Overview'!$H$6="Shetland Health Board",0,IF('III Tool Overview'!$H$6="Western Isles Health Board",0,IF('III Tool Overview'!$H$6="Orkney Islands Local Authority",0,IF('III Tool Overview'!$H$6="Shetland Islands Local Authority",0,IF('III Tool Overview'!$H$6="Eilean Siar Local Authority",0,new_yll(5,B94,C94,D94,$C$1,G94,1,F94,E94*F94))))))) -> 0 | U94: =IF('III Tool Overview'!$H$6="Orkney Health Board",0,IF('III Tool Overview'!$H$6="Shetland Health Board",0,IF('III Tool Overview'!$H$6="Western Isles Health Board",0,IF('III Tool Overview'!$H$6="Orkney Islands Local Authority",0,IF('III Tool Overview'!$H$6="Shetland Islands Local Authority",0,IF('III Tool Overview'!$H$6="Eilean Siar Local Authority",0,new_yll(5,B94,C94,D94,$C$1,G94+H94,1,F94,E94*F94))))))) -> 0 | V94: 0 | W94: =IF('III Tool Overview'!$H$6="Orkney Health Board",0,IF('III Tool Overview'!$H$6="Shetland Health Board",0,IF('III Tool Overview'!$H$6="Western Isles Health Board",0,IF('III Tool Overview'!$H$6="Orkney Islands Local Authority",0,IF('III Tool Overview'!$H$6="Shetland Islands Local Authority",0,IF('III Tool Overview'!$H$6="Eilean Siar Local Authority",0,new_yll(10,B94,C94,D94,$C$1,G94,1,F94,E94*F94))))))) -> 0 | X94: =IF('III Tool Overview'!$H$6="Orkney Health Board",0,IF('III Tool Overview'!$H$6="Shetland Health Board",0,IF('III Tool Overview'!$H$6="Western Isles Health Board",0,IF('III Tool Overview'!$H$6="Orkney Islands Local Authority",0,IF('III Tool Overview'!$H$6="Shetland Islands Local Authority",0,IF('III Tool Overview'!$H$6="Eilean Siar Local Authority",0,new_yll(10,B94,C94,D94,$C$1,G94+H94,1,F94,E94*F94))))))) -> 0 | Y94: 0 | Z94: =IF('III Tool Overview'!$H$6="Orkney Health Board",0,IF('III Tool Overview'!$H$6="Shetland Health Board",0,IF('III Tool Overview'!$H$6="Western Isles Health Board",0,IF('III Tool Overview'!$H$6="Orkney Islands Local Authority",0,IF('III Tool Overview'!$H$6="Shetland Islands Local Authority",0,IF('III Tool Overview'!$H$6="Eilean Siar Local Authority",0,new_yll(20,B94,C94,D94,$C$1,G94,1,F94,E94*F94))))))) -> 0 | AA94: =IF('III Tool Overview'!$H$6="Orkney Health Board",0,IF('III Tool Overview'!$H$6="Shetland Health Board",0,IF('III Tool Overview'!$H$6="Western Isles Health Board",0,IF('III Tool Overview'!$H$6="Orkney Islands Local Authority",0,IF('III Tool Overview'!$H$6="Shetland Islands Local Authority",0,IF('III Tool Overview'!$H$6="Eilean Siar Local Authority",0,new_yll(20,B94,C94,D94,$C$1,G94+H94,1,F94,E94*F94))))))) -> 0 | AB94: 0 | AC94: =IF('III Tool Overview'!$H$6="Orkney Health Board",0,IF('III Tool Overview'!$H$6="Shetland Health Board",0,IF('III Tool Overview'!$H$6="Western Isles Health Board",0,IF('III Tool Overview'!$H$6="Orkney Islands Local Authority",0,IF('III Tool Overview'!$H$6="Shetland Islands Local Authority",0,IF('III Tool Overview'!$H$6="Eilean Siar Local Authority",0,hosp_count(2,B94,C94,D94,$C$1,G94,1,F94,E94*F94))))))) -> 0 | AD94: =IF('III Tool Overview'!$H$6="Orkney Health Board",0,IF('III Tool Overview'!$H$6="Shetland Health Board",0,IF('III Tool Overview'!$H$6="Western Isles Health Board",0,IF('III Tool Overview'!$H$6="Orkney Islands Local Authority",0,IF('III Tool Overview'!$H$6="Shetland Islands Local Authority",0,IF('III Tool Overview'!$H$6="Eilean Siar Local Authority",0,hosp_count(2,B94,C94,D94,$C$1,G94+H94,1,F94,E94*F94))))))) -> 0 | AE94: 0 | AF94: =IF('III Tool Overview'!$H$6="Orkney Health Board",0,IF('III Tool Overview'!$H$6="Shetland Health Board",0,IF('III Tool Overview'!$H$6="Western Isles Health Board",0,IF('III Tool Overview'!$H$6="Orkney Islands Local Authority",0,IF('III Tool Overview'!$H$6="Shetland Islands Local Authority",0,IF('III Tool Overview'!$H$6="Eilean Siar Local Authority",0,hosp_count(5,B94,C94,D94,$C$1,G94,1,F94,E94*F94))))))) -> 0 | AG94: =IF('III Tool Overview'!$H$6="Orkney Health Board",0,IF('III Tool Overview'!$H$6="Shetland Health Board",0,IF('III Tool Overview'!$H$6="Western Isles Health Board",0,IF('III Tool Overview'!$H$6="Orkney Islands Local Authority",0,IF('III Tool Overview'!$H$6="Shetland Islands Local Authority",0,IF('III Tool Overview'!$H$6="Eilean Siar Local Authority",0,hosp_count(5,B94,C94,D94,$C$1,G94+H94,1,F94,E94*F94))))))) -> 0 | AH94: 0 | AI94: =IF('III Tool Overview'!$H$6="Orkney Health Board",0,IF('III Tool Overview'!$H$6="Shetland Health Board",0,IF('III Tool Overview'!$H$6="Western Isles Health Board",0,IF('III Tool Overview'!$H$6="Orkney Islands Local Authority",0,IF('III Tool Overview'!$H$6="Shetland Islands Local Authority",0,IF('III Tool Overview'!$H$6="Eilean Siar Local Authority",0,hosp_count(10,B94,C94,D94,$C$1,G94,1,F94,E94*F94))))))) -> 0 | AJ94: =IF('III Tool Overview'!$H$6="Orkney Health Board",0,IF('III Tool Overview'!$H$6="Shetland Health Board",0,IF('III Tool Overview'!$H$6="Western Isles Health Board",0,IF('III Tool Overview'!$H$6="Orkney Islands Local Authority",0,IF('III Tool Overview'!$H$6="Shetland Islands Local Authority",0,IF('III Tool Overview'!$H$6="Eilean Siar Local Authority",0,hosp_count(10,B94,C94,D94,$C$1,G94+H94,1,F94,E94*F94))))))) -> 0 | AK94: 0 | AL94: =IF('III Tool Overview'!$H$6="Orkney Health Board",0,IF('III Tool Overview'!$H$6="Shetland Health Board",0,IF('III Tool Overview'!$H$6="Western Isles Health Board",0,IF('III Tool Overview'!$H$6="Orkney Islands Local Authority",0,IF('III Tool Overview'!$H$6="Shetland Islands Local Authority",0,IF('III Tool Overview'!$H$6="Eilean Siar Local Authority",0,hosp_count(20,B94,C94,D94,$C$1,G94,1,F94,E94*F94))))))) -> 0 | AM94: =IF('III Tool Overview'!$H$6="Orkney Health Board",0,IF('III Tool Overview'!$H$6="Shetland Health Board",0,IF('III Tool Overview'!$H$6="Western Isles Health Board",0,IF('III Tool Overview'!$H$6="Orkney Islands Local Authority",0,IF('III Tool Overview'!$H$6="Shetland Islands Local Authority",0,IF('III Tool Overview'!$H$6="Eilean Siar Local Authority",0,hosp_count(20,B94,C94,D94,$C$1,G94+H94,1,F94,E94*F94))))))) -> 0 | AN94: 0 | AP94: 0.5 | AQ94: 5
A95: Female 35-39 | B95: 37.5 | C95: female | D95: 1 | E95: =HLOOKUP('III Tool Overview'!$H$6,Prevalence!$B$2:$AV$268,Prevalence!AW90,FALSE) -> 0.2590909091 | F95: =HLOOKUP('III Tool Overview'!$H$6,LookUpData_Pop!$B$1:$AV$269,LookUpData_Pop!BB95,FALSE)/5 -> 0 | G95: ='III Tool Overview'!$H$9/110 -> 0 | H95: =IF('III Tool Overview'!$H$10="Even distribution",Targeting!C93,IF('III Tool Overview'!$H$10="Targetting to Q1",Targeting!D93,IF('III Tool Overview'!$H$10="Targetting to Q1 & Q2",Targeting!E93,IF('III Tool Overview'!$H$10="No variation in price elasticity",Targeting!G93)))) -> 0 | I95: =IF('III Tool Overview'!$H$6="Orkney Health Board",0,IF('III Tool Overview'!$H$6="Shetland Health Board",0,IF('III Tool Overview'!$H$6="Western Isles Health Board",0,IF('III Tool Overview'!$H$6="Orkney Islands Local Authority",0,IF('III Tool Overview'!$H$6="Shetland Islands Local Authority",0,IF('III Tool Overview'!$H$6="Eilean Siar Local Authority",0,new_ci(2,B95,C95,D95,$C$1,G95,1,F95,E95*F95))))))) -> 0 | J95: =IF('III Tool Overview'!$H$6="Orkney Health Board",0,IF('III Tool Overview'!$H$6="Shetland Health Board",0,IF('III Tool Overview'!$H$6="Western Isles Health Board",0,IF('III Tool Overview'!$H$6="Orkney Islands Local Authority",0,IF('III Tool Overview'!$H$6="Shetland Islands Local Authority",0,IF('III Tool Overview'!$H$6="Eilean Siar Local Authority",0,new_ci(2,B95,C95,D95,$C$1,G95+H95,1,F95,E95*F95))))))) -> 0 | K95: =IF('III Tool Overview'!$H$6="Orkney Health Board",0,IF('III Tool Overview'!$H$6="Shetland Health Board",0,IF('III Tool Overview'!$H$6="Western Isles Health Board",0,IF('III Tool Overview'!$H$6="Orkney Islands Local Authority",0,IF('III Tool Overview'!$H$6="Shetland Islands Local Authority",0,IF('III Tool Overview'!$H$6="Eilean Siar Local Authority",0,new_ci(5,B95,C95,D95,$C$1,G95,1,F95,E95*F95))))))) -> 0 | L95: =IF('III Tool Overview'!$H$6="Orkney Health Board",0,IF('III Tool Overview'!$H$6="Shetland Health Board",0,IF('III Tool Overview'!$H$6="Western Isles Health Board",0,IF('III Tool Overview'!$H$6="Orkney Islands Local Authority",0,IF('III Tool Overview'!$H$6="Shetland Islands Local Authority",0,IF('III Tool Overview'!$H$6="Eilean Siar Local Authority",0,new_ci(5,B95,C95,D95,$C$1,G95+H95,1,F95,E95*F95))))))) -> 0 | M95: =IF('III Tool Overview'!$H$6="Orkney Health Board",0,IF('III Tool Overview'!$H$6="Shetland Health Board",0,IF('III Tool Overview'!$H$6="Western Isles Health Board",0,IF('III Tool Overview'!$H$6="Orkney Islands Local Authority",0,IF('III Tool Overview'!$H$6="Shetland Islands Local Authority",0,IF('III Tool Overview'!$H$6="Eilean Siar Local Authority",0,new_ci(10,B95,C95,D95,$C$1,G95,1,F95,E95*F95))))))) -> 0 | N95: =IF('III Tool Overview'!$H$6="Orkney Health Board",0,IF('III Tool Overview'!$H$6="Shetland Health Board",0,IF('III Tool Overview'!$H$6="Western Isles Health Board",0,IF('III Tool Overview'!$H$6="Orkney Islands Local Authority",0,IF('III Tool Overview'!$H$6="Shetland Islands Local Authority",0,IF('III Tool Overview'!$H$6="Eilean Siar Local Authority",0,new_ci(10,B95,C95,D95,$C$1,G95+H95,1,F95,E95*F95))))))) -> 0 | O95: =IF('III Tool Overview'!$H$6="Orkney Health Board",0,IF('III Tool Overview'!$H$6="Shetland Health Board",0,IF('III Tool Overview'!$H$6="Western Isles Health Board",0,IF('III Tool Overview'!$H$6="Orkney Islands Local Authority",0,IF('III Tool Overview'!$H$6="Shetland Islands Local Authority",0,IF('III Tool Overview'!$H$6="Eilean Siar Local Authority",0,new_ci(20,B95,C95,D95,$C$1,G95,1,F95,E95*F95))))))) -> 0 | P95: =IF('III Tool Overview'!$H$6="Orkney Health Board",0,IF('III Tool Overview'!$H$6="Shetland Health Board",0,IF('III Tool Overview'!$H$6="Western Isles Health Board",0,IF('III Tool Overview'!$H$6="Orkney Islands Local Authority",0,IF('III Tool Overview'!$H$6="Shetland Islands Local Authority",0,IF('III Tool Overview'!$H$6="Eilean Siar Local Authority",0,new_ci(20,B95,C95,D95,$C$1,G95+H95,1,F95,E95*F95))))))) -> 0 | Q95: =IF('III Tool Overview'!$H$6="Orkney Health Board",0,IF('III Tool Overview'!$H$6="Shetland Health Board",0,IF('III Tool Overview'!$H$6="Western Isles Health Board",0,IF('III Tool Overview'!$H$6="Orkney Islands Local Authority",0,IF('III Tool Overview'!$H$6="Shetland Islands Local Authority",0,IF('III Tool Overview'!$H$6="Eilean Siar Local Authority",0,new_yll(2,B95,C95,D95,$C$1,G95,1,F95,E95*F95))))))) -> 0 | R95: =IF('III Tool Overview'!$H$6="Orkney Health Board",0,IF('III Tool Overview'!$H$6="Shetland Health Board",0,IF('III Tool Overview'!$H$6="Western Isles Health Board",0,IF('III Tool Overview'!$H$6="Orkney Islands Local Authority",0,IF('III Tool Overview'!$H$6="Shetland Islands Local Authority",0,IF('III Tool Overview'!$H$6="Eilean Siar Local Authority",0,new_yll(2,B95,C95,D95,$C$1,G95+H95,1,F95,E95*F95))))))) -> 0 | S95: 0 | T95: =IF('III Tool Overview'!$H$6="Orkney Health Board",0,IF('III Tool Overview'!$H$6="Shetland Health Board",0,IF('III Tool Overview'!$H$6="Western Isles Health Board",0,IF('III Tool Overview'!$H$6="Orkney Islands Local Authority",0,IF('III Tool Overview'!$H$6="Shetland Islands Local Authority",0,IF('III Tool Overview'!$H$6="Eilean Siar Local Authority",0,new_yll(5,B95,C95,D95,$C$1,G95,1,F95,E95*F95))))))) -> 0 | U95: =IF('III Tool Overview'!$H$6="Orkney Health Board",0,IF('III Tool Overview'!$H$6="Shetland Health Board",0,IF('III Tool Overview'!$H$6="Western Isles Health Board",0,IF('III Tool Overview'!$H$6="Orkney Islands Local Authority",0,IF('III Tool Overview'!$H$6="Shetland Islands Local Authority",0,IF('III Tool Overview'!$H$6="Eilean Siar Local Authority",0,new_yll(5,B95,C95,D95,$C$1,G95+H95,1,F95,E95*F95))))))) -> 0 | V95: 0 | W95: =IF('III Tool Overview'!$H$6="Orkney Health Board",0,IF('III Tool Overview'!$H$6="Shetland Health Board",0,IF('III Tool Overview'!$H$6="Western Isles Health Board",0,IF('III Tool Overview'!$H$6="Orkney Islands Local Authority",0,IF('III Tool Overview'!$H$6="Shetland Islands Local Authority",0,IF('III Tool Overview'!$H$6="Eilean Siar Local Authority",0,new_yll(10,B95,C95,D95,$C$1,G95,1,F95,E95*F95))))))) -> 0 | X95: =IF('III Tool Overview'!$H$6="Orkney Health Board",0,IF('III Tool Overview'!$H$6="Shetland Health Board",0,IF('III Tool Overview'!$H$6="Western Isles Health Board",0,IF('III Tool Overview'!$H$6="Orkney Islands Local Authority",0,IF('III Tool Overview'!$H$6="Shetland Islands Local Authority",0,IF('III Tool Overview'!$H$6="Eilean Siar Local Authority",0,new_yll(10,B95,C95,D95,$C$1,G95+H95,1,F95,E95*F95))))))) -> 0 | Y95: 0 | Z95: =IF('III Tool Overview'!$H$6="Orkney Health Board",0,IF('III Tool Overview'!$H$6="Shetland Health Board",0,IF('III Tool Overview'!$H$6="Western Isles Health Board",0,IF('III Tool Overview'!$H$6="Orkney Islands Local Authority",0,IF('III Tool Overview'!$H$6="Shetland Islands Local Authority",0,IF('III Tool Overview'!$H$6="Eilean Siar Local Authority",0,new_yll(20,B95,C95,D95,$C$1,G95,1,F95,E95*F95))))))) -> 0 | AA95: =IF('III Tool Overview'!$H$6="Orkney Health Board",0,IF('III Tool Overview'!$H$6="Shetland Health Board",0,IF('III Tool Overview'!$H$6="Western Isles Health Board",0,IF('III Tool Overview'!$H$6="Orkney Islands Local Authority",0,IF('III Tool Overview'!$H$6="Shetland Islands Local Authority",0,IF('III Tool Overview'!$H$6="Eilean Siar Local Authority",0,new_yll(20,B95,C95,D95,$C$1,G95+H95,1,F95,E95*F95))))))) -> 0 | AB95: 0 | AC95: =IF('III Tool Overview'!$H$6="Orkney Health Board",0,IF('III Tool Overview'!$H$6="Shetland Health Board",0,IF('III Tool Overview'!$H$6="Western Isles Health Board",0,IF('III Tool Overview'!$H$6="Orkney Islands Local Authority",0,IF('III Tool Overview'!$H$6="Shetland Islands Local Authority",0,IF('III Tool Overview'!$H$6="Eilean Siar Local Authority",0,hosp_count(2,B95,C95,D95,$C$1,G95,1,F95,E95*F95))))))) -> 0 | AD95: =IF('III Tool Overview'!$H$6="Orkney Health Board",0,IF('III Tool Overview'!$H$6="Shetland Health Board",0,IF('III Tool Overview'!$H$6="Western Isles Health Board",0,IF('III Tool Overview'!$H$6="Orkney Islands Local Authority",0,IF('III Tool Overview'!$H$6="Shetland Islands Local Authority",0,IF('III Tool Overview'!$H$6="Eilean Siar Local Authority",0,hosp_count(2,B95,C95,D95,$C$1,G95+H95,1,F95,E95*F95))))))) -> 0 | AE95: 0 | AF95: =IF('III Tool Overview'!$H$6="Orkney Health Board",0,IF('III Tool Overview'!$H$6="Shetland Health Board",0,IF('III Tool Overview'!$H$6="Western Isles Health Board",0,IF('III Tool Overview'!$H$6="Orkney Islands Local Authority",0,IF('III Tool Overview'!$H$6="Shetland Islands Local Authority",0,IF('III Tool Overview'!$H$6="Eilean Siar Local Authority",0,hosp_count(5,B95,C95,D95,$C$1,G95,1,F95,E95*F95))))))) -> 0 | AG95: =IF('III Tool Overview'!$H$6="Orkney Health Board",0,IF('III Tool Overview'!$H$6="Shetland Health Board",0,IF('III Tool Overview'!$H$6="Western Isles Health Board",0,IF('III Tool Overview'!$H$6="Orkney Islands Local Authority",0,IF('III Tool Overview'!$H$6="Shetland Islands Local Authority",0,IF('III Tool Overview'!$H$6="Eilean Siar Local Authority",0,hosp_count(5,B95,C95,D95,$C$1,G95+H95,1,F95,E95*F95))))))) -> 0 | AH95: 0 | AI95: =IF('III Tool Overview'!$H$6="Orkney Health Board",0,IF('III Tool Overview'!$H$6="Shetland Health Board",0,IF('III Tool Overview'!$H$6="Western Isles Health Board",0,IF('III Tool Overview'!$H$6="Orkney Islands Local Authority",0,IF('III Tool Overview'!$H$6="Shetland Islands Local Authority",0,IF('III Tool Overview'!$H$6="Eilean Siar Local Authority",0,hosp_count(10,B95,C95,D95,$C$1,G95,1,F95,E95*F95))))))) -> 0 | AJ95: =IF('III Tool Overview'!$H$6="Orkney Health Board",0,IF('III Tool Overview'!$H$6="Shetland Health Board",0,IF('III Tool Overview'!$H$6="Western Isles Health Board",0,IF('III Tool Overview'!$H$6="Orkney Islands Local Authority",0,IF('III Tool Overview'!$H$6="Shetland Islands Local Authority",0,IF('III Tool Overview'!$H$6="Eilean Siar Local Authority",0,hosp_count(10,B95,C95,D95,$C$1,G95+H95,1,F95,E95*F95))))))) -> 0 | AK95: 0 | AL95: =IF('III Tool Overview'!$H$6="Orkney Health Board",0,IF('III Tool Overview'!$H$6="Shetland Health Board",0,IF('III Tool Overview'!$H$6="Western Isles Health Board",0,IF('III Tool Overview'!$H$6="Orkney Islands Local Authority",0,IF('III Tool Overview'!$H$6="Shetland Islands Local Authority",0,IF('III Tool Overview'!$H$6="Eilean Siar Local Authority",0,hosp_count(20,B95,C95,D95,$C$1,G95,1,F95,E95*F95))))))) -> 0 | AM95: =IF('III Tool Overview'!$H$6="Orkney Health Board",0,IF('III Tool Overview'!$H$6="Shetland Health Board",0,IF('III Tool Overview'!$H$6="Western Isles Health Board",0,IF('III Tool Overview'!$H$6="Orkney Islands Local Authority",0,IF('III Tool Overview'!$H$6="Shetland Islands Local Authority",0,IF('III Tool Overview'!$H$6="Eilean Siar Local Authority",0,hosp_count(20,B95,C95,D95,$C$1,G95+H95,1,F95,E95*F95))))))) -> 0 | AN95: 0 | AP95: 0.5 | AQ95: 5
A96: Female 40-44 | B96: 42.5 | C96: female | D96: 1 | E96: =HLOOKUP('III Tool Overview'!$H$6,Prevalence!$B$2:$AV$268,Prevalence!AW91,FALSE) -> 0.2590909091 | F96: =HLOOKUP('III Tool Overview'!$H$6,LookUpData_Pop!$B$1:$AV$269,LookUpData_Pop!BB96,FALSE)/5 -> 0 | G96: ='III Tool Overview'!$H$9/110 -> 0 | H96: =IF('III Tool Overview'!$H$10="Even distribution",Targeting!C94,IF('III Tool Overview'!$H$10="Targetting to Q1",Targeting!D94,IF('III Tool Overview'!$H$10="Targetting to Q1 & Q2",Targeting!E94,IF('III Tool Overview'!$H$10="No variation in price elasticity",Targeting!G94)))) -> 0 | I96: =IF('III Tool Overview'!$H$6="Orkney Health Board",0,IF('III Tool Overview'!$H$6="Shetland Health Board",0,IF('III Tool Overview'!$H$6="Western Isles Health Board",0,IF('III Tool Overview'!$H$6="Orkney Islands Local Authority",0,IF('III Tool Overview'!$H$6="Shetland Islands Local Authority",0,IF('III Tool Overview'!$H$6="Eilean Siar Local Authority",0,new_ci(2,B96,C96,D96,$C$1,G96,1,F96,E96*F96))))))) -> 0 | J96: =IF('III Tool Overview'!$H$6="Orkney Health Board",0,IF('III Tool Overview'!$H$6="Shetland Health Board",0,IF('III Tool Overview'!$H$6="Western Isles Health Board",0,IF('III Tool Overview'!$H$6="Orkney Islands Local Authority",0,IF('III Tool Overview'!$H$6="Shetland Islands Local Authority",0,IF('III Tool Overview'!$H$6="Eilean Siar Local Authority",0,new_ci(2,B96,C96,D96,$C$1,G96+H96,1,F96,E96*F96))))))) -> 0 | K96: =IF('III Tool Overview'!$H$6="Orkney Health Board",0,IF('III Tool Overview'!$H$6="Shetland Health Board",0,IF('III Tool Overview'!$H$6="Western Isles Health Board",0,IF('III Tool Overview'!$H$6="Orkney Islands Local Authority",0,IF('III Tool Overview'!$H$6="Shetland Islands Local Authority",0,IF('III Tool Overview'!$H$6="Eilean Siar Local Authority",0,new_ci(5,B96,C96,D96,$C$1,G96,1,F96,E96*F96))))))) -> 0 | L96: =IF('III Tool Overview'!$H$6="Orkney Health Board",0,IF('III Tool Overview'!$H$6="Shetland Health Board",0,IF('III Tool Overview'!$H$6="Western Isles Health Board",0,IF('III Tool Overview'!$H$6="Orkney Islands Local Authority",0,IF('III Tool Overview'!$H$6="Shetland Islands Local Authority",0,IF('III Tool Overview'!$H$6="Eilean Siar Local Authority",0,new_ci(5,B96,C96,D96,$C$1,G96+H96,1,F96,E96*F96))))))) -> 0 | M96: =IF('III Tool Overview'!$H$6="Orkney Health Board",0,IF('III Tool Overview'!$H$6="Shetland Health Board",0,IF('III Tool Overview'!$H$6="Western Isles Health Board",0,IF('III Tool Overview'!$H$6="Orkney Islands Local Authority",0,IF('III Tool Overview'!$H$6="Shetland Islands Local Authority",0,IF('III Tool Overview'!$H$6="Eilean Siar Local Authority",0,new_ci(10,B96,C96,D96,$C$1,G96,1,F96,E96*F96))))))) -> 0 | N96: =IF('III Tool Overview'!$H$6="Orkney Health Board",0,IF('III Tool Overview'!$H$6="Shetland Health Board",0,IF('III Tool Overview'!$H$6="Western Isles Health Board",0,IF('III Tool Overview'!$H$6="Orkney Islands Local Authority",0,IF('III Tool Overview'!$H$6="Shetland Islands Local Authority",0,IF('III Tool Overview'!$H$6="Eilean Siar Local Authority",0,new_ci(10,B96,C96,D96,$C$1,G96+H96,1,F96,E96*F96))))))) -> 0 | O96: =IF('III Tool Overview'!$H$6="Orkney Health Board",0,IF('III Tool Overview'!$H$6="Shetland Health Board",0,IF('III Tool Overview'!$H$6="Western Isles Health Board",0,IF('III Tool Overview'!$H$6="Orkney Islands Local Authority",0,IF('III Tool Overview'!$H$6="Shetland Islands Local Authority",0,IF('III Tool Overview'!$H$6="Eilean Siar Local Authority",0,new_ci(20,B96,C96,D96,$C$1,G96,1,F96,E96*F96))))))) -> 0 | P96: =IF('III Tool Overview'!$H$6="Orkney Health Board",0,IF('III Tool Overview'!$H$6="Shetland Health Board",0,IF('III Tool Overview'!$H$6="Western Isles Health Board",0,IF('III Tool Overview'!$H$6="Orkney Islands Local Authority",0,IF('III Tool Overview'!$H$6="Shetland Islands Local Authority",0,IF('III Tool Overview'!$H$6="Eilean Siar Local Authority",0,new_ci(20,B96,C96,D96,$C$1,G96+H96,1,F96,E96*F96))))))) -> 0 | Q96: =IF('III Tool Overview'!$H$6="Orkney Health Board",0,IF('III Tool Overview'!$H$6="Shetland Health Board",0,IF('III Tool Overview'!$H$6="Western Isles Health Board",0,IF('III Tool Overview'!$H$6="Orkney Islands Local Authority",0,IF('III Tool Overview'!$H$6="Shetland Islands Local Authority",0,IF('III Tool Overview'!$H$6="Eilean Siar Local Authority",0,new_yll(2,B96,C96,D96,$C$1,G96,1,F96,E96*F96))))))) -> 0 | R96: =IF('III Tool Overview'!$H$6="Orkney Health Board",0,IF('III Tool Overview'!$H$6="Shetland Health Board",0,IF('III Tool Overview'!$H$6="Western Isles Health Board",0,IF('III Tool Overview'!$H$6="Orkney Islands Local Authority",0,IF('III Tool Overview'!$H$6="Shetland Islands Local Authority",0,IF('III Tool Overview'!$H$6="Eilean Siar Local Authority",0,new_yll(2,B96,C96,D96,$C$1,G96+H96,1,F96,E96*F96))))))) -> 0 | S96: 0 | T96: =IF('III Tool Overview'!$H$6="Orkney Health Board",0,IF('III Tool Overview'!$H$6="Shetland Health Board",0,IF('III Tool Overview'!$H$6="Western Isles Health Board",0,IF('III Tool Overview'!$H$6="Orkney Islands Local Authority",0,IF('III Tool Overview'!$H$6="Shetland Islands Local Authority",0,IF('III Tool Overview'!$H$6="Eilean Siar Local Authority",0,new_yll(5,B96,C96,D96,$C$1,G96,1,F96,E96*F96))))))) -> 0 | U96: =IF('III Tool Overview'!$H$6="Orkney Health Board",0,IF('III Tool Overview'!$H$6="Shetland Health Board",0,IF('III Tool Overview'!$H$6="Western Isles Health Board",0,IF('III Tool Overview'!$H$6="Orkney Islands Local Authority",0,IF('III Tool Overview'!$H$6="Shetland Islands Local Authority",0,IF('III Tool Overview'!$H$6="Eilean Siar Local Authority",0,new_yll(5,B96,C96,D96,$C$1,G96+H96,1,F96,E96*F96))))))) -> 0 | V96: 0 | W96: =IF('III Tool Overview'!$H$6="Orkney Health Board",0,IF('III Tool Overview'!$H$6="Shetland Health Board",0,IF('III Tool Overview'!$H$6="Western Isles Health Board",0,IF('III Tool Overview'!$H$6="Orkney Islands Local Authority",0,IF('III Tool Overview'!$H$6="Shetland Islands Local Authority",0,IF('III Tool Overview'!$H$6="Eilean Siar Local Authority",0,new_yll(10,B96,C96,D96,$C$1,G96,1,F96,E96*F96))))))) -> 0 | X96: =IF('III Tool Overview'!$H$6="Orkney Health Board",0,IF('III Tool Overview'!$H$6="Shetland Health Board",0,IF('III Tool Overview'!$H$6="Western Isles Health Board",0,IF('III Tool Overview'!$H$6="Orkney Islands Local Authority",0,IF('III Tool Overview'!$H$6="Shetland Islands Local Authority",0,IF('III Tool Overview'!$H$6="Eilean Siar Local Authority",0,new_yll(10,B96,C96,D96,$C$1,G96+H96,1,F96,E96*F96))))))) -> 0 | Y96: 0 | Z96: =IF('III Tool Overview'!$H$6="Orkney Health Board",0,IF('III Tool Overview'!$H$6="Shetland Health Board",0,IF('III Tool Overview'!$H$6="Western Isles Health Board",0,IF('III Tool Overview'!$H$6="Orkney Islands Local Authority",0,IF('III Tool Overview'!$H$6="Shetland Islands Local Authority",0,IF('III Tool Overview'!$H$6="Eilean Siar Local Authority",0,new_yll(20,B96,C96,D96,$C$1,G96,1,F96,E96*F96))))))) -> 0 | AA96: =IF('III Tool Overview'!$H$6="Orkney Health Board",0,IF('III Tool Overview'!$H$6="Shetland Health Board",0,IF('III Tool Overview'!$H$6="Western Isles Health Board",0,IF('III Tool Overview'!$H$6="Orkney Islands Local Authority",0,IF('III Tool Overview'!$H$6="Shetland Islands Local Authority",0,IF('III Tool Overview'!$H$6="Eilean Siar Local Authority",0,new_yll(20,B96,C96,D96,$C$1,G96+H96,1,F96,E96*F96))))))) -> 0 | AB96: 0 | AC96: =IF('III Tool Overview'!$H$6="Orkney Health Board",0,IF('III Tool Overview'!$H$6="Shetland Health Board",0,IF('III Tool Overview'!$H$6="Western Isles Health Board",0,IF('III Tool Overview'!$H$6="Orkney Islands Local Authority",0,IF('III Tool Overview'!$H$6="Shetland Islands Local Authority",0,IF('III Tool Overview'!$H$6="Eilean Siar Local Authority",0,hosp_count(2,B96,C96,D96,$C$1,G96,1,F96,E96*F96))))))) -> 0 | AD96: =IF('III Tool Overview'!$H$6="Orkney Health Board",0,IF('III Tool Overview'!$H$6="Shetland Health Board",0,IF('III Tool Overview'!$H$6="Western Isles Health Board",0,IF('III Tool Overview'!$H$6="Orkney Islands Local Authority",0,IF('III Tool Overview'!$H$6="Shetland Islands Local Authority",0,IF('III Tool Overview'!$H$6="Eilean Siar Local Authority",0,hosp_count(2,B96,C96,D96,$C$1,G96+H96,1,F96,E96*F96))))))) -> 0 | AE96: 0 | AF96: =IF('III Tool Overview'!$H$6="Orkney Health Board",0,IF('III Tool Overview'!$H$6="Shetland Health Board",0,IF('III Tool Overview'!$H$6="Western Isles Health Board",0,IF('III Tool Overview'!$H$6="Orkney Islands Local Authority",0,IF('III Tool Overview'!$H$6="Shetland Islands Local Authority",0,IF('III Tool Overview'!$H$6="Eilean Siar Local Authority",0,hosp_count(5,B96,C96,D96,$C$1,G96,1,F96,E96*F96))))))) -> 0 | AG96: =IF('III Tool Overview'!$H$6="Orkney Health Board",0,IF('III Tool Overview'!$H$6="Shetland Health Board",0,IF('III Tool Overview'!$H$6="Western Isles Health Board",0,IF('III Tool Overview'!$H$6="Orkney Islands Local Authority",0,IF('III Tool Overview'!$H$6="Shetland Islands Local Authority",0,IF('III Tool Overview'!$H$6="Eilean Siar Local Authority",0,hosp_count(5,B96,C96,D96,$C$1,G96+H96,1,F96,E96*F96))))))) -> 0 | AH96: 0 | AI96: =IF('III Tool Overview'!$H$6="Orkney Health Board",0,IF('III Tool Overview'!$H$6="Shetland Health Board",0,IF('III Tool Overview'!$H$6="Western Isles Health Board",0,IF('III Tool Overview'!$H$6="Orkney Islands Local Authority",0,IF('III Tool Overview'!$H$6="Shetland Islands Local Authority",0,IF('III Tool Overview'!$H$6="Eilean Siar Local Authority",0,hosp_count(10,B96,C96,D96,$C$1,G96,1,F96,E96*F96))))))) -> 0 | AJ96: =IF('III Tool Overview'!$H$6="Orkney Health Board",0,IF('III Tool Overview'!$H$6="Shetland Health Board",0,IF('III Tool Overview'!$H$6="Western Isles Health Board",0,IF('III Tool Overview'!$H$6="Orkney Islands Local Authority",0,IF('III Tool Overview'!$H$6="Shetland Islands Local Authority",0,IF('III Tool Overview'!$H$6="Eilean Siar Local Authority",0,hosp_count(10,B96,C96,D96,$C$1,G96+H96,1,F96,E96*F96))))))) -> 0 | AK96: 0 | AL96: =IF('III Tool Overview'!$H$6="Orkney Health Board",0,IF('III Tool Overview'!$H$6="Shetland Health Board",0,IF('III Tool Overview'!$H$6="Western Isles Health Board",0,IF('III Tool Overview'!$H$6="Orkney Islands Local Authority",0,IF('III Tool Overview'!$H$6="Shetland Islands Local Authority",0,IF('III Tool Overview'!$H$6="Eilean Siar Local Authority",0,hosp_count(20,B96,C96,D96,$C$1,G96,1,F96,E96*F96))))))) -> 0 | AM96: =IF('III Tool Overview'!$H$6="Orkney Health Board",0,IF('III Tool Overview'!$H$6="Shetland Health Board",0,IF('III Tool Overview'!$H$6="Western Isles Health Board",0,IF('III Tool Overview'!$H$6="Orkney Islands Local Authority",0,IF('III Tool Overview'!$H$6="Shetland Islands Local Authority",0,IF('III Tool Overview'!$H$6="Eilean Siar Local Authority",0,hosp_count(20,B96,C96,D96,$C$1,G96+H96,1,F96,E96*F96))))))) -> 0 | AN96: 0 | AP96: 0.5 | AQ96: 5
